Transaction date,Department,Beneficiary,Amount,Net,Vat,Summary of  Expenditure,Merchant Category Code,Merchant Code Description
27/03/17,Corporate Services WCC,WWW.ARGOS.CO.UK,25.91,25.91,.00,Catering,5310,Discount Stores
22/06/17,City Treasurers,HP INC UK LIMITED,778.80,649.00,129.80,"Print, Pub & adverts",5045,"Computers, Computer Peripheral Equipment, Software"
28/06/17,City Treasurers,01DIRECT LTD,-9.59,-9.59,.00,Telephony,4812,Telecommunications Equipment including telephone sales
29/06/17,City Treasurers,PREMIER INN 44537240,6798.48,5438.78,1359.70,Hospitality,3811,Premier Travel Inn
29/06/17,Tri-Borough ASC and NHS Integrated Commi,PRIMARK,5.00,5.00,.00,"Equipment, furniture and materials",5651,Family Clothing Stores
30/06/17,Tri-Borough Childrens Services,Amazon EU,50.98,50.98,.00,Grants,5969,Direct Marketing - Not Elsewhere Classified
30/06/17,Bi-Borough Corporate Services,Amazon UK Marketplace,12.80,12.80,.00,Stationery,5942,Book Stores
30/06/17,Bi-Borough Corporate Services,Amazon UK Marketplace,21.96,21.96,.00,Stationery,5942,Book Stores
30/06/17,Tri-borough Libraries and Archives,Amazon UK Marketplace,2.81,2.81,.00,"Equipment, furniture and materials",5942,Book Stores
30/06/17,Tri-borough Libraries and Archives,Amazon UK Marketplace,12.63,12.63,.00,"Equipment, furniture and materials",5942,Book Stores
30/06/17,Tri-Borough Childrens Services,Amazon UK Marketplace,11.19,11.19,.00,Fixtures and Fittings -E12,5942,Book Stores
30/06/17,Bi-Borough Corporate Services,AMAZON.CO.UK,64.14,64.14,.00,Stationery,5999,Miscellaneous and Specialty Retail Stores
30/06/17,Tri-borough Libraries and Archives,BARRY BROS SECURITY DE,40.95,34.13,6.82,Section 17 Other,7393,Protective and Security Services - Including Armored Cars and Guard Dogs
30/06/17,"Growth, Planning and Housing",CAFFE NERO 91 WILCOX P,5.30,5.30,.00,Hospitality,5814,Fast Food Restaurants
30/06/17,Tri-Borough Childrens Services,CAMPING IN THE FOR,58.00,48.33,9.67,Activities and Events,7033,Trailer Parks and Camp Grounds
30/06/17,City Treasurers,COSTA COFFEE,9.60,8.01,1.59,Catering,5814,Fast Food Restaurants
30/06/17,Tri-borough Libraries and Archives,CROWNE PLAZA LIVERPOOL,115.00,115.00,.00,Conference Expenses,7011,"Lodging - Hotels, Motels, Resorts, Central Reservation Services (not elsewhere classified)"
30/06/17,PPC,EAT LTD,8.75,7.29,1.46,Stationery,5812,Eating places and Restaurants
30/06/17,PPC,EAT LTD,10.90,9.08,1.82,Catering,5812,Eating places and Restaurants
30/06/17,PPC,EB  YOUNG PLANNERS CON,126.00,105.00,21.00,Conference Expenses,7399,"Business Services, Not Elsewhere Classified"
30/06/17,Tri-Borough Childrens Services,FRASERS BUDGENS OF MAR,45.99,38.33,7.66,Tport - Prkng & Congestion Chgs,5541,Service Stations ( with or without ancillary services)
30/06/17,City Treasurers,GRANGE ROCHESTER H,423.20,338.56,84.64,Temporary Accommodation,7011,"Lodging - Hotels, Motels, Resorts, Central Reservation Services (not elsewhere classified)"
30/06/17,City Treasurers,GRANGE ROCHESTER H,180.00,180.00,.00,Temporary Accommodation,7011,"Lodging - Hotels, Motels, Resorts, Central Reservation Services (not elsewhere classified)"
30/06/17,Tri-Borough ASC and NHS Integrated Commi,H&M,3.00,3.00,.00,"Clothes, uniform and laundry",5691,Men�s and Women�s Clothing Stores
30/06/17,City Management and Communities,HMCOURTS-SERVICE.G,20.00,20.00,.00,Legal Fees,9222,Fines
30/06/17,City Treasurers,IZ  CROSSTOWN,25.00,25.00,.00,Catering,5812,Eating places and Restaurants
30/06/17,Tri-Borough Childrens Services,LONDON & SOUTH EAS,18.50,18.50,.00,Staff travelling expenses,4112,Passenger Railways
30/06/17,Tri-Borough Childrens Services,LONDON OVERGROUND SST,10.00,10.00,.00,Staff travelling expenses,4112,Passenger Railways
30/06/17,Tri-Borough Childrens Services,LUL TICKET MACHINE,10.00,10.00,.00,Staff travelling expenses,4112,Passenger Railways
30/06/17,Tri-Borough ASC and NHS Integrated Commi,LUL TICKET MACHINE,10.00,10.00,.00,Staff travelling expenses,4112,Passenger Railways
30/06/17,Tri-Borough Childrens Services,LUL TICKET MACHINE,20.00,20.00,.00,Young Persons Subsistence Allowance,4112,Passenger Railways
30/06/17,Tri-Borough Childrens Services,LUL TICKET MACHINE,15.00,15.00,.00,Young Persons Subsistence Allowance,4112,Passenger Railways
30/06/17,PPC,MAILCHIMP    MONTHLY,996.94,996.94,.00,Publicity,7399,"Business Services, Not Elsewhere Classified"
30/06/17,City Treasurers,MARKS&SPENCER PLC,8.40,6.72,1.68,Catering,5411,Grocery Stores
30/06/17,PPC,MARKS&SPENCER PLC,1.40,1.40,.00,Catering,5411,Grocery Stores
30/06/17,PPC,MARKS&SPENCER PLC,8.35,8.35,.00,Fees,5411,Grocery Stores
30/06/17,City Treasurers,MCDONALDS,27.83,22.26,5.57,Catering,5812,Eating places and Restaurants
30/06/17,Tri-Borough ASC and NHS Integrated Commi,NANDOS,10.70,10.70,.00,Day Opportunities,5812,Eating places and Restaurants
30/06/17,Tri-Borough ASC and NHS Integrated Commi,NANDOS,7.35,7.35,.00,Day Opportunities,5812,Eating places and Restaurants
30/06/17,PPC,NET WORLD SPORTS,54.94,44.99,9.95,Fees,5941,Sporting Goods Stores
30/06/17,Tri-Borough Childrens Services,NISA LOCAL ELSTREE STA,10.00,10.00,.00,Staff travelling expenses,5499,Misc. Food Stores - Convenience Stores and Specialty Markets
30/06/17,"Growth, Planning and Housing",OYSTER AUTOTOPUP,40.00,40.00,.00,Staff travelling expenses,4112,Passenger Railways
30/06/17,Tri-Borough ASC and NHS Integrated Commi,OYSTER AUTOTOPUP,20.00,20.00,.00,Staff travelling expenses,4112,Passenger Railways
30/06/17,City Management and Communities,OYSTER AUTOTOPUP,20.00,20.00,.00,Staff travelling expenses,4112,Passenger Railways
30/06/17,City Management and Communities,OYSTER AUTOTOPUP,40.00,40.00,.00,Staff travelling expenses,4112,Passenger Railways
30/06/17,Tri-Borough ASC and NHS Integrated Commi,OYSTER BUS AUTOTOP,20.00,20.00,.00,Staff travelling expenses,4112,Passenger Railways
30/06/17,Tri-Borough ASC and NHS Integrated Commi,OYSTER BUS AUTOTOP,20.00,20.00,.00,Staff travelling expenses,4112,Passenger Railways
30/06/17,Tri-Borough Childrens Services,PAYPAL  HOODMANIA,7.95,7.95,.00,Cleaning and Caretaking -E14,5722,Household Appliance Stores
30/06/17,City Management and Communities,PAYPAL  MOSPARESLIM,12.30,10.25,2.05,"Equipment, furniture and materials",5261,Nurseries - Lawn and Garden Supply Store
30/06/17,Tri-Borough ASC and NHS Integrated Commi,POST OFFICE COUNTER,2.08,2.08,.00,Postage,9402,Postal Services - Government Only
30/06/17,City Management and Communities,POSTOFFICE SELFSERVICE,9.75,9.75,.00,Postage,9402,Postal Services - Government Only
30/06/17,Tri-Borough Childrens Services,PRET A MANGER,1.95,1.95,.00,Subsistence Expenses,5812,Eating places and Restaurants
30/06/17,PPC,PRET A MANGER,10.34,8.63,1.71,Catering,5812,Eating places and Restaurants
30/06/17,City Management and Communities,RB KEN&CHELSEA,5.51,5.51,.00,Tport - Prkng & Congestion Chgs,7523,Automobile Parking Lots and Garages
30/06/17,City Management and Communities,RB KEN&CHELSEA,3.53,3.53,.00,Tport - Prkng & Congestion Chgs,7523,Automobile Parking Lots and Garages
30/06/17,Tri-Borough ASC and NHS Integrated Commi,STAGECOACH SW TRAINS W,13.00,13.00,.00,Client travelling expenses,4112,Passenger Railways
30/06/17,Tri-Borough Childrens Services,TICKETOFFICESALE,13.35,13.35,.00,Staff travelling expenses,4112,Passenger Railways
30/06/17,Tri-Borough Childrens Services,TRADITIONAL EUROPEAN F,2.18,2.18,.00,Subsistence Expenses,5411,Grocery Stores
30/06/17,PPC,Trainline,56.61,56.61,.00,Staff travelling expenses,4112,Passenger Railways
30/06/17,Tri-Borough Childrens Services,UBER TRIP EL2NT HELP.U,7.08,7.08,.00,Staff travelling expenses,4121,Taxicabs and Limousines
30/06/17,City Treasurers,WAITROSE 860,7.35,6.12,1.23,Catering,5411,Grocery Stores
30/06/17,Tri-Borough Childrens Services,WESTMINSTER PARKING,6.28,6.28,.00,Tport - Prkng & Congestion Chgs,7523,Automobile Parking Lots and Garages
30/06/17,City Management and Communities,WH SMITH,11.80,11.80,.00,Stationery,5994,News Dealers and Newsstands
30/06/17,City Management and Communities,WH SMITH,6.99,6.99,.00,Stationery,5994,News Dealers and Newsstands
01/07/17,"Growth, Planning and Housing",Amazon EU,52.98,52.98,.00,Stationery,5969,Direct Marketing - Not Elsewhere Classified
01/07/17,Bi-Borough Corporate Services,Amazon UK Marketplace,93.68,93.68,.00,Stationery,5942,Book Stores
01/07/17,Bi-Borough Corporate Services,Amazon UK Marketplace,39.99,39.99,.00,Stationery,5942,Book Stores
01/07/17,Tri-Borough Childrens Services,Amazon UK Marketplace,2.81,2.81,.00,Bks (Lib. & Txt bks) -E19,5942,Book Stores
01/07/17,Tri-Borough Childrens Services,Amazon UK Marketplace,22.62,22.62,.00,Bks (Lib. & Txt bks) -E19,5942,Book Stores
01/07/17,Tri-Borough Childrens Services,Amazon UK Marketplace,9.95,9.95,.00,Bks (Lib. & Txt bks) -E19,5942,Book Stores
01/07/17,Tri-borough Libraries and Archives,Amazon UK Marketplace,2.81,2.81,.00,"Equipment, furniture and materials",5942,Book Stores
01/07/17,Tri-Borough Childrens Services,Amazon UK Marketplace,25.75,21.46,4.29,"Admin Stat., Print & Reprog. E22",5942,Book Stores
01/07/17,Tri-Borough Childrens Services,Amazon UK Marketplace,67.80,67.80,.00,Fixtures and Fittings -E12,5942,Book Stores
01/07/17,Bi-Borough Corporate Services,AMAZON.CO.UK,39.99,39.99,.00,Stationery,5999,Miscellaneous and Specialty Retail Stores
01/07/17,Bi-Borough Corporate Services,AMAZON.CO.UK,39.99,39.99,.00,Stationery,5999,Miscellaneous and Specialty Retail Stores
01/07/17,Bi-Borough Corporate Services,AMAZON.CO.UK,39.99,39.99,.00,Stationery,5999,Miscellaneous and Specialty Retail Stores
01/07/17,City Management and Communities,COSTA COFFEE,13.05,10.88,2.17,Subsistence Expenses,5814,Fast Food Restaurants
01/07/17,PPC,DOUBLE TREE,502.00,502.00,.00,Hospitality,3692,DOUBLETREE HOTELS
01/07/17,Tri-borough Libraries and Archives,FACEBK EWLASDJLE2,9.68,9.68,.00,Activities and Events,7311,Advertising Services
01/07/17,Tri-Borough Childrens Services,GWR LON PADD TO,133.00,133.00,.00,Staff travelling expenses,4112,Passenger Railways
01/07/17,City Management and Communities,LEYLAND LSDM VICTORIA,6.98,6.98,.00,"Equipment, furniture and materials",5251,Hardware Stores
01/07/17,"Growth, Planning and Housing",OYSTER AUTOTOPUP,20.00,20.00,.00,Staff travelling expenses,4112,Passenger Railways
01/07/17,Tri-Borough ASC and NHS Integrated Commi,OYSTER AUTOTOPUP,20.00,20.00,.00,Staff travelling expenses,4112,Passenger Railways
01/07/17,City Management and Communities,OYSTER AUTOTOPUP,20.00,20.00,.00,Staff travelling expenses,4112,Passenger Railways
01/07/17,City Management and Communities,OYSTER AUTOTOPUP,20.00,20.00,.00,Staff travelling expenses,4112,Passenger Railways
01/07/17,Tri-Borough ASC and NHS Integrated Commi,OYSTER BUS AUTOTOP,20.00,20.00,.00,Staff travelling expenses,4112,Passenger Railways
01/07/17,City Management and Communities,OYSTER BUS AUTOTOP,20.00,20.00,.00,Staff travelling expenses,4112,Passenger Railways
01/07/17,PPC,WWW.CONCERTNETWORKS.CO,87.00,72.50,14.50,Subscriptions,7379,"Computer Maintenance and Repair Services, Not Elsewhere Classified"
02/07/17,Tri-Borough Childrens Services,Amazon UK Marketplace,7.72,7.72,.00,Bks (Lib. & Txt bks) -E19,5942,Book Stores
02/07/17,WAES,Amazon UK Marketplace,97.05,97.05,.00,"Equipment, furniture and materials",5942,Book Stores
02/07/17,City Management and Communities,Amazon UK Marketplace,119.04,100.09,18.95,IT Hardware Purchase,5942,Book Stores
02/07/17,City Treasurers,BILL'S VICTORIA,27.11,21.69,5.42,Catering,5812,Eating places and Restaurants
02/07/17,PPC,Dropbox FFKJW2PT7T3S,7.99,7.99,.00,IT Software Purchase,4816,Computer Network/Information Services
02/07/17,PPC,Dropbox J45JJZTDZT51,7.99,7.99,.00,IT Software Purchase,4816,Computer Network/Information Services
02/07/17,City Management and Communities,HAYMARKET SUBSCRIPTION,283.00,283.00,.00,Subscriptions,2741,Miscellaneous Publishing and Printing
02/07/17,Tri-Borough Childrens Services,LUL TICKET MACHINE,15.00,15.00,.00,Section 17 Other,4112,Passenger Railways
02/07/17,Tri-Borough ASC and NHS Integrated Commi,OYSTER AUTOTOPUP,20.00,20.00,.00,Staff travelling expenses,4112,Passenger Railways
02/07/17,City Management and Communities,OYSTER AUTOTOPUP,20.00,20.00,.00,Staff travelling expenses,4112,Passenger Railways
02/07/17,Tri-Borough ASC and NHS Integrated Commi,OYSTER AUTOTOPUP,20.00,20.00,.00,Staff travelling expenses,4112,Passenger Railways
02/07/17,City Management and Communities,OYSTER AUTOTOPUP,20.00,20.00,.00,Staff travelling expenses,4112,Passenger Railways
02/07/17,Tri-Borough ASC and NHS Integrated Commi,OYSTER BUS AUTOTOP,20.00,20.00,.00,Staff travelling expenses,4112,Passenger Railways
02/07/17,City Management and Communities,OYSTER BUS AUTOTOP,20.00,20.00,.00,Staff travelling expenses,4112,Passenger Railways
02/07/17,Tri-Borough ASC and NHS Integrated Commi,WWW.ADDISONLEE.COM,33.15,33.15,.00,Activities and Events,4121,Taxicabs and Limousines
03/07/17,Tri-Borough Childrens Services,Amazon EU,1.89,1.58,.31,Fixtures and Fittings -E12,5969,Direct Marketing - Not Elsewhere Classified
03/07/17,Tri-borough Libraries and Archives,Amazon EU,8.98,8.98,.00,Activities and Events,5969,Direct Marketing - Not Elsewhere Classified
03/07/17,Tri-borough Libraries and Archives,Amazon UK Marketplace,30.42,30.42,.00,"Equipment, furniture and materials",5942,Book Stores
03/07/17,Tri-borough Libraries and Archives,Amazon UK Marketplace,6.09,6.09,.00,"Equipment, furniture and materials",5942,Book Stores
03/07/17,Tri-Borough Childrens Services,Amazon UK Marketplace,2.81,2.81,.00,Bks (Lib. & Txt bks) -E19,5942,Book Stores
03/07/17,Tri-Borough Childrens Services,Amazon UK Marketplace,16.90,16.90,.00,Bks (Lib. & Txt bks) -E19,5942,Book Stores
03/07/17,Tri-Borough Childrens Services,Amazon UK Marketplace,9.25,9.25,.00,Bks (Lib. & Txt bks) -E19,5942,Book Stores
03/07/17,Corporate Services WCC,Amazon web services,82.02,82.02,.00,IT Software Purchase,7399,"Business Services, Not Elsewhere Classified"
03/07/17,City Treasurers,BILL'S VICTORIA,100.91,80.73,20.18,Catering,5812,Eating places and Restaurants
03/07/17,Chief of Staff,"BOOTS,0797",3.75,3.75,.00,Stationery,5912,Drug Stores and Pharmacies
03/07/17,Tri-Borough Childrens Services,BURGER KING,11.58,11.58,.00,Activities and Events,5812,Eating places and Restaurants
03/07/17,Tri-Borough Childrens Services,CAFFE NERO 296 BRIXTON,5.90,5.90,.00,Subsistence Expenses,5814,Fast Food Restaurants
03/07/17,Tri-Borough Childrens Services,CAFFE NERO 495 LADBROK,4.40,4.40,.00,Section 17 Other,5814,Fast Food Restaurants
03/07/17,Tri-Borough Childrens Services,CAREM LTD,450.00,375.00,75.00,Fixtures and Fittings -E12,5074,Plumbing and Heating Equipment and Supplies
03/07/17,Tri-Borough Childrens Services,CHILTERN - MARYLEBONE,33.00,33.00,.00,Activities and Events,4112,Passenger Railways
03/07/17,Chief of Staff,CO-OP GROUP 500593,10.52,10.52,.00,Hospitality,5411,Grocery Stores
03/07/17,PPC,EAT LTD,5.55,4.62,.93,Catering,5812,Eating places and Restaurants
03/07/17,Tri-Borough ASC and NHS Integrated Commi,G B L WHEELCHAIR S,24.00,24.00,.00,Hired and Contracted Services,5200,Home Supply Warehouse Stores
03/07/17,Tri-Borough Childrens Services,GOLBORNE DELI,26.30,26.30,.00,Activities and Events,5812,Eating places and Restaurants
03/07/17,Tri-Borough Childrens Services,GOLDEN NEWS,8.20,8.20,.00,Staff travelling expenses,5994,News Dealers and Newsstands
03/07/17,Tri-Borough ASC and NHS Integrated Commi,GWR LON PADD TO,89.30,89.30,.00,Staff travelling expenses,4112,Passenger Railways
03/07/17,Tri-Borough ASC and NHS Integrated Commi,GWR LOND PADD SST,10.00,10.00,.00,Staff travelling expenses,4112,Passenger Railways
03/07/17,Corporate Services WCC,GWR WEBSALES,480.55,480.55,.00,Staff travelling expenses,4112,Passenger Railways
03/07/17,Corporate Services WCC,GWR WEBSALES,124.80,124.80,.00,Staff travelling expenses,4112,Passenger Railways
03/07/17,Corporate Services WCC,GWR WEBSALES,205.95,205.95,.00,Staff travelling expenses,4112,Passenger Railways
03/07/17,Tri-Borough ASC and NHS Integrated Commi,HMCOURTS-SERVICE.G,20.00,20.00,.00,Legal Fees,9222,Fines
03/07/17,Tri-Borough Childrens Services,IKEA ONLINE,114.00,114.00,.00,"Equipment, furniture and materials",5719,Miscellaneous Home Furnishing Specialty Stores
03/07/17,Tri-Borough Childrens Services,KIDZANIA,364.00,303.42,60.58,Sch Trips & Educ Vsits 0,7911,"Dance Halls, Studios and Schools"
03/07/17,"Growth, Planning and Housing",LAND REGISTRY,3.00,3.00,.00,Legal Fees,9399,Government Services ( Not Elsewhere Classified)
03/07/17,Tri-Borough Childrens Services,LND & STH EAST RW,25.80,25.80,.00,Staff travelling expenses,4112,Passenger Railways
03/07/17,Tri-Borough Childrens Services,LUL TICKET MACHINE,5.00,5.00,.00,Section 17 Other,4112,Passenger Railways
03/07/17,Tri-Borough Childrens Services,LUL TICKET MACHINE,20.00,20.00,.00,Staff travelling expenses,4112,Passenger Railways
03/07/17,Tri-Borough Childrens Services,LUL TICKET MACHINE,10.00,10.00,.00,Staff travelling expenses,4112,Passenger Railways
03/07/17,Tri-Borough Childrens Services,LUL TICKET MACHINE,30.00,30.00,.00,Client travelling expenses,4112,Passenger Railways
03/07/17,Tri-Borough Childrens Services,LUL TICKET MACHINE,12.30,12.30,.00,Staff travelling expenses,4112,Passenger Railways
03/07/17,Tri-Borough Childrens Services,LUL TICKET MACHINE,10.00,10.00,.00,Staff travelling expenses,4112,Passenger Railways
03/07/17,Tri-Borough Childrens Services,LUL TICKET MACHINE,20.00,20.00,.00,Young Persons Subsistence Allowance,4112,Passenger Railways
03/07/17,Chief of Staff,MARKS&SPENCER PLC,36.85,36.85,.00,Hospitality,5411,Grocery Stores
03/07/17,PPC,MARKS&SPENCER PLC,8.35,8.35,.00,Fees,5411,Grocery Stores
03/07/17,Tri-Borough Childrens Services,MARKS&SPENCER PLC SACA,3.60,3.60,.00,Subsistence Expenses,5411,Grocery Stores
03/07/17,Tri-Borough Childrens Services,MILLENNIUM,38.89,38.89,.00,Section 17 Other,3741,MILLENIUM BROADWAY HOTEL
03/07/17,Tri-Borough Childrens Services,NEW SOUTHERN RAILW,26.30,26.30,.00,Staff travelling expenses,4112,Passenger Railways
03/07/17,Tri-Borough ASC and NHS Integrated Commi,PARK CAFE,5.00,5.00,.00,Day Opportunities,5812,Eating places and Restaurants
03/07/17,Tri-Borough ASC and NHS Integrated Commi,PARK CAFE,2.50,2.50,.00,Day Opportunities,5812,Eating places and Restaurants
03/07/17,Tri-Borough Childrens Services,PIZZA HUT DELIVERY,25.49,25.49,.00,Interview Expenses,5812,Eating places and Restaurants
03/07/17,City Management and Communities,POST OFFICE COUNTER,71.95,71.95,.00,Postage,9402,Postal Services - Government Only
03/07/17,Bi-Borough Corporate Services,POSTOFFICE SELFSERVICE,7.25,7.25,.00,Postage,9402,Postal Services - Government Only
03/07/17,PPC,PRET A MANGER,11.35,11.35,.00,Catering,5812,Eating places and Restaurants
03/07/17,Tri-Borough ASC and NHS Integrated Commi,RB KEN&CHELSEA,21.26,21.26,.00,Licences,9399,Government Services ( Not Elsewhere Classified)
03/07/17,City Management and Communities,RINGGO PARKING,15.10,14.99,.11,Tport - Prkng & Congestion Chgs,7523,Automobile Parking Lots and Garages
03/07/17,Chief of Staff,ROBERT DYAS HOLDNG LTD,23.02,23.02,.00,"Equipment, furniture and materials",5251,Hardware Stores
03/07/17,Chief of Staff,SAINSBURYS LOCAL 4460,4.45,4.45,.00,Hospitality,5411,Grocery Stores
03/07/17,PPC,SAINSBURYS SACAT (4286,15.37,15.37,.00,Catering,5411,Grocery Stores
03/07/17,Tri-Borough ASC and NHS Integrated Commi,SAINSBURYS SACAT 0602,4.26,4.26,.00,Subsistence Expenses,5411,Grocery Stores
03/07/17,Tri-Borough Childrens Services,TESCO STORES 3012,5.71,5.71,.00,Interview Expenses,5411,Grocery Stores
03/07/17,Tri-borough Libraries and Archives,TESCO STORES 5177,1.00,1.00,.00,Catering,5411,Grocery Stores
03/07/17,Tri-Borough Childrens Services,TESCO STORES 6109,31.03,31.03,.00,Provisions -E25,5411,Grocery Stores
03/07/17,Corporate Services WCC,THE GRAND HOTEL SWANSE,690.00,575.00,115.00,Subsistence Expenses,7011,"Lodging - Hotels, Motels, Resorts, Central Reservation Services (not elsewhere classified)"
03/07/17,Corporate Services WCC,THE GRAND HOTEL SWANSE,-69.00,-57.50,-11.50,Subsistence Expenses,7011,"Lodging - Hotels, Motels, Resorts, Central Reservation Services (not elsewhere classified)"
03/07/17,Tri-Borough Childrens Services,TRAVEL CAR SERVICES,5.50,5.50,.00,Staff travelling expenses,4121,Taxicabs and Limousines
03/07/17,Tri-Borough Childrens Services,TRAVEL CAR SERVICES,5.50,5.50,.00,Staff travelling expenses,4121,Taxicabs and Limousines
03/07/17,Tri-Borough ASC and NHS Integrated Commi,TRI BOROUGH- LISSON GR,4.75,4.75,.00,Subsistence Expenses,5811,Caterers
03/07/17,Tri-Borough ASC and NHS Integrated Commi,TRI BOROUGH- LISSON GR,3.00,3.00,.00,Subsistence Expenses,5811,Caterers
03/07/17,Tri-Borough Childrens Services,UPPER CRUST,4.79,4.79,.00,Subsistence Expenses,5814,Fast Food Restaurants
03/07/17,City Treasurers,VICTOR HOTEL,665.00,665.00,.00,Staff travelling expenses,7011,"Lodging - Hotels, Motels, Resorts, Central Reservation Services (not elsewhere classified)"
03/07/17,Tri-Borough Childrens Services,WCT CATERING,5.50,5.50,.00,Subsistence Expenses,4112,Passenger Railways
03/07/17,Tri-Borough Childrens Services,WEST COAST TRAINS,85.20,85.20,.00,Staff travelling expenses,4112,Passenger Railways
03/07/17,Tri-Borough Childrens Services,WESTMINSTER PARKING,2.86,2.86,.00,Tport - Prkng & Congestion Chgs,7523,Automobile Parking Lots and Garages
03/07/17,Tri-Borough ASC and NHS Integrated Commi,WWW.ADDISONLEE.COM,20.25,20.25,.00,Staff travelling expenses,4121,Taxicabs and Limousines
03/07/17,"Growth, Planning and Housing",WWW.FITFORSPORT.CO.UK,75.07,75.07,.00,Hired and Contracted Services,7999,Recreation Services (Not Elsewhere Classified)
04/07/17,Tri-borough Libraries and Archives,ALTMAN INTERGRATED TEC,61.20,51.00,10.20,Stationery,5734,Computer Software Stores
04/07/17,Tri-Borough Childrens Services,Amazon EU,9.98,8.32,1.66,"Equipment, furniture and materials",5969,Direct Marketing - Not Elsewhere Classified
04/07/17,PPC,Amazon UK Marketplace,187.54,174.67,12.87,"Equipment, furniture and materials",5942,Book Stores
04/07/17,Bi-Borough Corporate Services,Amazon UK Marketplace,50.23,50.23,.00,Stationery,5942,Book Stores
04/07/17,Tri-Borough Childrens Services,Amazon UK Marketplace,18.00,18.00,.00,Bks (Lib. & Txt bks) -E19,5942,Book Stores
04/07/17,City Treasurers,Amazon UK Marketplace,35.98,35.98,.00,"Equipment, furniture and materials",5942,Book Stores
04/07/17,Tri-borough Libraries and Archives,Amazon UK Marketplace,33.91,33.91,.00,"Equipment, furniture and materials",5999,Miscellaneous and Specialty Retail Stores
04/07/17,Tri-borough Libraries and Archives,AMAZON.CO.UK,2.99,2.99,.00,"Equipment, furniture and materials",5999,Miscellaneous and Specialty Retail Stores
04/07/17,Tri-Borough Childrens Services,ASHRA'S,5.50,5.50,.00,Staff travelling expenses,5994,News Dealers and Newsstands
04/07/17,Tri-Borough Childrens Services,ASHRA'S,10.50,10.50,.00,Client travelling expenses,5994,News Dealers and Newsstands
04/07/17,Tri-borough Libraries and Archives,BARRY BROS SECURITY DE,40.00,33.33,6.67,Section 17 Other,7393,Protective and Security Services - Including Armored Cars and Guard Dogs
04/07/17,Tri-Borough Childrens Services,BOOTS 1067,2.00,2.00,.00,Subsistence Expenses,5912,Drug Stores and Pharmacies
04/07/17,Bi-Borough Corporate Services,BREADLINE,6.20,6.20,.00,Subsistence Expenses,5814,Fast Food Restaurants
04/07/17,Tri-Borough ASC and NHS Integrated Commi,CAFFE NERO 500 MAIDA V,7.55,7.55,.00,Day Opportunities,5814,Fast Food Restaurants
04/07/17,PPC,EAT LTD,4.45,3.71,.74,Catering,5812,Eating places and Restaurants
04/07/17,City Treasurers,HAMPTON INNS,199.00,199.00,.00,Temporary Accommodation,3665,HAMPTON INNS
04/07/17,Corporate Services WCC,LAS IGUANAS,140.56,117.14,23.42,Subsistence Expenses,5812,Eating places and Restaurants
04/07/17,Tri-Borough Childrens Services,LONDON OVERGROUND SST,5.00,5.00,.00,Staff travelling expenses,4112,Passenger Railways
04/07/17,Tri-Borough Childrens Services,LUL TICKET MACHINE,5.00,5.00,.00,Activities and Events,4112,Passenger Railways
04/07/17,Tri-Borough Childrens Services,LUL TICKET MACHINE,5.00,5.00,.00,LAC Contact,4112,Passenger Railways
04/07/17,Tri-Borough Childrens Services,LUL TICKET MACHINE,15.00,15.00,.00,Staff travelling expenses,4112,Passenger Railways
04/07/17,Tri-Borough Childrens Services,LUL TICKET MACHINE,10.00,10.00,.00,Staff travelling expenses,4112,Passenger Railways
04/07/17,Tri-Borough Childrens Services,LUL TICKET MACHINE,20.00,20.00,.00,Young Persons Subsistence Allowance,4112,Passenger Railways
04/07/17,Bi-Borough Corporate Services,LUL TICKET MACHINE,42.70,42.70,.00,Staff travel expense,4112,Passenger Railways
04/07/17,Tri-Borough ASC and NHS Integrated Commi,LUL TICKET MACHINE,10.00,10.00,.00,Client travelling expenses,4112,Passenger Railways
04/07/17,Tri-Borough Childrens Services,LUL TICKET MACHINE,12.30,12.30,.00,Staff travelling expenses,4112,Passenger Railways
04/07/17,Tri-Borough Childrens Services,MAKAN CAFE,35.20,35.20,.00,Section 17 Other,5812,Eating places and Restaurants
04/07/17,PPC,MARKS&SPENCER PLC,36.50,36.50,.00,Catering,5411,Grocery Stores
04/07/17,PPC,MARKS&SPENCER PLC,8.35,8.35,.00,Fees,5411,Grocery Stores
04/07/17,"Growth, Planning and Housing",MARKS&SPENCER PLC,24.05,24.05,.00,Subsistence Expenses,5411,Grocery Stores
04/07/17,Bi-Borough Corporate Services,MCDONALDS,7.47,7.47,.00,Subsistence Expenses,5814,Fast Food Restaurants
04/07/17,PPC,NAMESCO,47.99,39.99,8.00,Hired and Contracted Services,4816,Computer Network/Information Services
04/07/17,Tri-Borough Childrens Services,NEW SOUTHERN RAILW,35.40,35.40,.00,Staff travelling expenses,4112,Passenger Railways
04/07/17,Tri-Borough Childrens Services,NEW SOUTHERN RAILW,5.00,5.00,.00,Staff travelling expenses,4112,Passenger Railways
04/07/17,Tri-Borough Childrens Services,NORRIS NEWS,20.50,20.50,.00,Staff travelling expenses,5994,News Dealers and Newsstands
04/07/17,City Management and Communities,OYSTER BUS AUTOTOP,20.00,20.00,.00,Staff travelling expenses,4112,Passenger Railways
04/07/17,City Management and Communities,OYSTER RENEW WEB,-20.00,-20.00,.00,Staff travelling expenses,4112,Passenger Railways
04/07/17,City Management and Communities,OYSTER RENEW WEB,50.00,50.00,.00,Staff travelling expenses,4112,Passenger Railways
04/07/17,City Management and Communities,PAYPAL  JOHNLEWISPL,22.00,22.00,.00,IT Hardware Purchase,5311,Department Stores
04/07/17,Chief of Staff,PREMIER INN44521860,214.98,214.98,.00,Staff travelling expenses,3811,Premier Travel Inn
04/07/17,PPC,PRET A MANGER,11.39,9.51,1.88,Catering,5812,Eating places and Restaurants
04/07/17,City Management and Communities,RB KEN&CHELSEA,7.03,7.03,.00,Tport - Prkng & Congestion Chgs,7523,Automobile Parking Lots and Garages
04/07/17,City Management and Communities,RB KEN&CHELSEA,5.28,5.28,.00,Tport - Prkng & Congestion Chgs,7523,Automobile Parking Lots and Garages
04/07/17,Tri-Borough Childrens Services,RB KEN&CHELSEA,21.87,21.87,.00,Contingency,9399,Government Services ( Not Elsewhere Classified)
04/07/17,City Management and Communities,"RSTUDIO, INC.",78.91,78.91,.00,IT Software Purchase,7372,"Computer Programming, Integrated Systems Design and Data Processing Services"
04/07/17,Tri-Borough Childrens Services,RYMAN 1085,7.98,7.98,.00,Stationery,5943,"Stationery Stores, Office and School Supply Stores"
04/07/17,Tri-Borough Childrens Services,SELFSERVE TICKET,38.90,38.90,.00,Staff travelling expenses,4112,Passenger Railways
04/07/17,City Management and Communities,SENATOR DEVELOPMEN,33.99,28.33,5.66,"Print, Pub & adverts",5231,Glass Stores
04/07/17,City Management and Communities,SOUTHERN RAILWAY L,18.30,18.30,.00,"Equipment, furniture and materials",4112,Passenger Railways
04/07/17,Tri-Borough Childrens Services,T K MAXX,11.00,11.00,.00,Internal Fostering,5331,Variety Stores
04/07/17,Tri-Borough Childrens Services,T K MAXX,9.99,9.99,.00,Internal Fostering,5331,Variety Stores
04/07/17,Tri-Borough ASC and NHS Integrated Commi,TESCO STORES,14.76,14.76,.00,Catering,5411,Grocery Stores
04/07/17,Tri-Borough Childrens Services,TESCO STORES 4447,18.00,18.00,.00,Before & After Sch Clubs Exp E24,5411,Grocery Stores
04/07/17,Tri-Borough ASC and NHS Integrated Commi,TESCO STORES 5565,2.60,2.60,.00,"Equipment, furniture and materials",5411,Grocery Stores
04/07/17,Tri-Borough ASC and NHS Integrated Commi,TESCO STORES 5565,1.00,1.00,.00,Stationery,5411,Grocery Stores
04/07/17,Tri-Borough Childrens Services,THE BALCONY-WATERLOO S,4.35,4.35,.00,Subsistence Expenses,5811,Caterers
04/07/17,Tri-Borough Childrens Services,THE NEW COOKER CEN,1000.00,1000.00,.00,S24 Support allowance,5732,Electronic Sales
04/07/17,Tri-Borough ASC and NHS Integrated Commi,Wordery,13.44,13.44,.00,"Equipment, furniture and materials",5942,Book Stores
04/07/17,Tri-Borough Childrens Services,WWW.GOSPORTFERRY.CO.UK,3.50,3.50,.00,Staff travelling expenses,4111,"Local/Suburban Commuter Passenger Transportation - Railroads, Feries, Local Water Transportation."
04/07/17,Tri-Borough Childrens Services,WWW.HOBGOBLIN.COM,418.44,348.70,69.74,Activities and Events,5733,"Music Stores, Musical Instruments, Piano Sheet Music"
04/07/17,Tri-Borough Childrens Services,WWW.UPAD.CO.UK,75.00,75.00,.00,Temporary Accommodation,6513,Real Estate Agents and Managers - Rentals
05/07/17,Tri-borough Libraries and Archives,Amazon EU,38.93,38.93,.00,"Equipment, furniture and materials",5969,Direct Marketing - Not Elsewhere Classified
05/07/17,Tri-borough Libraries and Archives,Amazon EU,58.14,58.14,.00,"Equipment, furniture and materials",5969,Direct Marketing - Not Elsewhere Classified
05/07/17,Tri-borough Libraries and Archives,Amazon EU,43.97,43.97,.00,"Equipment, furniture and materials",5969,Direct Marketing - Not Elsewhere Classified
05/07/17,Tri-borough Libraries and Archives,Amazon EU,10.49,10.49,.00,"Equipment, furniture and materials",5969,Direct Marketing - Not Elsewhere Classified
05/07/17,Tri-borough Libraries and Archives,Amazon EU,48.81,48.81,.00,"Equipment, furniture and materials",5969,Direct Marketing - Not Elsewhere Classified
05/07/17,Tri-borough Libraries and Archives,Amazon UK Marketplace,2.94,2.94,.00,Stationery,5942,Book Stores
05/07/17,City Management and Communities,Amazon UK Marketplace,19.99,19.99,.00,IT Hardware Purchase,5942,Book Stores
05/07/17,Tri-borough Libraries and Archives,Amazon UK Marketplace,2.81,2.81,.00,"Equipment, furniture and materials",5942,Book Stores
05/07/17,Tri-borough Libraries and Archives,Amazon UK Marketplace,2.81,2.81,.00,"Equipment, furniture and materials",5942,Book Stores
05/07/17,PPC,AMAZON.CO.UK,10.29,9.04,1.25,Stationery,5999,Miscellaneous and Specialty Retail Stores
05/07/17,Tri-borough Libraries and Archives,AMAZON.CO.UK,2.81,2.81,.00,"Equipment, furniture and materials",5999,Miscellaneous and Specialty Retail Stores
05/07/17,PPC,ARGOS LTD,15.04,15.04,.00,"Equipment, furniture and materials",5310,Discount Stores
05/07/17,City Treasurers,BILL'S VICTORIA,21.15,21.15,.00,Catering,5812,Eating places and Restaurants
05/07/17,Tri-Borough Childrens Services,CAFFE NERO 495 LADBROK,8.70,8.70,.00,Section 17 Other,5814,Fast Food Restaurants
05/07/17,City Treasurers,COSTA COFFEE,2.95,2.46,.49,Catering,5814,Fast Food Restaurants
05/07/17,Tri-borough Libraries and Archives,CREATIVE BEADCRAFT,73.70,61.42,12.28,"Equipment, furniture and materials",5970,Artist�s Supply and Craft Shops
05/07/17,Tri-borough Libraries and Archives,CREATIVE BEADCRAFT,50.59,42.15,8.44,"Equipment, furniture and materials",5970,Artist�s Supply and Craft Shops
05/07/17,Tri-Borough Childrens Services,DORIS FLORIST,36.00,36.00,.00,Subsistence Expenses,5992,Florists
05/07/17,City Treasurers,DOUBLETREE,714.00,594.99,119.01,Hospitality,3692,DOUBLETREE HOTELS
05/07/17,Tri-Borough ASC and NHS Integrated Commi,DRAGON KING,5.00,5.00,.00,Subsistence Expenses,5812,Eating places and Restaurants
05/07/17,Tri-Borough Childrens Services,GOLDEN NEWS,12.50,12.50,.00,Staff travelling expenses,5994,News Dealers and Newsstands
05/07/17,Tri-Borough ASC and NHS Integrated Commi,GWR LOND PADD SST,5.00,5.00,.00,Staff travelling expenses,4112,Passenger Railways
05/07/17,Chief of Staff,HALFORDS 0537,22.47,22.47,.00,Staff travelling expenses,5940,Bicycle Shops - Sales and Service
05/07/17,Tri-Borough ASC and NHS Integrated Commi,HAMMERSMITH RENAL PTS,4.25,4.25,.00,Subsistence Expenses,5811,Caterers
05/07/17,Bi-Borough Corporate Services,HM PASSPORT,90.00,90.00,.00,Section 17 Other,9399,Government Services ( Not Elsewhere Classified)
05/07/17,Tri-Borough ASC and NHS Integrated Commi,HMCOURTS-SERVICE.G,40.00,40.00,.00,Legal Fees,9222,Fines
05/07/17,Tri-Borough Childrens Services,LONDON OVERGROUND SST,50.00,50.00,.00,Staff travelling expenses,4112,Passenger Railways
05/07/17,Tri-Borough Childrens Services,LUL TICKET MACHINE,10.00,10.00,.00,Sch Trips & Educ Vsits 0,4112,Passenger Railways
05/07/17,Tri-Borough Childrens Services,LUL TICKET MACHINE,10.00,10.00,.00,Sch Trips & Educ Vsits 0,4112,Passenger Railways
05/07/17,Tri-Borough Childrens Services,LUL TICKET MACHINE,5.00,5.00,.00,Sch Trips & Educ Vsits 0,4112,Passenger Railways
05/07/17,Tri-Borough Childrens Services,LUL TICKET MACHINE,12.30,12.30,.00,Staff travelling expenses,4112,Passenger Railways
05/07/17,Tri-Borough Childrens Services,LUL TICKET MACHINE,10.00,10.00,.00,Section 17 Other,4112,Passenger Railways
05/07/17,Tri-Borough Childrens Services,LUL TICKET MACHINE,15.00,15.00,.00,Section 17 Other,4112,Passenger Railways
05/07/17,PPC,M&S SIMPLY FOOD - SSP,7.30,7.30,.00,Catering,5499,Misc. Food Stores - Convenience Stores and Specialty Markets
05/07/17,Tri-Borough Childrens Services,MAPLIN MARBLE ARCH W2,14.99,12.49,2.50,IT Hardware Purchase,4812,Telecommunications Equipment including telephone sales
05/07/17,PPC,MARKS&SPENCER PLC,9.10,9.10,.00,Catering,5411,Grocery Stores
05/07/17,PPC,MARKS&SPENCER PLC,1.80,1.80,.00,Catering,5411,Grocery Stores
05/07/17,City Treasurers,MILLIES COOKIES,11.99,11.99,.00,Catering,5814,Fast Food Restaurants
05/07/17,Tri-Borough Childrens Services,NANDOS EUSTON,36.65,36.65,.00,Section 17 Other,5812,Eating places and Restaurants
05/07/17,City Treasurers,OYPLA.COM,535.82,428.66,107.16,Furn & Equip - non Tchng E22,5211,Lumber and Building Materials Stores
05/07/17,City Management and Communities,OYSTER AUTOTOPUP,40.00,40.00,.00,Staff travelling expenses,4112,Passenger Railways
05/07/17,Tri-Borough ASC and NHS Integrated Commi,OYSTER AUTOTOPUP,20.00,20.00,.00,Staff travelling expenses,4112,Passenger Railways
05/07/17,City Management and Communities,OYSTER AUTOTOPUP,40.00,40.00,.00,Staff travelling expenses,4112,Passenger Railways
05/07/17,City Management and Communities,OYSTER BUS AUTOTOP,40.00,40.00,.00,Staff travelling expenses,4112,Passenger Railways
05/07/17,City Management and Communities,OYSTER BUS AUTOTOP,20.00,20.00,.00,Staff travelling expenses,4112,Passenger Railways
05/07/17,Tri-Borough Childrens Services,OYSTER BUS AUTOTOP,20.00,20.00,.00,Staff travelling expenses,4112,Passenger Railways
05/07/17,WAES,PAGEONE,888.00,740.00,148.00,Licences,5968,Direct Marketing - Continuity/Subscription Merchant
05/07/17,PPC,PAPERCHASE,5.50,5.50,.00,Stationery,5947,"Card Shops, Gift, Novelty, and Souvenir Shops"
05/07/17,City Treasurers,PAYPAL  HOTELS.COM,1255.87,1046.56,209.31,Temporary Accommodation,4722,Travel Agencies and Tour Operations
05/07/17,Tri-Borough Childrens Services,POST OFFICE COUNTER,2.08,2.08,.00,Postage,9402,Postal Services - Government Only
05/07/17,City Treasurers,PRET A MANGER,4.70,3.92,.78,Catering,5812,Eating places and Restaurants
05/07/17,PPC,PRET A MANGER,5.80,5.80,.00,Catering,5812,Eating places and Restaurants
05/07/17,PPC,PRET A MANGER,9.00,9.00,.00,Catering,5812,Eating places and Restaurants
05/07/17,Tri-Borough Childrens Services,ROWANS TEN PIN BWL,336.00,280.00,56.00,Sch Trips & Educ Vsits 0,7933,Bowling Alleys
05/07/17,Chief of Staff,SAINSBURYS 0009,37.70,37.70,.00,"Equipment, furniture and materials",5411,Grocery Stores
05/07/17,PPC,SAINSBURYS 0932,197.10,197.10,.00,Catering,5411,Grocery Stores
05/07/17,Tri-Borough Childrens Services,SAINSBURYS SACAT 4238,6.00,6.00,.00,Subsistence Expenses,5411,Grocery Stores
05/07/17,Tri-Borough Childrens Services,SAINSBURYS TO YOU 0602,73.95,73.95,.00,"Admin Stat., Print & Reprog. E22",5411,Grocery Stores
05/07/17,Tri-Borough ASC and NHS Integrated Commi,SOOR RESTAURANT,5.00,5.00,.00,Subsistence Expenses,5812,Eating places and Restaurants
05/07/17,Tri-Borough Childrens Services,STARBUCKS,6.65,6.65,.00,Section 17 Other,5814,Fast Food Restaurants
05/07/17,Tri-Borough Childrens Services,SUBWAY PADDINGTON,5.00,5.00,.00,Subsistence Expenses,5812,Eating places and Restaurants
05/07/17,Tri-Borough ASC and NHS Integrated Commi,TESCO STORES 3012,1.05,1.05,.00,Subsistence Expenses,5411,Grocery Stores
05/07/17,"Growth, Planning and Housing",Trainline,48.45,48.45,.00,Staff travelling expenses,4112,Passenger Railways
05/07/17,Tri-borough Libraries and Archives,TVLICENSING.CO.UK,147.00,147.00,.00,Conference Expenses,7392,"Management, Consulting, and Public Relations Services"
05/07/17,Tri-Borough Childrens Services,Virgin Trains,82.90,82.90,.00,Staff travelling expenses,4112,Passenger Railways
05/07/17,City Treasurers,Virgin Trains,34.00,34.00,.00,Staff travelling expenses,4112,Passenger Railways
05/07/17,Tri-Borough Childrens Services,WWW.ACCESSTRAININGUK.C,650.00,650.00,.00,S24 Support allowance,8249,Vocational Schools and Trade Schools
05/07/17,Tri-Borough Childrens Services,WWW.POSTURITE.CO.UK,125.98,125.98,.00,IT Hardware Purchase,5021,Office and Commercial Furniture
05/07/17,Tri-Borough Childrens Services,WWW.VIRGINTRAINS.CO.UK,427.50,427.50,.00,Sch Trips & Educ Vsits 0,4112,Passenger Railways
05/07/17,Tri-Borough Childrens Services,WWW.VIRGINTRAINS.CO.UK,427.50,427.50,.00,Sch Trips & Educ Vsits 0,4112,Passenger Railways
06/07/17,Tri-borough Libraries and Archives,Amazon EU,28.51,23.76,4.75,Activities and Events,5969,Direct Marketing - Not Elsewhere Classified
06/07/17,Chief of Staff,Amazon UK Marketplace,26.49,22.07,4.42,"Equipment, furniture and materials",5942,Book Stores
06/07/17,PPC,Amazon UK Marketplace,62.91,62.91,.00,Stationery,5942,Book Stores
06/07/17,Tri-borough Libraries and Archives,Amazon UK Marketplace,2.81,2.81,.00,"Equipment, furniture and materials",5942,Book Stores
06/07/17,Tri-borough Libraries and Archives,Amazon UK Marketplace,24.25,24.25,.00,"Equipment, furniture and materials",5942,Book Stores
06/07/17,PPC,Amazon UK Marketplace,97.72,89.73,7.99,Fees,5942,Book Stores
06/07/17,Chief of Staff,AMAZON.CO.UK,79.76,66.47,13.29,"Equipment, furniture and materials",5999,Miscellaneous and Specialty Retail Stores
06/07/17,Tri-Borough Childrens Services,ARGOS DIRECT,113.94,113.94,.00,Section 17 Other,5310,Discount Stores
06/07/17,Tri-Borough Childrens Services,ARGOS DIRECT,80.00,80.00,.00,Section 17 Other,5310,Discount Stores
06/07/17,Tri-Borough Childrens Services,ASHRA'S,10.50,10.50,.00,Staff travelling expenses,5994,News Dealers and Newsstands
06/07/17,City Management and Communities,CARLUCCIOS HIGH STREET,16.30,13.59,2.71,Staff travelling expenses,5812,Eating places and Restaurants
06/07/17,Tri-Borough Childrens Services,CMT (UK) LTD - GLASGOW,4.84,4.84,.00,Staff travelling expenses,4121,Taxicabs and Limousines
06/07/17,City Treasurers,COSTA COFFEE,19.00,19.00,.00,Catering,5814,Fast Food Restaurants
06/07/17,Tri-Borough Childrens Services,GREATER ANGLIA T/O,21.70,21.70,.00,Staff travelling expenses,4112,Passenger Railways
06/07/17,Tri-Borough Childrens Services,GWR LON PADD TO,46.80,46.80,.00,Staff travelling expenses,4112,Passenger Railways
06/07/17,Tri-Borough ASC and NHS Integrated Commi,HMCOURTS-SERVICE.G,60.00,60.00,.00,Fees,9222,Fines
06/07/17,"Growth, Planning and Housing",JAMIES ITALIAN,4.70,4.70,.00,Hospitality,5812,Eating places and Restaurants
06/07/17,Tri-Borough Childrens Services,LISBOA,10.60,10.60,.00,Activities and Events,5411,Grocery Stores
06/07/17,Tri-Borough Childrens Services,LIVERPOOL STREET TICKE,21.10,21.10,.00,Staff travelling expenses,4112,Passenger Railways
06/07/17,Tri-Borough Childrens Services,LONDON OVERGROUND SST,5.00,5.00,.00,Staff travelling expenses,4112,Passenger Railways
06/07/17,City Management and Communities,LUL TICKET MACHINE,30.00,30.00,.00,Staff travelling expenses,4112,Passenger Railways
06/07/17,"Growth, Planning and Housing",LUL TICKET MACHINE,10.60,10.60,.00,Client travelling expenses,4112,Passenger Railways
06/07/17,Tri-Borough Childrens Services,LUL TICKET MACHINE,10.00,10.00,.00,Staff travelling expenses,4112,Passenger Railways
06/07/17,Tri-Borough Childrens Services,LUL TICKET MACHINE,10.00,10.00,.00,Staff travelling expenses,4112,Passenger Railways
06/07/17,Tri-borough Libraries and Archives,LUL TICKET MACHINE,10.00,10.00,.00,Activities and Events,4112,Passenger Railways
06/07/17,Tri-Borough Childrens Services,LUL TICKET MACHINE,13.10,13.10,.00,Staff travelling expenses,4112,Passenger Railways
06/07/17,Tri-Borough Childrens Services,LUL TICKET MACHINE,30.00,30.00,.00,Staff travelling expenses,4112,Passenger Railways
06/07/17,Tri-borough Libraries and Archives,LUL TICKET MACHINE,20.00,20.00,.00,Staff travelling expenses,4112,Passenger Railways
06/07/17,Tri-Borough Childrens Services,LUL TICKET MACHINE,10.00,10.00,.00,Staff travelling expenses,4112,Passenger Railways
06/07/17,Tri-Borough Childrens Services,M&S SIMPLY FOOD,6.65,6.65,.00,Subsistence Expenses,5499,Misc. Food Stores - Convenience Stores and Specialty Markets
06/07/17,Tri-Borough Childrens Services,M&S SIMPLY FOOD - SSP,5.10,5.10,.00,Subsistence Expenses,5499,Misc. Food Stores - Convenience Stores and Specialty Markets
06/07/17,Tri-Borough Childrens Services,MARKS&SPENCER PLC,5.55,5.55,.00,Section 17 Young Persons Support,5411,Grocery Stores
06/07/17,City Treasurers,MARKS&SPENCER PLC,9.10,9.10,.00,Catering,5411,Grocery Stores
06/07/17,Tri-Borough Childrens Services,MCDONALDS,5.66,5.66,.00,Staff travelling expenses,5812,Eating places and Restaurants
06/07/17,Tri-Borough Childrens Services,NANDOS CAMBERWELL,13.40,13.40,.00,Section 17 Young Persons Support,5812,Eating places and Restaurants
06/07/17,Tri-Borough Childrens Services,NANDOS CAMBERWELL,13.40,13.40,.00,Subsistence Expenses,5812,Eating places and Restaurants
06/07/17,Tri-Borough Childrens Services,NEW SOUTHERN RAILW,10.10,10.10,.00,Staff travelling expenses,4112,Passenger Railways
06/07/17,Tri-Borough Childrens Services,NEW SOUTHERN RAILW,10.10,10.10,.00,Staff travelling expenses,4112,Passenger Railways
06/07/17,City Management and Communities,OYSTER AUTOTOPUP,20.00,20.00,.00,Staff travelling expenses,4112,Passenger Railways
06/07/17,"Growth, Planning and Housing",OYSTER AUTOTOPUP,40.00,40.00,.00,Staff travelling expenses,4112,Passenger Railways
06/07/17,City Management and Communities,OYSTER AUTOTOPUP,20.00,20.00,.00,Staff travel expense,4112,Passenger Railways
06/07/17,City Management and Communities,OYSTER AUTOTOPUP,20.00,20.00,.00,Staff travelling expenses,4112,Passenger Railways
06/07/17,City Management and Communities,OYSTER AUTOTOPUP,20.00,20.00,.00,Staff travelling expenses,4112,Passenger Railways
06/07/17,Tri-Borough ASC and NHS Integrated Commi,OYSTER AUTOTOPUP,20.00,20.00,.00,Staff travelling expenses,4112,Passenger Railways
06/07/17,Chief of Staff,OYSTER AUTOTOPUP,20.00,20.00,.00,Staff travelling expenses,4112,Passenger Railways
06/07/17,City Management and Communities,OYSTER BUS AUTOTOP,40.00,40.00,.00,Staff travelling expenses,4112,Passenger Railways
06/07/17,Tri-Borough ASC and NHS Integrated Commi,OYSTER BUS AUTOTOP,20.00,20.00,.00,Staff travelling expenses,4112,Passenger Railways
06/07/17,Tri-Borough ASC and NHS Integrated Commi,OYSTER BUS AUTOTOP,20.00,20.00,.00,Staff travelling expenses,4112,Passenger Railways
06/07/17,"Growth, Planning and Housing",OYSTER BUS AUTOTOP,40.00,40.00,.00,Staff travelling expenses,4112,Passenger Railways
06/07/17,City Management and Communities,OYSTER BUS AUTOTOP,20.00,20.00,.00,Staff travelling expenses,4112,Passenger Railways
06/07/17,Tri-Borough Childrens Services,PAPERCHASE,5.50,5.50,.00,Internal Fostering,5947,"Card Shops, Gift, Novelty, and Souvenir Shops"
06/07/17,City Treasurers,PRET A MANGER,10.20,10.20,.00,Catering,5812,Eating places and Restaurants
06/07/17,City Treasurers,PRET A MANGER,1.50,1.25,.25,Catering,5812,Eating places and Restaurants
06/07/17,City Treasurers,PRET A MANGER,7.40,6.17,1.23,Catering,5812,Eating places and Restaurants
06/07/17,"Growth, Planning and Housing",ROOF TOP KITCHEN,100.00,100.00,.00,Catering,5812,Eating places and Restaurants
06/07/17,"Growth, Planning and Housing",ROOF TOP KITCHEN,92.40,92.40,.00,Catering,5812,Eating places and Restaurants
06/07/17,"Growth, Planning and Housing",ROOF TOP KITCHEN,100.00,100.00,.00,Catering,5812,Eating places and Restaurants
06/07/17,Tri-borough Libraries and Archives,SAINSBURYS SACAT 2500,27.15,27.15,.00,Subsistence Expenses,5411,Grocery Stores
06/07/17,City Treasurers,SHAKE SHACK - VICTORIA,65.25,56.33,8.92,Catering,5812,Eating places and Restaurants
06/07/17,"Growth, Planning and Housing",SHOT ESPRESSO,4.60,4.60,.00,Hospitality,5814,Fast Food Restaurants
06/07/17,Tri-Borough ASC and NHS Integrated Commi,TESCO STORE 3012,9.97,9.97,.00,Stationery,5411,Grocery Stores
06/07/17,City Management and Communities,TFL CYCLE HIRE,2.00,2.00,.00,Staff travelling expenses,4111,"Local/Suburban Commuter Passenger Transportation - Railroads, Feries, Local Water Transportation."
06/07/17,Tri-Borough Childrens Services,Trainline,25.35,25.35,.00,Staff travelling expenses,4112,Passenger Railways
06/07/17,Tri-Borough Childrens Services,TSGN - ST PANCRAS INTE,25.80,25.80,.00,Staff travelling expenses,4112,Passenger Railways
06/07/17,Tri-Borough Childrens Services,UPT-CENTRALE SHOPPING,3.50,3.50,.00,Tport - Prkng & Congestion Chgs,8999,Professional Services ( Not Elsewhere Defined)
06/07/17,City Management and Communities,VINCI PARK HORNTON STR,24.20,20.17,4.03,Tport - Prkng & Congestion Chgs,8999,Professional Services ( Not Elsewhere Defined)
06/07/17,Tri-Borough ASC and NHS Integrated Commi,VIRGINTRAINSEC SERVCS,116.10,116.10,.00,Staff travelling expenses,4112,Passenger Railways
06/07/17,Tri-Borough Childrens Services,WESTMINSTER PARKING,2.55,2.55,.00,Tport - Prkng & Congestion Chgs,7523,Automobile Parking Lots and Garages
06/07/17,Tri-Borough ASC and NHS Integrated Commi,WW.TEACHINGEXHIBIT,59.82,59.82,.00,Training,8699,Membership Organizations ( Not Elsewhere Classified)
06/07/17,Tri-Borough Childrens Services,WWW.HOBGOBLIN.COM,233.98,194.98,39.00,Activities and Events,5733,"Music Stores, Musical Instruments, Piano Sheet Music"
06/07/17,Tri-Borough Childrens Services,WWW.HOBGOBLIN.COM,44.98,37.48,7.50,Activities and Events,5733,"Music Stores, Musical Instruments, Piano Sheet Music"
06/07/17,Tri-Borough Childrens Services,WWW.ICO.GOV.UK,35.00,35.00,.00,"S/scriptns, pblcations, Per Non Cur E22",9399,Government Services ( Not Elsewhere Classified)
06/07/17,Chief of Staff,WWW.MAJESTIC.CO.UK,391.44,326.20,65.24,Hospitality,5921,"Package Stores - Beer, Wine, and Liquor"
07/07/17,Tri-Borough Childrens Services,Amazon UK Marketplace,57.28,57.28,.00,"Equipment, furniture and materials",5942,Book Stores
07/07/17,Tri-borough Libraries and Archives,Amazon UK Marketplace,6.86,6.86,.00,"Equipment, furniture and materials",5942,Book Stores
07/07/17,Tri-borough Libraries and Archives,Amazon UK Marketplace,21.59,21.59,.00,"Equipment, furniture and materials",5942,Book Stores
07/07/17,Tri-Borough ASC and NHS Integrated Commi,Amazon UK Marketplace,5.98,5.98,.00,"Equipment, furniture and materials",5942,Book Stores
07/07/17,Tri-Borough Childrens Services,AO RETAIL LIMITED,243.99,243.99,.00,S24 Support allowance,5722,Household Appliance Stores
07/07/17,City Management and Communities,APPLE ONLINE STORE GBP,178.00,178.00,.00,IT Hardware Purchase,5732,Electronic Sales
07/07/17,WAES,ARGOS LTD,17.98,17.98,.00,"Equipment, furniture and materials",5310,Discount Stores
07/07/17,Tri-borough Libraries and Archives,BT BILL PAYMENT 2,67.07,55.89,11.18,"Equipment, furniture and materials",4812,Telecommunications Equipment including telephone sales
07/07/17,Tri-Borough Childrens Services,BURGER KING,6.49,6.49,.00,Subsistence Expenses,5814,Fast Food Restaurants
07/07/17,"Growth, Planning and Housing",CMT (UK) LTD - GLASGOW,6.72,6.72,.00,Staff travelling expenses,4121,Taxicabs and Limousines
07/07/17,"Growth, Planning and Housing",CMT (UK) LTD - GLASGOW,11.97,11.97,.00,Staff travelling expenses,4121,Taxicabs and Limousines
07/07/17,Tri-Borough Childrens Services,CO-OP GROUP 070842,1.59,1.59,.00,Subsistence Expenses,5411,Grocery Stores
07/07/17,Tri-Borough Childrens Services,COSTA COFFEE,9.30,9.30,.00,Staff travelling expenses,5814,Fast Food Restaurants
07/07/17,Tri-Borough Childrens Services,COSTA COFFEE,6.03,6.03,.00,Section 17 Young Persons Support,5814,Fast Food Restaurants
07/07/17,Tri-Borough Childrens Services,COSTA COFFEE,6.02,6.02,.00,Client travelling expenses,5814,Fast Food Restaurants
07/07/17,Tri-Borough ASC and NHS Integrated Commi,D'AURIA BROTHERS ICE C,15.00,15.00,.00,Subsistence Expenses,5814,Fast Food Restaurants
07/07/17,Tri-Borough Childrens Services,DLR,12.30,12.30,.00,Staff travelling expenses,4112,Passenger Railways
07/07/17,Corporate Services WCC,DORCHESTER HOTEL LTD,147.00,147.00,.00,Activities and Events,7011,"Lodging - Hotels, Motels, Resorts, Central Reservation Services (not elsewhere classified)"
07/07/17,Corporate Services WCC,easyJetES ESJB237,857.01,857.01,.00,Staff travelling expenses,3245,EasyJet Airlines
07/07/17,City Treasurers,EAT LTD,5.69,4.74,.95,Catering,5812,Eating places and Restaurants
07/07/17,Tri-Borough Childrens Services,GOLDEN NEWS,8.20,8.20,.00,Staff travelling expenses,5994,News Dealers and Newsstands
07/07/17,Tri-Borough Childrens Services,GWR HAYES SST,50.00,50.00,.00,Staff travelling expenses,4112,Passenger Railways
07/07/17,Tri-Borough ASC and NHS Integrated Commi,GWR LON PADD TO,108.50,108.50,.00,Staff travelling expenses,4112,Passenger Railways
07/07/17,Tri-Borough ASC and NHS Integrated Commi,HAMMERSMITH FOODCOURT-,5.90,5.90,.00,Subsistence Expenses,5811,Caterers
07/07/17,"Growth, Planning and Housing",JR'S SHOE REPAIRS,11.00,11.00,.00,"Equipment, furniture and materials",7251,"Shop Repair Shops and Shoe Shine Parlors, and Hat Cleaning Shops"
07/07/17,Tri-Borough Childrens Services,KFC - HAMMERSMITH,6.29,6.29,.00,Subsistence Expenses,5814,Fast Food Restaurants
07/07/17,Tri-Borough Childrens Services,LONDON & SOUTH EAS,5.80,5.80,.00,Client travelling expenses,4112,Passenger Railways
07/07/17,Tri-Borough Childrens Services,LUL TICKET MACHINE,12.30,12.30,.00,Staff travelling expenses,4112,Passenger Railways
07/07/17,Tri-Borough Childrens Services,LUL TICKET MACHINE,10.00,10.00,.00,Staff travelling expenses,4112,Passenger Railways
07/07/17,Tri-Borough Childrens Services,LUL TICKET MACHINE,5.00,5.00,.00,Staff travelling expenses,4112,Passenger Railways
07/07/17,Tri-Borough Childrens Services,LUL TICKET MACHINE,12.30,12.30,.00,Staff travelling expenses,4112,Passenger Railways
07/07/17,Tri-Borough Childrens Services,LUL TICKET MACHINE,10.00,10.00,.00,Staff travelling expenses,4112,Passenger Railways
07/07/17,Tri-Borough Childrens Services,M&S SIMPLY FOOD-SSP,4.00,4.00,.00,Staff travelling expenses,5499,Misc. Food Stores - Convenience Stores and Specialty Markets
07/07/17,Tri-borough Libraries and Archives,MAILCHIMP    MONTHLY,58.64,53.85,4.79,Activities and Events,7399,"Business Services, Not Elsewhere Classified"
07/07/17,"Growth, Planning and Housing",MARKS&SPENCER PLC,3.95,3.95,.00,Subsistence Expenses,5411,Grocery Stores
07/07/17,City Treasurers,MARKS&SPENCER PLC,5.30,5.30,.00,Catering,5411,Grocery Stores
07/07/17,City Treasurers,MARKS&SPENCER PLC,8.35,8.35,.00,Catering,5411,Grocery Stores
07/07/17,Tri-Borough Childrens Services,MAUDESPORT LTD,100.39,83.66,16.73,PE Equip Purch. & Rep. 0,5941,Sporting Goods Stores
07/07/17,City Treasurers,MCDONALDS,10.18,10.18,.00,Catering,5812,Eating places and Restaurants
07/07/17,Tri-borough Libraries and Archives,NEW AL - MADINA GROCER,17.40,17.40,.00,Activities and Events,5994,News Dealers and Newsstands
07/07/17,Tri-Borough Childrens Services,NEW SOUTHERN RAILW,11.30,11.30,.00,Staff travelling expenses,4112,Passenger Railways
07/07/17,Tri-Borough ASC and NHS Integrated Commi,OXYGEN FREEJUMPING,10.50,10.50,.00,"Equipment, furniture and materials",7997,"Membership Clubs (Sports, Recreation, Athletic), Country Clubs, and Private Golf Courses"
07/07/17,Tri-Borough ASC and NHS Integrated Commi,OXYGEN FREEJUMPING,4.00,4.00,.00,"Equipment, furniture and materials",7997,"Membership Clubs (Sports, Recreation, Athletic), Country Clubs, and Private Golf Courses"
07/07/17,"Growth, Planning and Housing",OYSTER AUTOTOPUP,40.00,40.00,.00,Staff travelling expenses,4112,Passenger Railways
07/07/17,Tri-Borough ASC and NHS Integrated Commi,OYSTER AUTOTOPUP,20.00,20.00,.00,Staff travelling expenses,4112,Passenger Railways
07/07/17,"Growth, Planning and Housing",OYSTER AUTOTOPUP,20.00,20.00,.00,Staff travelling expenses,4112,Passenger Railways
07/07/17,City Management and Communities,OYSTER AUTOTOPUP,20.00,20.00,.00,Staff travelling expenses,4112,Passenger Railways
07/07/17,City Management and Communities,OYSTER AUTOTOPUP,40.00,40.00,.00,Staff travel expense,4112,Passenger Railways
07/07/17,City Management and Communities,OYSTER AUTOTOPUP,20.00,20.00,.00,Staff travelling expenses,4112,Passenger Railways
07/07/17,Tri-Borough ASC and NHS Integrated Commi,OYSTER BUS AUTOTOP,20.00,20.00,.00,Staff travelling expenses,4112,Passenger Railways
07/07/17,Tri-Borough ASC and NHS Integrated Commi,PARLIAMENT HILL CAFE,3.60,3.60,.00,Subsistence Expenses,5814,Fast Food Restaurants
07/07/17,Tri-Borough ASC and NHS Integrated Commi,PAYPAL  CRUSEBEREAV,186.00,186.00,.00,Training,8398,Charitable and Social Service Organizations
07/07/17,City Treasurers,PRET A MANGER,4.10,4.10,.00,Catering,5812,Eating places and Restaurants
07/07/17,Tri-Borough Childrens Services,PRET A MANGER,8.44,8.44,.00,Staff travelling expenses,5812,Eating places and Restaurants
07/07/17,Tri-Borough Childrens Services,PRET A MANGER,1.70,1.70,.00,Subsistence Expenses,5812,Eating places and Restaurants
07/07/17,City Treasurers,RADAR KEY COMPANY,10.79,8.99,1.80,"Equipment, furniture and materials",5099,"Durable Goods, Not Elsewhere Classified"
07/07/17,City Management and Communities,SAINSBURYS LOC4992,5.50,5.50,.00,"Equipment, furniture and materials",5411,Grocery Stores
07/07/17,Corporate Services WCC,SKCHASE.COM ONEALDWYCH,88.00,88.00,.00,Activities and Events,5947,"Card Shops, Gift, Novelty, and Souvenir Shops"
07/07/17,Corporate Services WCC,STAGECOACH SW TRAINS W,336.60,336.60,.00,Staff travelling expenses,4112,Passenger Railways
07/07/17,Corporate Services WCC,STAGECOACH SW TRAINS W,104.00,104.00,.00,Staff travelling expenses,4112,Passenger Railways
07/07/17,Corporate Services WCC,STAGECOACH SW TRAINS W,336.60,336.60,.00,Staff travelling expenses,4112,Passenger Railways
07/07/17,Tri-borough Libraries and Archives,TESCO METRO 2299,37.55,37.55,.00,Stationery,5411,Grocery Stores
07/07/17,Tri-borough Libraries and Archives,TESCO STORE 3012,67.94,67.94,.00,Activities and Events,5411,Grocery Stores
07/07/17,Tri-borough Libraries and Archives,TESCO STORES 4447,2.69,2.69,.00,Activities and Events,5411,Grocery Stores
07/07/17,Tri-Borough Childrens Services,TESCO STORES 6109,95.15,95.15,.00,Hospitality,5411,Grocery Stores
07/07/17,City Management and Communities,TFL CYCLE HIRE,28.00,28.00,.00,Staff travelling expenses,4111,"Local/Suburban Commuter Passenger Transportation - Railroads, Feries, Local Water Transportation."
07/07/17,Tri-borough Libraries and Archives,TIMPSON LTD,18.00,18.00,.00,"Equipment, furniture and materials",7251,"Shop Repair Shops and Shoe Shine Parlors, and Hat Cleaning Shops"
07/07/17,Tri-Borough Childrens Services,Trainline,54.98,54.98,.00,Staff travelling expenses,4112,Passenger Railways
07/07/17,Tri-Borough Childrens Services,Trainline,229.81,229.81,.00,Client travelling expenses,4112,Passenger Railways
07/07/17,Tri-Borough Childrens Services,Trainline,346.29,346.29,.00,Staff travelling expenses,4112,Passenger Railways
07/07/17,Tri-Borough Childrens Services,Trainline,73.95,73.95,.00,Client travelling expenses,4112,Passenger Railways
07/07/17,Tri-Borough Childrens Services,TRAINLINE,-71.00,-71.00,.00,Client travelling expenses,4112,Passenger Railways
07/07/17,Tri-Borough ASC and NHS Integrated Commi,Trainline,60.69,60.69,.00,Client travelling expenses,4112,Passenger Railways
07/07/17,Tri-Borough ASC and NHS Integrated Commi,Trainline,40.49,40.49,.00,Staff travelling expenses,4112,Passenger Railways
07/07/17,"Growth, Planning and Housing",VERIFONE TAXI/PRIVATE,10.00,10.00,.00,Staff travelling expenses,4121,Taxicabs and Limousines
07/07/17,Tri-borough Libraries and Archives,WAITROSE 756,2.23,2.23,.00,Activities and Events,5411,Grocery Stores
07/07/17,Tri-Borough Childrens Services,WESTMINSTER PARKING,3.70,3.70,.00,Tport - Prkng & Congestion Chgs,7523,Automobile Parking Lots and Garages
07/07/17,City Management and Communities,WH SMITH,14.99,14.99,.00,Stationery,5994,News Dealers and Newsstands
07/07/17,Corporate Services WCC,WWW.HOST-IT.CO.UK,8.39,8.39,.00,Licences,5968,Direct Marketing - Continuity/Subscription Merchant
08/07/17,City Management and Communities,Amazon UK Marketplace,15.98,13.32,2.66,Stationery,5942,Book Stores
08/07/17,Tri-borough Libraries and Archives,Amazon UK Marketplace,5.66,5.66,.00,"Equipment, furniture and materials",5942,Book Stores
08/07/17,Tri-borough Libraries and Archives,Amazon UK Marketplace,8.78,8.78,.00,"Equipment, furniture and materials",5942,Book Stores
08/07/17,Tri-borough Libraries and Archives,Amazon UK Marketplace,10.30,10.30,.00,"Equipment, furniture and materials",5942,Book Stores
08/07/17,City Management and Communities,CRYSTAL PALACE SPORTS,205.00,205.00,.00,Activities and Events,5811,Caterers
08/07/17,Tri-borough Libraries and Archives,JOHN LEWIS,20.05,16.71,3.34,Stationery,5311,Department Stores
08/07/17,Tri-Borough ASC and NHS Integrated Commi,OYSTER AUTOTOPUP,20.00,20.00,.00,Staff travelling expenses,4112,Passenger Railways
08/07/17,City Management and Communities,OYSTER AUTOTOPUP,20.00,20.00,.00,Staff travelling expenses,4112,Passenger Railways
08/07/17,City Management and Communities,OYSTER BUS AUTOTOP,20.00,20.00,.00,Staff travelling expenses,4112,Passenger Railways
08/07/17,City Management and Communities,PRET A MANGER,5.24,5.24,.00,Subsistence Expenses,5812,Eating places and Restaurants
08/07/17,City Management and Communities,PRET A MANGER,11.64,9.71,1.93,Subsistence Expenses,5812,Eating places and Restaurants
08/07/17,Tri-Borough Childrens Services,WHICH,11.75,11.75,.00,"S/scriptns, pblcations, Per Non Cur E22",5968,Direct Marketing - Continuity/Subscription Merchant
09/07/17,Tri-borough Libraries and Archives,Amazon EU,56.08,56.08,.00,"Equipment, furniture and materials",5969,Direct Marketing - Not Elsewhere Classified
09/07/17,Tri-borough Libraries and Archives,Amazon EU,8.19,8.19,.00,"Equipment, furniture and materials",5969,Direct Marketing - Not Elsewhere Classified
09/07/17,City Management and Communities,Amazon UK Marketplace,17.74,17.74,.00,"Equipment, furniture and materials",5942,Book Stores
09/07/17,PPC,Amazon UK Marketplace,6.99,6.99,.00,Stationery,5942,Book Stores
09/07/17,Tri-borough Libraries and Archives,AMZ Misscrafts_y,-40.53,-40.53,.00,"Equipment, furniture and materials",5999,Miscellaneous and Specialty Retail Stores
09/07/17,City Management and Communities,APPFIGURES,7.21,7.21,.00,IT Software Purchase,7372,"Computer Programming, Integrated Systems Design and Data Processing Services"
09/07/17,Tri-Borough ASC and NHS Integrated Commi,OYSTER AUTOTOPUP,20.00,20.00,.00,Staff travelling expenses,4112,Passenger Railways
09/07/17,City Management and Communities,OYSTER AUTOTOPUP,40.00,40.00,.00,Staff travelling expenses,4112,Passenger Railways
09/07/17,City Management and Communities,OYSTER AUTOTOPUP,40.00,40.00,.00,Staff travelling expenses,4112,Passenger Railways
09/07/17,Tri-Borough Childrens Services,OYSTER AUTOTOPUP,20.00,20.00,.00,Staff travelling expenses,4112,Passenger Railways
09/07/17,City Management and Communities,OYSTER AUTOTOPUP,20.00,20.00,.00,Staff travelling expenses,4112,Passenger Railways
09/07/17,City Management and Communities,OYSTER AUTOTOPUP,20.00,20.00,.00,Staff travelling expenses,4112,Passenger Railways
09/07/17,City Management and Communities,OYSTER AUTOTOPUP,20.00,20.00,.00,Staff travelling expenses,4112,Passenger Railways
09/07/17,City Management and Communities,OYSTER AUTOTOPUP,20.00,20.00,.00,Staff travelling expenses,4112,Passenger Railways
09/07/17,Tri-Borough ASC and NHS Integrated Commi,OYSTER BUS AUTOTOP,20.00,20.00,.00,Staff travelling expenses,4112,Passenger Railways
09/07/17,City Management and Communities,OYSTER BUS AUTOTOP,20.00,20.00,.00,Staff travelling expenses,4112,Passenger Railways
09/07/17,Tri-Borough ASC and NHS Integrated Commi,OYSTER BUS AUTOTOP,20.00,20.00,.00,Staff travelling expenses,4112,Passenger Railways
09/07/17,Tri-Borough ASC and NHS Integrated Commi,OYSTER BUS AUTOTOP,20.00,20.00,.00,Staff travelling expenses,4112,Passenger Railways
09/07/17,City Management and Communities,OYSTER BUS AUTOTOP,40.00,40.00,.00,Staff travelling expenses,4112,Passenger Railways
09/07/17,City Management and Communities,OYSTER BUS AUTOTOP,20.00,20.00,.00,Staff travel expense,4112,Passenger Railways
09/07/17,Tri-Borough ASC and NHS Integrated Commi,WWW.ADDISONLEE.COM,25.92,25.92,.00,Staff travelling expenses,4121,Taxicabs and Limousines
10/07/17,Tri-Borough Childrens Services,Amazon UK Marketplace,25.97,25.97,.00,Hospitality,5942,Book Stores
10/07/17,Tri-Borough Childrens Services,AMAZON.CO.UK,5.99,5.99,.00,Stationery,5999,Miscellaneous and Specialty Retail Stores
10/07/17,Tri-Borough Childrens Services,AMAZON.CO.UK,33.98,33.98,.00,"Equipment, furniture and materials",5999,Miscellaneous and Specialty Retail Stores
10/07/17,City Treasurers,COCO DI MAMA,15.90,15.90,.00,Catering,5812,Eating places and Restaurants
10/07/17,PPC,CO-OP GROUP 500593,1.89,1.89,.00,Catering,5411,Grocery Stores
10/07/17,PPC,DAVID PENTON & SON LTD,19.90,19.90,.00,Hired and Contracted Services,5085,"Industrial Supplies, Not Elsewhere Classified"
10/07/17,City Treasurers,EAT LTD,9.90,9.90,.00,Catering,5812,Eating places and Restaurants
10/07/17,City Treasurers,EAT LTD,5.50,5.50,.00,Catering,5812,Eating places and Restaurants
10/07/17,Tri-Borough ASC and NHS Integrated Commi,GWR LOND PADD SST,10.00,10.00,.00,Staff travelling expenses,4112,Passenger Railways
10/07/17,Tri-Borough Childrens Services,HOLIDAY INN LONDON WEM,5.00,5.00,.00,Tport - Prkng & Congestion Chgs,7011,"Lodging - Hotels, Motels, Resorts, Central Reservation Services (not elsewhere classified)"
10/07/17,Tri-Borough ASC and NHS Integrated Commi,HOMEBASE LTD   589,2.97,2.97,.00,"Equipment, furniture and materials",5211,Lumber and Building Materials Stores
10/07/17,Tri-Borough ASC and NHS Integrated Commi,HOMEBASE LTD   589,37.70,37.70,.00,Fixtures and Fittings -E12,5211,Lumber and Building Materials Stores
10/07/17,Tri-Borough Childrens Services,HUNT OFFICE TECHNOLOGY,82.65,69.85,12.80,C/Rm & Learning Equip Excl ICT E19,5943,"Stationery Stores, Office and School Supply Stores"
10/07/17,Tri-Borough Childrens Services,IKEA LIMITED,172.30,143.58,28.72,Fixtures and Fittings -E12,5712,"Furniture, Home Furnishings, and Equipment Stores, Except Appliances"
10/07/17,Tri-Borough Childrens Services,JAMAICA SPICE BAKERY L,6.00,6.00,.00,Subsistence Expenses,5812,Eating places and Restaurants
10/07/17,Tri-Borough Childrens Services,LUL TICKET MACHINE,33.00,33.00,.00,Section 17 Other,4112,Passenger Railways
10/07/17,Tri-Borough Childrens Services,LUL TICKET MACHINE,25.00,25.00,.00,Section 17 Other,4112,Passenger Railways
10/07/17,Tri-Borough Childrens Services,LUL TICKET MACHINE,12.30,12.30,.00,Staff travelling expenses,4112,Passenger Railways
10/07/17,Tri-Borough Childrens Services,LUL TICKET MACHINE,20.00,20.00,.00,Staff travelling expenses,4112,Passenger Railways
10/07/17,"Growth, Planning and Housing",LUL TICKET MACHINE,10.00,10.00,.00,Client travelling expenses,4112,Passenger Railways
10/07/17,"Growth, Planning and Housing",LUL TICKET MACHINE,10.00,10.00,.00,Client travelling expenses,4112,Passenger Railways
10/07/17,"Growth, Planning and Housing",LUL TICKET MACHINE,10.00,10.00,.00,Staff travelling expenses,4112,Passenger Railways
10/07/17,Tri-Borough Childrens Services,LUL TICKET MACHINE,24.60,24.60,.00,Client travelling expenses,4112,Passenger Railways
10/07/17,Tri-Borough Childrens Services,LUL TICKET MACHINE,15.00,15.00,.00,Staff travelling expenses,4112,Passenger Railways
10/07/17,PPC,MARKS&SPENCER PLC,85.50,85.50,.00,Catering,5411,Grocery Stores
10/07/17,City Treasurers,MARKS&SPENCER PLC,20.65,20.65,.00,Catering,5411,Grocery Stores
10/07/17,PPC,O2 UK PAYMENT,525.20,508.25,16.95,Telephony,4814,Fax services
10/07/17,Tri-borough Libraries and Archives,ONE PRICE,11.63,11.63,.00,Activities and Events,5310,Discount Stores
10/07/17,"Growth, Planning and Housing",OYSTER AUTOTOPUP,40.00,40.00,.00,Staff travelling expenses,4112,Passenger Railways
10/07/17,"Growth, Planning and Housing",OYSTER AUTOTOPUP,40.00,40.00,.00,Staff travelling expenses,4112,Passenger Railways
10/07/17,Tri-Borough ASC and NHS Integrated Commi,OYSTER AUTOTOPUP,20.00,20.00,.00,Staff travelling expenses,4112,Passenger Railways
10/07/17,PPC,OYSTER AUTOTOPUP,20.00,20.00,.00,Staff travelling expenses,4112,Passenger Railways
10/07/17,Tri-Borough ASC and NHS Integrated Commi,PARK CAFE,5.00,5.00,.00,Day Opportunities,5812,Eating places and Restaurants
10/07/17,"Growth, Planning and Housing",RIGHTWAY,33.99,33.99,.00,"Equipment, furniture and materials",5722,Household Appliance Stores
10/07/17,City Management and Communities,RINGGO PARKING,14.70,14.65,.05,Tport - Prkng & Congestion Chgs,7523,Automobile Parking Lots and Garages
10/07/17,Tri-Borough Childrens Services,SAINSBURYS SACAT (4286,13.05,10.88,2.17,Hospitality,5411,Grocery Stores
10/07/17,PPC,SAINSBURYS SACAT (4286,15.37,15.37,.00,Catering,5411,Grocery Stores
10/07/17,PPC,SAINSBURYS SACAT (4286,4.05,4.05,.00,Catering,5411,Grocery Stores
10/07/17,WAES,SurveyMonkey,288.00,240.00,48.00,Licences,7372,"Computer Programming, Integrated Systems Design and Data Processing Services"
10/07/17,Tri-borough Libraries and Archives,TESCO STORE 3012,51.39,51.39,.00,Activities and Events,5411,Grocery Stores
10/07/17,Tri-Borough Childrens Services,TESCO STORE 3340,29.11,29.11,.00,S24 Support allowance,5411,Grocery Stores
10/07/17,Tri-Borough ASC and NHS Integrated Commi,TESCO STORES (5565),4.90,4.90,.00,Subsistence Expenses,5411,Grocery Stores
10/07/17,Tri-Borough ASC and NHS Integrated Commi,TESCO STORES 2717,2.18,2.18,.00,Stationery,5411,Grocery Stores
10/07/17,Tri-Borough Childrens Services,TSGN - FINSBURY PARK,29.70,29.70,.00,Section 17 Young Persons Support,4112,Passenger Railways
10/07/17,City Management and Communities,VERIFONE TAXI/PRIVATE,27.00,27.00,.00,Staff travelling expenses,4121,Taxicabs and Limousines
10/07/17,Tri-Borough Childrens Services,WAITROSE 756,1.00,1.00,.00,Stationery,5411,Grocery Stores
10/07/17,City Management and Communities,WESTMINSTER CITY COUNC,20.00,20.00,.00,Hired and Contracted Services,9399,Government Services ( Not Elsewhere Classified)
10/07/17,Tri-Borough Childrens Services,WESTMINSTER CITY COUNC,25.00,25.00,.00,Contingency,9399,Government Services ( Not Elsewhere Classified)
10/07/17,Tri-Borough Childrens Services,WESTMINSTER PARKING,3.50,3.50,.00,Tport - Prkng & Congestion Chgs,7523,Automobile Parking Lots and Garages
10/07/17,"Growth, Planning and Housing",WWW.FITFORSPORT.CO.UK,75.07,75.07,.00,Hired and Contracted Services,7999,Recreation Services (Not Elsewhere Classified)
10/07/17,City Management and Communities,WWW.ISLINGTON.GOV.,10.60,10.50,.10,Tport - Prkng & Congestion Chgs,7523,Automobile Parking Lots and Garages
10/07/17,City Management and Communities,WWW.PARKINGEYE.CO.UK,60.90,60.90,.00,Tport - Prkng & Congestion Chgs,9399,Government Services ( Not Elsewhere Classified)
10/07/17,City Management and Communities,WWW.UKRADIOS.COM,138.00,115.00,23.00,Trade Waste and Refuse Collection,5712,"Furniture, Home Furnishings, and Equipment Stores, Except Appliances"
11/07/17,PPC,ADOBE  CREATIVE CLOUD,45.73,38.11,7.62,Subscriptions,5734,Computer Software Stores
11/07/17,Tri-borough Libraries and Archives,Amazon EU,3.19,3.19,.00,"Equipment, furniture and materials",5969,Direct Marketing - Not Elsewhere Classified
11/07/17,Tri-Borough Childrens Services,Amazon UK Marketplace,12.98,12.98,.00,"Equipment, furniture and materials",5942,Book Stores
11/07/17,City Management and Communities,Amazon UK Marketplace,13.99,13.99,.00,IT Hardware Purchase,5942,Book Stores
11/07/17,Tri-Borough Childrens Services,Amazon UK Marketplace,19.99,19.99,.00,"Equipment, furniture and materials",5942,Book Stores
11/07/17,Tri-Borough Childrens Services,AMAZON.CO.UK,42.00,42.00,.00,Stationery,5999,Miscellaneous and Specialty Retail Stores
11/07/17,Tri-borough Libraries and Archives,AMAZON.CO.UK,2.81,2.81,.00,"Equipment, furniture and materials",5999,Miscellaneous and Specialty Retail Stores
11/07/17,Corporate Services WCC,APPLE STORE R245,99.00,82.50,16.50,IT Hardware Purchase,5732,Electronic Sales
11/07/17,Tri-Borough Childrens Services,BENS NEWS,7.70,7.70,.00,Staff travelling expenses,5411,Grocery Stores
11/07/17,City Management and Communities,BRITISH A 12587592584260,214.00,214.00,.00,Staff travelling expenses,3005,BRITISH AIRWAYS
11/07/17,Tri-Borough ASC and NHS Integrated Commi,BURGER KING,4.46,4.46,.00,Subsistence Expenses,5812,Eating places and Restaurants
11/07/17,Tri-Borough Childrens Services,C2C BARKING,32.60,32.60,.00,Section 17 Young Persons Support,4112,Passenger Railways
11/07/17,Tri-Borough Childrens Services,COMPLETE CARE SHOP,59.94,49.95,9.99,"Equipment, furniture and materials",5999,Miscellaneous and Specialty Retail Stores
11/07/17,"Growth, Planning and Housing",CONTEH CONV STORE,10.50,10.50,.00,Client travelling expenses,5411,Grocery Stores
11/07/17,City Management and Communities,COSTA 1932,11.85,11.85,.00,Subsistence Expenses,5812,Eating places and Restaurants
11/07/17,Tri-Borough ASC and NHS Integrated Commi,DISCLOSURE & BARRING,13.00,13.00,.00,DBS Police checks,9399,Government Services ( Not Elsewhere Classified)
11/07/17,Tri-borough Libraries and Archives,DISCLOSURE & BARRING,13.00,13.00,.00,DBS Police checks,9399,Government Services ( Not Elsewhere Classified)
11/07/17,"Growth, Planning and Housing",EAT LTD,7.60,7.60,.00,Subsistence Expenses,5812,Eating places and Restaurants
11/07/17,City Treasurers,GRANGE FITZROVIA,168.00,168.00,.00,Temporary Accommodation,7011,"Lodging - Hotels, Motels, Resorts, Central Reservation Services (not elsewhere classified)"
11/07/17,Tri-Borough Childrens Services,HANDY,60.00,60.00,.00,Section 17 Other,4214,Delivery Services - Local
11/07/17,Tri-Borough Childrens Services,HANDY,62.40,62.40,.00,Section 17 Other,4214,Delivery Services - Local
11/07/17,Tri-Borough ASC and NHS Integrated Commi,HMCOURTS-SERVICE.G,20.00,20.00,.00,Legal Fees,9222,Fines
11/07/17,City Treasurers,HOLIDAY INNS,22.17,22.17,.00,Temporary Accommodation,3501,HOLIDAY INN EXPRESS
11/07/17,City Treasurers,HOLIDAY INNS,4.40,4.40,.00,Catering,3501,HOLIDAY INN EXPRESS
11/07/17,Tri-Borough ASC and NHS Integrated Commi,HSE-CIVIL REGISTRATION,19.23,19.23,.00,Hired and Contracted Services,9399,Government Services ( Not Elsewhere Classified)
11/07/17,Tri-Borough Childrens Services,LEIGH HOUSE HOTEL,145.00,145.00,.00,Temporary Accommodation,7011,"Lodging - Hotels, Motels, Resorts, Central Reservation Services (not elsewhere classified)"
11/07/17,Bi-Borough Corporate Services,LUL TICKET MACHINE,12.30,12.30,.00,Staff travelling expenses,4112,Passenger Railways
11/07/17,Tri-Borough Childrens Services,LUL TICKET MACHINE,12.30,12.30,.00,Staff travelling expenses,4112,Passenger Railways
11/07/17,Tri-Borough Childrens Services,LUL TICKET MACHINE,12.30,12.30,.00,Staff travelling expenses,4112,Passenger Railways
11/07/17,Tri-Borough Childrens Services,LUL TICKET MACHINE,24.60,24.60,.00,Client travelling expenses,4112,Passenger Railways
11/07/17,Tri-Borough Childrens Services,LUL TICKET MACHINE,12.30,12.30,.00,Client travelling expenses,4112,Passenger Railways
11/07/17,Tri-Borough Childrens Services,LUL TICKET MACHINE,15.00,15.00,.00,Client travelling expenses,4112,Passenger Railways
11/07/17,Tri-Borough Childrens Services,LUL TICKET MACHINE,12.30,12.30,.00,Staff travelling expenses,4112,Passenger Railways
11/07/17,Tri-Borough Childrens Services,LUL TICKET MACHINE,20.00,20.00,.00,Section 17 Other,4112,Passenger Railways
11/07/17,Tri-Borough Childrens Services,MAKAN CAFE,15.80,15.80,.00,Section 17 Other,5812,Eating places and Restaurants
11/07/17,Tri-Borough ASC and NHS Integrated Commi,MALTHURST PETROLEU,.30,.30,.00,Subsistence Expenses,5541,Service Stations ( with or without ancillary services)
11/07/17,"Growth, Planning and Housing",MARKSANDSPENCER.CO,50.79,48.45,2.34,Catering,7392,"Management, Consulting, and Public Relations Services"
11/07/17,"Growth, Planning and Housing",MARKSANDSPENCER.CO,74.19,73.17,1.02,Catering,7392,"Management, Consulting, and Public Relations Services"
11/07/17,"Growth, Planning and Housing",MARKSANDSPENCER.CO,46.04,44.84,1.20,Catering,7392,"Management, Consulting, and Public Relations Services"
11/07/17,"Growth, Planning and Housing",MARKSANDSPENCER.CO,43.24,42.54,.70,Catering,7392,"Management, Consulting, and Public Relations Services"
11/07/17,"Growth, Planning and Housing",MARKSANDSPENCER.CO,45.24,44.18,1.06,Catering,7392,"Management, Consulting, and Public Relations Services"
11/07/17,"Growth, Planning and Housing",MARKSANDSPENCER.CO,45.24,44.18,1.06,Catering,7392,"Management, Consulting, and Public Relations Services"
11/07/17,"Growth, Planning and Housing",MARKSANDSPENCER.CO,48.24,47.18,1.06,Catering,7392,"Management, Consulting, and Public Relations Services"
11/07/17,Tri-Borough ASC and NHS Integrated Commi,NAS UK,222.00,222.00,.00,Training,8398,Charitable and Social Service Organizations
11/07/17,Tri-Borough Childrens Services,OUTWARDBOUND.ORGUK,551.75,551.75,.00,Section 17 Other,8249,Vocational Schools and Trade Schools
11/07/17,City Management and Communities,OYSTER RENEW WEB,50.00,50.00,.00,Staff travelling expenses,4112,Passenger Railways
11/07/17,PPC,PIZZA HUT ONLINE WEB,50.65,50.65,.00,Catering,5814,Fast Food Restaurants
11/07/17,City Management and Communities,PRET A MANGER,3.95,3.95,.00,Subsistence Expenses,5812,Eating places and Restaurants
11/07/17,Tri-Borough ASC and NHS Integrated Commi,RONNIES GENERAL STORE,12.01,12.01,.00,Subsistence Expenses,5411,Grocery Stores
11/07/17,PPC,SAINSBURYS SACAT (4286,4.80,4.80,.00,Catering,5411,Grocery Stores
11/07/17,Tri-Borough Childrens Services,SCREWFIX DIRECT,27.99,23.33,4.66,Staff Empl Cost of M & Equip E12,5211,Lumber and Building Materials Stores
11/07/17,City Management and Communities,SELFSERVE TICKET,51.20,51.20,.00,Staff travelling expenses,4112,Passenger Railways
11/07/17,Tri-Borough ASC and NHS Integrated Commi,TESCO STORES 3012,19.78,19.78,.00,Stationery,5411,Grocery Stores
11/07/17,PPC,TIMES NEWSPAPERS LTD,8.67,8.67,.00,Subscriptions,5192,"Books, Periodicals, and Newspapers"
11/07/17,"Growth, Planning and Housing",TRI BOROUGH- LISSON GR,3.75,3.75,.00,Hospitality,5811,Caterers
11/07/17,City Management and Communities,Virgin Trains,148.00,148.00,.00,Staff travelling expenses,4112,Passenger Railways
11/07/17,Tri-Borough Childrens Services,WESTMINSTER PARKING,3.79,3.79,.00,Tport - Prkng & Congestion Chgs,7523,Automobile Parking Lots and Garages
11/07/17,Corporate Services WCC,WWW.GWR.COM,686.50,686.50,.00,Staff travelling expenses,4112,Passenger Railways
11/07/17,City Management and Communities,WWW.PCWB.COM,121.87,101.56,20.31,IT Hardware Purchase,5734,Computer Software Stores
11/07/17,Tri-Borough Childrens Services,WWW.VIKING-DIRECT.CO.U,8.24,6.87,1.37,Catering Supplies -E25,5111,"Stationery, Office Supplies, Printing, and Writing Paper"
11/07/17,Tri-Borough Childrens Services,WWW.VIKING-DIRECT.CO.U,12.70,10.58,2.12,Catering Supplies -E25,5111,"Stationery, Office Supplies, Printing, and Writing Paper"
12/07/17,Tri-borough Libraries and Archives,Amazon UK Marketplace,2.81,2.81,.00,"Equipment, furniture and materials",5942,Book Stores
12/07/17,Tri-borough Libraries and Archives,Amazon UK Marketplace,14.07,14.07,.00,"Equipment, furniture and materials",5942,Book Stores
12/07/17,Tri-borough Libraries and Archives,Amazon UK Marketplace,12.63,12.63,.00,"Equipment, furniture and materials",5942,Book Stores
12/07/17,Tri-borough Libraries and Archives,Amazon UK Marketplace,69.47,69.47,.00,"Equipment, furniture and materials",5942,Book Stores
12/07/17,PPC,Amazon UK Marketplace,21.27,17.73,3.54,Catering,5942,Book Stores
12/07/17,PPC,AMAZON.CO.UK,79.00,65.84,13.16,Stationery,5999,Miscellaneous and Specialty Retail Stores
12/07/17,Tri-Borough ASC and NHS Integrated Commi,ARGOS DIRECT,68.90,68.90,.00,"Equipment, furniture and materials",5310,Discount Stores
12/07/17,Tri-Borough ASC and NHS Integrated Commi,ARGOS DIRECT,285.98,285.98,.00,"Equipment, furniture and materials",5310,Discount Stores
12/07/17,City Treasurers,ARGOS THE STRAND,32.99,32.99,.00,"Equipment, furniture and materials",5310,Discount Stores
12/07/17,Tri-Borough Childrens Services,BAGEL FACTORY,6.14,6.14,.00,Subsistence Expenses,5814,Fast Food Restaurants
12/07/17,Tri-Borough ASC and NHS Integrated Commi,BEATEN DOCKET,6.59,6.59,.00,Subsistence Expenses,5812,Eating places and Restaurants
12/07/17,Tri-Borough Childrens Services,BENS NEWS,7.70,7.70,.00,Staff travelling expenses,5411,Grocery Stores
12/07/17,Tri-Borough Childrens Services,CITY OF WESTMINSTER CO,236.92,236.92,.00,Section 17 Young Persons Support,8999,Professional Services ( Not Elsewhere Defined)
12/07/17,PPC,CO-OP GROUP 500593,18.23,18.23,.00,Catering,5411,Grocery Stores
12/07/17,PPC,CO-OP GROUP 500593,13.49,13.49,.00,Catering,5411,Grocery Stores
12/07/17,City Management and Communities,CO-OP GROUP 500593,2.37,2.37,.00,Catering,5411,Grocery Stores
12/07/17,Tri-Borough Childrens Services,CRESTOAKS,9.30,9.30,.00,Section 17 Young Persons Support,5812,Eating places and Restaurants
12/07/17,Tri-Borough Childrens Services,CRESTOAKS,9.29,9.29,.00,Section 17 Young Persons Support,5812,Eating places and Restaurants
12/07/17,Tri-Borough Childrens Services,GWR LON PADD TO,73.30,73.30,.00,Staff travelling expenses,4112,Passenger Railways
12/07/17,Tri-Borough ASC and NHS Integrated Commi,HAMMERSMITH FOODCOURT-,2.90,2.90,.00,Subsistence Expenses,5811,Caterers
12/07/17,Tri-Borough ASC and NHS Integrated Commi,HAMMERSMITH RENAL PTS,2.30,2.30,.00,Subsistence Expenses,5811,Caterers
12/07/17,Corporate Services WCC,LAS IGUANAS,220.92,184.10,36.82,Subsistence Expenses,5812,Eating places and Restaurants
12/07/17,Tri-Borough ASC and NHS Integrated Commi,LONDON & SOUTH EAS,15.60,15.60,.00,Staff travelling expenses,4112,Passenger Railways
12/07/17,Tri-Borough Childrens Services,LUL TICKET MACHINE,10.00,10.00,.00,Section 17 Other,4112,Passenger Railways
12/07/17,Tri-Borough Childrens Services,LUL TICKET MACHINE,10.00,10.00,.00,Staff travelling expenses,4112,Passenger Railways
12/07/17,Tri-Borough Childrens Services,LUL TICKET MACHINE,10.00,10.00,.00,Staff travelling expenses,4112,Passenger Railways
12/07/17,Tri-Borough Childrens Services,LUL TICKET MACHINE,12.30,12.30,.00,Staff travelling expenses,4112,Passenger Railways
12/07/17,Tri-Borough Childrens Services,MARKS&SPENCER PLC,1.00,1.00,.00,Stationery,5411,Grocery Stores
12/07/17,Tri-Borough ASC and NHS Integrated Commi,MARKS&SPENCER PLC,7.40,7.40,.00,Subsistence Expenses,5411,Grocery Stores
12/07/17,Tri-Borough ASC and NHS Integrated Commi,OYSTER AUTOTOPUP,20.00,20.00,.00,Staff travelling expenses,4112,Passenger Railways
12/07/17,Bi-Borough Corporate Services,OYSTER AUTOTOPUP,40.00,40.00,.00,Staff travelling expenses,4112,Passenger Railways
12/07/17,City Management and Communities,OYSTER AUTOTOPUP,40.00,40.00,.00,Staff travelling expenses,4112,Passenger Railways
12/07/17,Tri-Borough ASC and NHS Integrated Commi,OYSTER BUS AUTOTOP,20.00,20.00,.00,Staff travelling expenses,4112,Passenger Railways
12/07/17,City Management and Communities,OYSTER BUS AUTOTOP,40.00,40.00,.00,Staff travelling expenses,4112,Passenger Railways
12/07/17,Bi-Borough Corporate Services,OYSTER BUS AUTOTOP,40.00,40.00,.00,Staff travelling expenses,4112,Passenger Railways
12/07/17,City Management and Communities,OYSTER BUS AUTOTOP,20.00,20.00,.00,Staff travelling expenses,4112,Passenger Railways
12/07/17,Tri-Borough ASC and NHS Integrated Commi,OYSTER BUS AUTOTOP,20.00,20.00,.00,Staff travelling expenses,4112,Passenger Railways
12/07/17,"Growth, Planning and Housing",PATISSERIE VALERIE,4.40,4.40,.00,Hospitality,5812,Eating places and Restaurants
12/07/17,Tri-Borough ASC and NHS Integrated Commi,PATISSERIE VALERIE,2.85,2.85,.00,Subsistence Expenses,5812,Eating places and Restaurants
12/07/17,Tri-Borough Childrens Services,POST OFFICE COUNTER,12.90,12.90,.00,Postage,9402,Postal Services - Government Only
12/07/17,City Treasurers,PRET A MANGER,2.35,2.35,.00,Catering,5812,Eating places and Restaurants
12/07/17,Chief of Staff,RYMAN 1037,34.02,28.35,5.67,Stationery,5943,"Stationery Stores, Office and School Supply Stores"
12/07/17,City Management and Communities,SAFETYCULTURE INC,231.35,231.35,.00,Trade Waste and Refuse Collection,5734,Computer Software Stores
12/07/17,Tri-borough Libraries and Archives,SAINSBURYS 0009,130.70,130.70,.00,Catering,5411,Grocery Stores
12/07/17,Tri-Borough Childrens Services,SAINSBURYS 0932,275.24,275.24,.00,Provisions -E25,5411,Grocery Stores
12/07/17,Tri-Borough Childrens Services,SAINSBURYS SACAT 0548,16.00,16.00,.00,Fixtures and Fittings -E12,5411,Grocery Stores
12/07/17,Tri-Borough Childrens Services,SAINSBURYS SACAT 4003,11.60,11.60,.00,Hospitality,5411,Grocery Stores
12/07/17,Tri-Borough Childrens Services,SCHOOLSDIRECTCOUK,149.62,124.68,24.94,C/Rm & Learning Equip Excl ICT E19,5970,Artist�s Supply and Craft Shops
12/07/17,City Management and Communities,SCREWFIX DIRECT,48.49,40.42,8.07,"Equipment, furniture and materials",5211,Lumber and Building Materials Stores
12/07/17,Tri-Borough ASC and NHS Integrated Commi,Spotify P02E2F5BC7,9.99,9.99,.00,Subscriptions,5815,"Digital Good: Media, Books, Movies, Music"
12/07/17,"Growth, Planning and Housing",STARBUCKS,4.50,4.50,.00,Hospitality,5814,Fast Food Restaurants
12/07/17,Corporate Services WCC,THE GRAND HOTEL SWANSE,650.00,541.67,108.33,Subsistence Expenses,7011,"Lodging - Hotels, Motels, Resorts, Central Reservation Services (not elsewhere classified)"
12/07/17,Tri-Borough Childrens Services,TOOLSTATION LTD,56.46,47.05,9.41,Staff Empl Cost of M & Equip E12,5251,Hardware Stores
12/07/17,City Management and Communities,Trainline,90.47,90.47,.00,Staff travelling expenses,4112,Passenger Railways
12/07/17,City Management and Communities,Trainline,68.24,68.24,.00,Staff travelling expenses,4112,Passenger Railways
12/07/17,City Management and Communities,TRAINLINE,-87.20,-87.20,.00,Staff travelling expenses,4112,Passenger Railways
12/07/17,"Growth, Planning and Housing",TRI BOROUGH- LISSON GR,3.70,3.70,.00,Hospitality,5811,Caterers
12/07/17,City Treasurers,WEST COAST TRAINS,82.90,82.90,.00,Staff travelling expenses,4112,Passenger Railways
12/07/17,Tri-Borough Childrens Services,WESTMINSTER CITY COUNC,10.00,10.00,.00,Stationery,9399,Government Services ( Not Elsewhere Classified)
12/07/17,Tri-Borough Childrens Services,Westminster Parking,4.25,4.25,.00,Staff travelling expenses,7523,Automobile Parking Lots and Garages
12/07/17,Tri-Borough ASC and NHS Integrated Commi,WILLOW WALK,2.15,2.15,.00,Subsistence Expenses,5812,Eating places and Restaurants
12/07/17,WAES,ZAGROS FOOD CENTRE,65.00,65.00,.00,"Equipment, furniture and materials",5411,Grocery Stores
13/07/17,Tri-borough Libraries and Archives,Amazon UK Marketplace,22.07,22.07,.00,"Equipment, furniture and materials",5942,Book Stores
13/07/17,Tri-borough Libraries and Archives,Amazon UK Marketplace,2.99,2.99,.00,"Equipment, furniture and materials",5942,Book Stores
13/07/17,Tri-Borough ASC and NHS Integrated Commi,Amazon UK Marketplace,3.78,3.78,.00,"Equipment, furniture and materials",5942,Book Stores
13/07/17,Tri-Borough ASC and NHS Integrated Commi,ASHRA'S,20.50,20.50,.00,Client travelling expenses,5994,News Dealers and Newsstands
13/07/17,"Growth, Planning and Housing",CAFFE NERO 131 WARWICK,5.15,5.15,.00,Hospitality,5814,Fast Food Restaurants
13/07/17,Tri-Borough Childrens Services,CURRYS ONLINE,129.99,129.99,.00,LAC Contact,5732,Electronic Sales
13/07/17,City Management and Communities,easyJetES ESK716F,113.60,113.60,.00,Staff travelling expenses,3245,EasyJet Airlines
13/07/17,City Management and Communities,GATWICK EXPRSS WEB,17.80,17.80,.00,Staff travelling expenses,4112,Passenger Railways
13/07/17,Tri-Borough Childrens Services,GRO HM PASSPORT OFFICE,57.54,57.54,.00,Section 17 Other,9399,Government Services ( Not Elsewhere Classified)
13/07/17,Tri-Borough Childrens Services,GRO HM PASSPORT OFFICE,18.50,18.50,.00,Section 17 Other,9399,Government Services ( Not Elsewhere Classified)
13/07/17,Tri-Borough Childrens Services,GWR EALING BWY SST,20.00,20.00,.00,Staff travelling expenses,4112,Passenger Railways
13/07/17,Tri-Borough Childrens Services,GWR LON PADD TO,-73.30,-73.30,.00,Staff travelling expenses,4112,Passenger Railways
13/07/17,Tri-Borough ASC and NHS Integrated Commi,GWR LOND PADD SST,5.00,5.00,.00,Staff travelling expenses,4112,Passenger Railways
13/07/17,Tri-Borough ASC and NHS Integrated Commi,HMCOURTS-SERVICE.G,20.00,20.00,.00,Fees,9222,Fines
13/07/17,Chief of Staff,ITUNES.COM/BILL,.79,.79,.00,IT Software Purchase,5735,Record Shops
13/07/17,Tri-Borough ASC and NHS Integrated Commi,La Maison Du Gateau,4.75,4.75,.00,Subsistence Expenses,5814,Fast Food Restaurants
13/07/17,Tri-Borough ASC and NHS Integrated Commi,LONDON OVERGROUND SST,20.00,20.00,.00,Client travelling expenses,4112,Passenger Railways
13/07/17,Tri-Borough Childrens Services,LONDON OVERGROUND SST,17.50,17.50,.00,Staff travelling expenses,4112,Passenger Railways
13/07/17,Tri-Borough Childrens Services,LUL TICKET MACHINE,20.00,20.00,.00,Client travelling expenses,4112,Passenger Railways
13/07/17,Tri-Borough Childrens Services,LUL TICKET MACHINE,12.30,12.30,.00,Staff travelling expenses,4112,Passenger Railways
13/07/17,Bi-Borough Corporate Services,LUL TICKET MACHINE,20.90,20.90,.00,Staff travelling expenses,4112,Passenger Railways
13/07/17,Tri-Borough Childrens Services,LUL TICKET MACHINE,10.00,10.00,.00,Staff travelling expenses,4112,Passenger Railways
13/07/17,PPC,MAN MET UNI,195.00,195.00,.00,Conference Expenses,8220,"Colleges, Junior Colleges, Universities, and Professional Schools"
13/07/17,Tri-Borough Childrens Services,MARKS&SPENCER PLC,6.15,6.15,.00,Subsistence Expenses,5411,Grocery Stores
13/07/17,"Growth, Planning and Housing",MARKS&SPENCER PLC,5.00,5.00,.00,Subsistence Expenses,5411,Grocery Stores
13/07/17,Tri-Borough Childrens Services,MARKS&SPENCER PLC SF,25.30,25.30,.00,"Admin Stat., Print & Reprog. E22",5411,Grocery Stores
13/07/17,Bi-Borough Corporate Services,MCDONALDS,4.59,4.59,.00,Subsistence Expenses,5812,Eating places and Restaurants
13/07/17,Bi-Borough Corporate Services,NISA LOCAL ELSTREE STA,5.00,5.00,.00,Staff travelling expenses,5499,Misc. Food Stores - Convenience Stores and Specialty Markets
13/07/17,Tri-Borough ASC and NHS Integrated Commi,ONE PRICE,5.48,5.48,.00,"Equipment, furniture and materials",5310,Discount Stores
13/07/17,City Management and Communities,OYSTER AUTOTOPUP,40.00,40.00,.00,Staff travelling expenses,4112,Passenger Railways
13/07/17,City Management and Communities,OYSTER AUTOTOPUP,20.00,20.00,.00,Staff travelling expenses,4112,Passenger Railways
13/07/17,City Management and Communities,OYSTER AUTOTOPUP,20.00,20.00,.00,Staff travelling expenses,4112,Passenger Railways
13/07/17,City Management and Communities,OYSTER AUTOTOPUP,40.00,40.00,.00,Staff travelling expenses,4112,Passenger Railways
13/07/17,Tri-Borough ASC and NHS Integrated Commi,OYSTER AUTOTOPUP,20.00,20.00,.00,Staff travelling expenses,4112,Passenger Railways
13/07/17,City Management and Communities,OYSTER AUTOTOPUP,40.00,40.00,.00,Staff travelling expenses,4112,Passenger Railways
13/07/17,City Management and Communities,OYSTER BUS AUTOTOP,20.00,20.00,.00,Staff travelling expenses,4112,Passenger Railways
13/07/17,City Management and Communities,OYSTER BUS AUTOTOP,20.00,20.00,.00,Staff travelling expenses,4112,Passenger Railways
13/07/17,City Management and Communities,OYSTER BUS AUTOTOP,40.00,40.00,.00,Staff travelling expenses,4112,Passenger Railways
13/07/17,Tri-Borough ASC and NHS Integrated Commi,OYSTER BUS AUTOTOP,20.00,20.00,.00,Staff travelling expenses,4112,Passenger Railways
13/07/17,Tri-Borough Childrens Services,PIMLICO HARDWARE,11.98,11.98,.00,"Equipment, furniture and materials",5251,Hardware Stores
13/07/17,Tri-Borough Childrens Services,POBBLES LIMITED,36.00,36.00,.00,Stationery,8111,Legal Services and Attorneys
13/07/17,Tri-borough Libraries and Archives,POST OFFICE COUNTER,185.00,185.00,.00,Section 17 Other,9402,Postal Services - Government Only
13/07/17,Bi-Borough Corporate Services,POSTOFFICE SELFSERVICE,9.25,9.25,.00,Postage,9402,Postal Services - Government Only
13/07/17,Tri-Borough ASC and NHS Integrated Commi,POUND PLACE LTD,4.00,4.00,.00,"Equipment, furniture and materials",5999,Miscellaneous and Specialty Retail Stores
13/07/17,Tri-Borough Childrens Services,SAINSBURYS 0602,5.85,5.85,.00,Subsistence Expenses,5411,Grocery Stores
13/07/17,PPC,SAINSBURYS SACAT (4286,6.00,6.00,.00,Catering,5411,Grocery Stores
13/07/17,Tri-borough Libraries and Archives,SANTANA,9.98,9.98,.00,Stationery,5411,Grocery Stores
13/07/17,Tri-Borough ASC and NHS Integrated Commi,SEARCY,4.90,4.90,.00,Subsistence Expenses,5812,Eating places and Restaurants
13/07/17,Tri-Borough ASC and NHS Integrated Commi,SEARCY,2.95,2.95,.00,Subsistence Expenses,5812,Eating places and Restaurants
13/07/17,"Growth, Planning and Housing",SHOT ESPRESSO,5.10,5.10,.00,Hospitality,5814,Fast Food Restaurants
13/07/17,"Growth, Planning and Housing",SHOT ESPRESSO,5.30,5.30,.00,Hospitality,5814,Fast Food Restaurants
13/07/17,"Growth, Planning and Housing",SHOT ESPRESSO,2.70,2.70,.00,Hospitality,5814,Fast Food Restaurants
13/07/17,"Growth, Planning and Housing",SHOT ESPRESSO,2.40,2.40,.00,Hospitality,5814,Fast Food Restaurants
13/07/17,"Growth, Planning and Housing",SHOT ESPRESSO,4.30,4.30,.00,Hospitality,5814,Fast Food Restaurants
13/07/17,"Growth, Planning and Housing",SHOT ESPRESSO,4.00,4.00,.00,Hospitality,5814,Fast Food Restaurants
13/07/17,Tri-Borough ASC and NHS Integrated Commi,TESCO STORES 3012,9.66,9.66,.00,Stationery,5411,Grocery Stores
13/07/17,Tri-Borough Childrens Services,TESCO-STORES-5714,15.39,15.39,.00,Stationery,5411,Grocery Stores
13/07/17,Corporate Services WCC,THE GRAND HOTEL SWANSE,40.00,40.00,.00,Subsistence Expenses,7011,"Lodging - Hotels, Motels, Resorts, Central Reservation Services (not elsewhere classified)"
13/07/17,Tri-Borough Childrens Services,WESTMINSTER CITY COUNC,25.00,25.00,.00,Internal Fostering,9399,Government Services ( Not Elsewhere Classified)
13/07/17,Tri-Borough Childrens Services,WESTMINSTER PARKING,2.55,2.55,.00,Tport - Prkng & Congestion Chgs,7523,Automobile Parking Lots and Garages
14/07/17,Chief of Staff,4D MODELSHOP LIMITED,301.55,251.29,50.26,"Equipment, furniture and materials",5046,"Commercial Equipment, Not Elsewhere Classified"
14/07/17,"Growth, Planning and Housing",ALLFS CAFE,4.40,4.40,.00,Hospitality,5812,Eating places and Restaurants
14/07/17,Chief of Staff,Amazon EU,136.00,113.33,22.67,"Equipment, furniture and materials",5969,Direct Marketing - Not Elsewhere Classified
14/07/17,Tri-borough Libraries and Archives,Amazon EU,8.99,8.99,.00,"Equipment, furniture and materials",5969,Direct Marketing - Not Elsewhere Classified
14/07/17,Chief of Staff,Amazon EU,69.99,58.33,11.66,"Equipment, furniture and materials",5969,Direct Marketing - Not Elsewhere Classified
14/07/17,Tri-Borough Childrens Services,Amazon UK Marketplace,7.98,7.98,.00,Stationery,5942,Book Stores
14/07/17,Tri-Borough Childrens Services,Amazon UK Marketplace,15.54,15.54,.00,"Equipment, furniture and materials",5942,Book Stores
14/07/17,Tri-borough Libraries and Archives,Amazon UK Marketplace,2.81,2.81,.00,"Equipment, furniture and materials",5942,Book Stores
14/07/17,Tri-borough Libraries and Archives,Amazon UK Marketplace,27.40,27.40,.00,Activities and Events,5942,Book Stores
14/07/17,Tri-borough Libraries and Archives,Amazon UK Marketplace,5.99,5.99,.00,Stationery,5942,Book Stores
14/07/17,Tri-borough Libraries and Archives,Amazon UK Marketplace,10.35,10.35,.00,Stationery,5942,Book Stores
14/07/17,Tri-borough Libraries and Archives,Amazon UK Marketplace,6.30,6.30,.00,"Equipment, furniture and materials",5942,Book Stores
14/07/17,Tri-Borough ASC and NHS Integrated Commi,Amazon UK Marketplace,2.10,2.10,.00,"Equipment, furniture and materials",5942,Book Stores
14/07/17,Tri-Borough ASC and NHS Integrated Commi,AMZ Just Gloves,201.30,201.30,.00,Cleaning and domestic supplies,4816,Computer Network/Information Services
14/07/17,Tri-Borough Childrens Services,ARGOS LTD,280.04,280.04,.00,Section 17 Other,5310,Discount Stores
14/07/17,WAES,ARGOS RETAIL GROUP,17.49,17.49,.00,"Equipment, furniture and materials",5310,Discount Stores
14/07/17,Tri-Borough Childrens Services,ASDA STORES,35.58,35.58,.00,"Clothes, uniform and laundry",5411,Grocery Stores
14/07/17,Tri-Borough Childrens Services,ASHRA'S,38.50,38.50,.00,Section 17 Other,5994,News Dealers and Newsstands
14/07/17,City Treasurers,BLOOMSBURY FLOWERS,40.00,40.00,.00,Stationery,5992,Florists
14/07/17,Tri-Borough ASC and NHS Integrated Commi,BRODIES,13.00,13.00,.00,Assistive Equipment & Technology,7251,"Shop Repair Shops and Shoe Shine Parlors, and Hat Cleaning Shops"
14/07/17,City Management and Communities,DISCLOSURE & BARRING,-13.00,-13.00,.00,DBS Police checks,9399,Government Services ( Not Elsewhere Classified)
14/07/17,Tri-Borough Childrens Services,DIVINE MAINTENANCE LIM,74.80,74.80,.00,Section 17 Other,1520,General Contractors-Residential and Commercial
14/07/17,Corporate Services WCC,Europe Domains Hosting,16.45,16.45,.00,Licences,4816,Computer Network/Information Services
14/07/17,Tri-Borough ASC and NHS Integrated Commi,HMCOURTS-SERVICE.G,60.00,60.00,.00,Fees,9222,Fines
14/07/17,City Management and Communities,IKEA ONLINE,75.00,62.50,12.50,"Equipment, furniture and materials",5719,Miscellaneous Home Furnishing Specialty Stores
14/07/17,Tri-Borough Childrens Services,KFC - STRATFORD,3.98,3.31,.67,Client travelling expenses,5814,Fast Food Restaurants
14/07/17,Tri-Borough Childrens Services,LONDON OVERGROUND TO,10.00,10.00,.00,Staff travelling expenses,4112,Passenger Railways
14/07/17,"Growth, Planning and Housing",LUL TICKET MACHINE,10.60,10.60,.00,Staff travelling expenses,4112,Passenger Railways
14/07/17,Tri-Borough Childrens Services,LUL TICKET MACHINE,15.00,15.00,.00,Staff travelling expenses,4112,Passenger Railways
14/07/17,City Management and Communities,LUL TICKET MACHINE,60.00,60.00,.00,Staff travelling expenses,4112,Passenger Railways
14/07/17,Tri-Borough Childrens Services,LUL TICKET MACHINE,12.30,12.30,.00,Staff travelling expenses,4112,Passenger Railways
14/07/17,Tri-Borough ASC and NHS Integrated Commi,OXYGEN FREEJUMPING,2.00,2.00,.00,"Equipment, furniture and materials",7997,"Membership Clubs (Sports, Recreation, Athletic), Country Clubs, and Private Golf Courses"
14/07/17,"Growth, Planning and Housing",OYSTER AUTOTOPUP,20.00,20.00,.00,Staff travelling expenses,4112,Passenger Railways
14/07/17,City Management and Communities,OYSTER AUTOTOPUP,20.00,20.00,.00,Staff travelling expenses,4112,Passenger Railways
14/07/17,City Management and Communities,OYSTER AUTOTOPUP,40.00,40.00,.00,Staff travel expense,4112,Passenger Railways
14/07/17,City Management and Communities,OYSTER AUTOTOPUP,40.00,40.00,.00,Staff travel expense,4112,Passenger Railways
14/07/17,Tri-Borough Childrens Services,OYSTER AUTOTOPUP,20.00,20.00,.00,Staff travelling expenses,4112,Passenger Railways
14/07/17,City Management and Communities,OYSTER AUTOTOPUP,20.00,20.00,.00,Staff travelling expenses,4112,Passenger Railways
14/07/17,Tri-Borough ASC and NHS Integrated Commi,OYSTER AUTOTOPUP,20.00,20.00,.00,Staff travelling expenses,4112,Passenger Railways
14/07/17,Tri-Borough ASC and NHS Integrated Commi,OYSTER BUS AUTOTOP,20.00,20.00,.00,Client travelling expenses,4112,Passenger Railways
14/07/17,City Management and Communities,OYSTER BUS AUTOTOP,40.00,40.00,.00,Staff travelling expenses,4112,Passenger Railways
14/07/17,City Management and Communities,OYSTER BUS AUTOTOP,40.00,40.00,.00,Staff travelling expenses,4112,Passenger Railways
14/07/17,Tri-Borough ASC and NHS Integrated Commi,OYSTER BUS AUTOTOP,20.00,20.00,.00,Staff travelling expenses,4112,Passenger Railways
14/07/17,Tri-Borough ASC and NHS Integrated Commi,OYSTER BUS AUTOTOP,20.00,20.00,.00,Staff travelling expenses,4112,Passenger Railways
14/07/17,Tri-Borough Childrens Services,PA NEWS CENTRE,20.50,20.50,.00,Section 17 Other,5411,Grocery Stores
14/07/17,Tri-Borough Childrens Services,POST OFFICE COUNTER,55.75,55.75,.00,Contingency,9402,Postal Services - Government Only
14/07/17,Bi-Borough Corporate Services,POSTOFFICE SELFSERVICE,8.35,8.35,.00,Postage,9402,Postal Services - Government Only
14/07/17,Tri-Borough ASC and NHS Integrated Commi,PRET A MANGER,4.30,4.30,.00,Subsistence Expenses,5812,Eating places and Restaurants
14/07/17,City Management and Communities,ROBERT DYAS HOLDNG LTD,42.52,35.44,7.08,"Equipment, furniture and materials",5251,Hardware Stores
14/07/17,PPC,RSA ADELPHI ENTERPRISE,247.50,206.25,41.25,Training,8999,Professional Services ( Not Elsewhere Defined)
14/07/17,Tri-Borough Childrens Services,SAFESTORE LIMITED,75.78,75.78,.00,Contingency,4225,Storage
14/07/17,"Growth, Planning and Housing",SAINSBURYS 2116,20.00,20.00,.00,Hospitality,5411,Grocery Stores
14/07/17,City Treasurers,SENATOR DEVELOPMEN,44.99,37.49,7.50,"Equipment, furniture and materials",5231,Glass Stores
14/07/17,Tri-Borough Childrens Services,TESCO STORES 4342,2.15,2.15,.00,Staff travelling expenses,5411,Grocery Stores
14/07/17,WAES,THE LONDON WATERBUS CO,630.00,630.00,.00,Training,4121,Taxicabs and Limousines
14/07/17,City Treasurers,WASABI HIGH STREET KEN,18.90,17.13,1.77,Catering,5812,Eating places and Restaurants
14/07/17,Tri-Borough Childrens Services,WWW.DOMINOS.CO.UK,171.50,142.90,28.60,Achievmnts Gifts Prizes Pupils E19,5812,Eating places and Restaurants
14/07/17,City Management and Communities,WWW.EAT.CO.UK,71.25,71.25,.00,Activities and Events,5812,Eating places and Restaurants
14/07/17,Tri-Borough Childrens Services,WWW.ECOURIER.CO.UK,25.64,25.64,.00,Section 17 Other,4215,Courier Services - Air or Ground
14/07/17,Tri-Borough Childrens Services,WWW.SCHOOLTRENDS.CO.UK,50.37,50.37,.00,"Clothes, uniform and laundry",5137,Men�s Women�s and Children�s Uniforms and Commercial Clothing
15/07/17,Bi-Borough Corporate Services,Amazon EU,20.00,20.00,.00,Stationery,5969,Direct Marketing - Not Elsewhere Classified
15/07/17,Tri-borough Libraries and Archives,Amazon UK Marketplace,36.88,36.88,.00,"Equipment, furniture and materials",5942,Book Stores
15/07/17,Tri-Borough Childrens Services,AMZ WS Medical,-9.00,-7.50,-1.50,Medical and Domestic Supplies -E22,5999,Miscellaneous and Specialty Retail Stores
15/07/17,City Management and Communities,NATIONAL EXPRESS LIMIT,9.40,9.40,.00,Staff travelling expenses,4131,"Bus Lines, Including Charters, Tour Buses"
15/07/17,City Management and Communities,OYSTER AUTOTOPUP,20.00,20.00,.00,Staff travelling expenses,4112,Passenger Railways
15/07/17,Corporate Services WCC,OYSTER AUTOTOPUP,20.00,20.00,.00,Staff travelling expenses,4112,Passenger Railways
15/07/17,Tri-Borough Childrens Services,OYSTER AUTOTOPUP,20.00,20.00,.00,Staff travelling expenses,4112,Passenger Railways
15/07/17,City Management and Communities,OYSTER AUTOTOPUP,20.00,20.00,.00,Staff travelling expenses,4112,Passenger Railways
15/07/17,City Management and Communities,OYSTER AUTOTOPUP,20.00,20.00,.00,Staff travelling expenses,4112,Passenger Railways
15/07/17,City Management and Communities,OYSTER AUTOTOPUP,20.00,20.00,.00,Staff travelling expenses,4112,Passenger Railways
15/07/17,City Management and Communities,OYSTER AUTOTOPUP,20.00,20.00,.00,Staff travelling expenses,4112,Passenger Railways
15/07/17,Tri-Borough ASC and NHS Integrated Commi,OYSTER AUTOTOPUP,20.00,20.00,.00,Staff travelling expenses,4112,Passenger Railways
15/07/17,City Management and Communities,OYSTER AUTOTOPUP,20.00,20.00,.00,Staff travelling expenses,4112,Passenger Railways
15/07/17,City Management and Communities,OYSTER BUS AUTOTOP,40.00,40.00,.00,Staff travelling expenses,4112,Passenger Railways
15/07/17,City Management and Communities,OYSTER BUS AUTOTOP,20.00,20.00,.00,Staff travelling expenses,4112,Passenger Railways
15/07/17,Tri-Borough ASC and NHS Integrated Commi,OYSTER BUS AUTOTOP,20.00,20.00,.00,Staff travelling expenses,4112,Passenger Railways
15/07/17,City Treasurers,PAYPAL  HCSLINGSBYP,590.40,492.00,98.40,"Equipment, furniture and materials",5085,"Industrial Supplies, Not Elsewhere Classified"
15/07/17,City Management and Communities,PRET A MANGER,13.73,12.93,.80,Subsistence Expenses,5812,Eating places and Restaurants
15/07/17,Tri-Borough Childrens Services,PRODUCT SUPPORT AG,5.00,5.00,.00,Section 17 Other,5968,Direct Marketing - Continuity/Subscription Merchant
15/07/17,Tri-borough Libraries and Archives,TESCO STORES 5177,1.00,1.00,.00,Catering,5411,Grocery Stores
16/07/17,Tri-Borough Childrens Services,Amazon EU,47.13,47.13,.00,"Equipment, furniture and materials",5969,Direct Marketing - Not Elsewhere Classified
16/07/17,Tri-borough Libraries and Archives,Amazon EU,107.10,107.10,.00,Stationery,5969,Direct Marketing - Not Elsewhere Classified
16/07/17,Tri-Borough Childrens Services,Amazon Prime,79.00,79.00,.00,"S/scriptns, pblcations, Per Non Cur E22",5968,Direct Marketing - Continuity/Subscription Merchant
16/07/17,City Management and Communities,Amazon UK Marketplace,32.33,32.33,.00,IT Hardware Purchase,5942,Book Stores
16/07/17,City Management and Communities,OYSTER AUTOTOPUP,20.00,20.00,.00,Staff travelling expenses,4112,Passenger Railways
16/07/17,City Management and Communities,OYSTER AUTOTOPUP,40.00,40.00,.00,Staff travelling expenses,4112,Passenger Railways
16/07/17,Tri-Borough ASC and NHS Integrated Commi,OYSTER AUTOTOPUP,20.00,20.00,.00,Staff travelling expenses,4112,Passenger Railways
16/07/17,City Management and Communities,OYSTER BUS AUTOTOP,20.00,20.00,.00,Staff travelling expenses,4112,Passenger Railways
16/07/17,City Management and Communities,OYSTER BUS AUTOTOP,20.00,20.00,.00,Staff travelling expenses,4112,Passenger Railways
16/07/17,"Growth, Planning and Housing",OYSTER BUS AUTOTOP,40.00,40.00,.00,Staff travelling expenses,4112,Passenger Railways
16/07/17,Tri-Borough ASC and NHS Integrated Commi,OYSTER BUS AUTOTOP,20.00,20.00,.00,Staff travelling expenses,4112,Passenger Railways
16/07/17,City Management and Communities,PRET A MANGER,8.49,7.60,.89,Subsistence Expenses,5812,Eating places and Restaurants
16/07/17,Tri-borough Libraries and Archives,PRET A MANGER,6.05,6.05,.00,Subsistence Expenses,5812,Eating places and Restaurants
16/07/17,Corporate Services WCC,STORMONT HOTEL,1800.00,1500.00,300.00,Subsistence Expenses,7011,"Lodging - Hotels, Motels, Resorts, Central Reservation Services (not elsewhere classified)"
17/07/17,City Treasurers,Amazon EU,200.00,200.00,.00,Activities and Events,5969,Direct Marketing - Not Elsewhere Classified
17/07/17,Tri-Borough Childrens Services,Amazon EU,4.99,4.99,.00,"Print, Pub & adverts",5969,Direct Marketing - Not Elsewhere Classified
17/07/17,City Treasurers,Amazon EU,1200.00,1200.00,.00,Activities and Events,5969,Direct Marketing - Not Elsewhere Classified
17/07/17,Tri-Borough Childrens Services,Amazon UK Marketplace,4.49,4.49,.00,"Print, Pub & adverts",5942,Book Stores
17/07/17,PPC,Amazon UK Marketplace,34.00,28.32,5.68,"Equipment, furniture and materials",5942,Book Stores
17/07/17,PPC,Amazon UK Marketplace,19.98,19.98,.00,"Equipment, furniture and materials",5942,Book Stores
17/07/17,Tri-Borough ASC and NHS Integrated Commi,Amazon UK Marketplace,34.98,34.98,.00,"Equipment, furniture and materials",5942,Book Stores
17/07/17,City Treasurers,AMAZON UK RETAIL AMAZO,1200.00,1200.00,.00,Activities and Events,5999,Miscellaneous and Specialty Retail Stores
17/07/17,"Growth, Planning and Housing",ARCO LTD,154.39,128.66,25.73,"Clothes, uniform and laundry",5137,Men�s Women�s and Children�s Uniforms and Commercial Clothing
17/07/17,City Management and Communities,BERKELEY CATERING LIMI,17.58,17.58,.00,Activities and Events,5811,Caterers
17/07/17,Bi-Borough Corporate Services,CMT (UK) LTD - GLASGOW,7.40,7.40,.00,Staff travelling expenses,4121,Taxicabs and Limousines
17/07/17,"Growth, Planning and Housing",COFFEE REPUBLIC,7.50,7.50,.00,Hospitality,5813,"Drinking Places (Alcoholic Beverages), Bars, Taverns, Cocktail lounges, Nightclubs and Discotheques"
17/07/17,City Management and Communities,DOUBLETREE,165.75,165.75,.00,Subsistence Expenses,3692,DOUBLETREE HOTELS
17/07/17,Tri-Borough ASC and NHS Integrated Commi,FIELDERS,9.65,9.65,.00,"Equipment, furniture and materials",5943,"Stationery Stores, Office and School Supply Stores"
17/07/17,Tri-Borough ASC and NHS Integrated Commi,HAMMERSMITH RENAL PTS,5.00,5.00,.00,Subsistence Expenses,5811,Caterers
17/07/17,Tri-Borough Childrens Services,LITTLE VENICE SPOR,16.25,16.25,.00,Activities and Events,7997,"Membership Clubs (Sports, Recreation, Athletic), Country Clubs, and Private Golf Courses"
17/07/17,Tri-Borough Childrens Services,LUL TICKET MACHINE,10.00,10.00,.00,Staff travelling expenses,4112,Passenger Railways
17/07/17,Tri-Borough Childrens Services,LUL TICKET MACHINE,5.00,5.00,.00,Staff travelling expenses,4112,Passenger Railways
17/07/17,Tri-Borough Childrens Services,LUL TICKET MACHINE,10.00,10.00,.00,Staff travelling expenses,4112,Passenger Railways
17/07/17,Tri-borough Libraries and Archives,LUL TICKET MACHINE,50.00,50.00,.00,Staff travelling expenses,4112,Passenger Railways
17/07/17,Tri-Borough Childrens Services,LUL TICKET MACHINE,20.00,20.00,.00,Staff travelling expenses,4112,Passenger Railways
17/07/17,Tri-Borough Childrens Services,LUL TICKET MACHINE,20.00,20.00,.00,Section 17 Other,4112,Passenger Railways
17/07/17,Bi-Borough Corporate Services,LUL TICKET MACHINE,17.50,17.50,.00,Staff travelling expenses,4112,Passenger Railways
17/07/17,Tri-Borough Childrens Services,LUL TICKET MACHINE,10.00,10.00,.00,Staff travelling expenses,4112,Passenger Railways
17/07/17,Tri-Borough ASC and NHS Integrated Commi,MARKS&SPENCER PLC,3.05,3.05,.00,"Equipment, furniture and materials",5411,Grocery Stores
17/07/17,Tri-Borough ASC and NHS Integrated Commi,MEDWAY ICAB LTD,30.00,30.00,.00,Staff travelling expenses,4121,Taxicabs and Limousines
17/07/17,Tri-borough Libraries and Archives,MIDLAND FIRE SAFETY AN,2.15,1.79,.36,"Equipment, furniture and materials",7393,Protective and Security Services - Including Armored Cars and Guard Dogs
17/07/17,Tri-borough Libraries and Archives,MIDLAND FIRE SAFETY AN,2.15,1.79,.36,"Equipment, furniture and materials",7393,Protective and Security Services - Including Armored Cars and Guard Dogs
17/07/17,Tri-Borough Childrens Services,MOTHERCARE DIRECT-MOTO,101.49,101.49,.00,Section 17 Other,5311,Department Stores
17/07/17,Tri-Borough Childrens Services,OCADO RETAIL LIMIT,45.99,44.60,1.39,Provisions -E25,5411,Grocery Stores
17/07/17,City Management and Communities,OYSTER AUTOSETTLE,40.00,40.00,.00,Staff travel expense,4112,Passenger Railways
17/07/17,Tri-Borough Childrens Services,OYSTER AUTOTOPUP,20.00,20.00,.00,Staff travelling expenses,4112,Passenger Railways
17/07/17,City Management and Communities,OYSTER ISSUE WEB,25.00,25.00,.00,Staff travel expense,4112,Passenger Railways
17/07/17,City Management and Communities,OYSTER ISSUE WEB,25.00,25.00,.00,Staff travel expense,4112,Passenger Railways
17/07/17,Tri-Borough Childrens Services,POUNDLAND LTD 1203,3.00,3.00,.00,"Equipment, furniture and materials",5310,Discount Stores
17/07/17,Tri-Borough ASC and NHS Integrated Commi,PRET A MANGER,4.10,4.10,.00,Day Opportunities,5812,Eating places and Restaurants
17/07/17,Tri-Borough Childrens Services,PRET A MANGER,5.95,5.95,.00,Staff travelling expenses,5812,Eating places and Restaurants
17/07/17,City Management and Communities,RINGGO PARKING,14.70,14.65,.05,Tport - Prkng & Congestion Chgs,7523,Automobile Parking Lots and Garages
17/07/17,Tri-Borough Childrens Services,RYMAN 1004,5.99,5.99,.00,Section 17 Other,5943,"Stationery Stores, Office and School Supply Stores"
17/07/17,Tri-Borough ASC and NHS Integrated Commi,SAINSBURYS LOC (4367),1.05,1.05,.00,Subsistence Expenses,5411,Grocery Stores
17/07/17,Tri-Borough Childrens Services,SAINSBURYS SAC (4367),6.55,6.55,.00,Activities and Events,5411,Grocery Stores
17/07/17,PPC,SAINSBURYS SACAT (4286,9.37,9.37,.00,Catering,5411,Grocery Stores
17/07/17,Tri-Borough Childrens Services,SELFSERVE TICKET,4.40,4.40,.00,LAC Contact,4112,Passenger Railways
17/07/17,City Management and Communities,STAGECOACH SW TRAINS L,25.60,25.60,.00,Staff travelling expenses,4112,Passenger Railways
17/07/17,Corporate Services WCC,STORMONT HOTEL,170.00,141.67,28.33,Subsistence Expenses,7011,"Lodging - Hotels, Motels, Resorts, Central Reservation Services (not elsewhere classified)"
17/07/17,Corporate Services WCC,STORMONT HOTEL,150.00,125.00,25.00,Subsistence Expenses,7011,"Lodging - Hotels, Motels, Resorts, Central Reservation Services (not elsewhere classified)"
17/07/17,Corporate Services WCC,STORMONT HOTEL,150.00,125.00,25.00,Subsistence Expenses,7011,"Lodging - Hotels, Motels, Resorts, Central Reservation Services (not elsewhere classified)"
17/07/17,Corporate Services WCC,STORMONT HOTEL,150.00,125.00,25.00,Subsistence Expenses,7011,"Lodging - Hotels, Motels, Resorts, Central Reservation Services (not elsewhere classified)"
17/07/17,Corporate Services WCC,STORMONT HOTEL,150.00,150.00,.00,Subsistence Expenses,7011,"Lodging - Hotels, Motels, Resorts, Central Reservation Services (not elsewhere classified)"
17/07/17,Corporate Services WCC,STORMONT HOTEL,150.00,125.00,25.00,Subsistence Expenses,7011,"Lodging - Hotels, Motels, Resorts, Central Reservation Services (not elsewhere classified)"
17/07/17,Corporate Services WCC,STORMONT HOTEL,150.00,125.00,25.00,Subsistence Expenses,7011,"Lodging - Hotels, Motels, Resorts, Central Reservation Services (not elsewhere classified)"
17/07/17,Corporate Services WCC,STORMONT HOTEL,150.00,125.00,25.00,Subsistence Expenses,7011,"Lodging - Hotels, Motels, Resorts, Central Reservation Services (not elsewhere classified)"
17/07/17,Tri-Borough Childrens Services,TESCO - Yellow Moon,37.50,37.50,.00,"Equipment, furniture and materials",5999,Miscellaneous and Specialty Retail Stores
17/07/17,Tri-Borough Childrens Services,TESCO DIRECT,15.50,15.50,.00,"Equipment, furniture and materials",5999,Miscellaneous and Specialty Retail Stores
17/07/17,Tri-Borough Childrens Services,TESCO-STORES-5714,3.59,3.59,.00,Stationery,5411,Grocery Stores
17/07/17,Tri-borough Libraries and Archives,Trainline,13.97,13.97,.00,Staff travelling expenses,4112,Passenger Railways
17/07/17,"Growth, Planning and Housing",TRI BOROUGH- LISSON GR,3.75,3.75,.00,Hospitality,5811,Caterers
17/07/17,Tri-Borough Childrens Services,Virgin Trains,53.10,53.10,.00,Staff travelling expenses,4112,Passenger Railways
17/07/17,Tri-borough Libraries and Archives,WEBSTERS,70.00,70.00,.00,Section 17 Other,5211,Lumber and Building Materials Stores
17/07/17,City Management and Communities,WESTMINSTER CITY COUNC,25.00,25.00,.00,Licences,9399,Government Services ( Not Elsewhere Classified)
17/07/17,Tri-Borough Childrens Services,WESTMINSTER PARKING,5.55,5.55,.00,Tport - Prkng & Congestion Chgs,7523,Automobile Parking Lots and Garages
17/07/17,Tri-Borough Childrens Services,WESTMINSTER PARKING,4.99,4.99,.00,Tport - Prkng & Congestion Chgs,7523,Automobile Parking Lots and Garages
17/07/17,Tri-Borough Childrens Services,WWW.VIRGINTRAINS.CO.UK,67.00,67.00,.00,Sch Trips & Educ Vsits 0,4112,Passenger Railways
17/07/17,City Treasurers,WWW.VOUCHEREXPRESS.CO.,305.75,305.75,.00,Activities and Events,5947,"Card Shops, Gift, Novelty, and Souvenir Shops"
17/07/17,City Treasurers,WWW.VOUCHEREXPRESS.CO.,150.00,150.00,.00,Activities and Events,5947,"Card Shops, Gift, Novelty, and Souvenir Shops"
18/07/17,Corporate Services WCC,AFORDAWARDS.CO.UK,50.34,50.34,.00,Activities and Events,5947,"Card Shops, Gift, Novelty, and Souvenir Shops"
18/07/17,"Growth, Planning and Housing",ALLFS CAFE,4.40,4.40,.00,Hospitality,5812,Eating places and Restaurants
18/07/17,Tri-borough Libraries and Archives,Amazon EU,27.70,27.70,.00,"Equipment, furniture and materials",5969,Direct Marketing - Not Elsewhere Classified
18/07/17,Tri-Borough Childrens Services,AMAZON UK RETAIL AMAZO,20.98,20.98,.00,Stationery,5999,Miscellaneous and Specialty Retail Stores
18/07/17,Tri-Borough ASC and NHS Integrated Commi,BURGER KING,4.99,4.99,.00,Subsistence Expenses,5812,Eating places and Restaurants
18/07/17,Tri-Borough Childrens Services,CAFFE NERO 495 LADBROK,11.80,11.80,.00,Section 17 Other,5814,Fast Food Restaurants
18/07/17,City Management and Communities,CPC,82.60,68.83,13.77,Trade Waste and Refuse Collection,5065,Electrical Parts and Equipment
18/07/17,Tri-Borough Childrens Services,DISCLOSURE & BARRING,13.00,13.00,.00,Section 17 Other,9399,Government Services ( Not Elsewhere Classified)
18/07/17,Tri-Borough Childrens Services,FIVE GUYS B'HAM NEW ST,5.75,5.75,.00,Staff travelling expenses,5814,Fast Food Restaurants
18/07/17,City Treasurers,FTC ECOM,80.00,80.00,.00,"Print, Pub & adverts",8299,Schools and Educational Services ( Not Elsewhere Classified)
18/07/17,City Treasurers,FX RENTALS LTD,306.00,306.00,.00,Hired and Contracted Services,7399,"Business Services, Not Elsewhere Classified"
18/07/17,WAES,GORDON RAMSAY HOLDINGS,500.00,500.00,.00,Hired and Contracted Services,5812,Eating places and Restaurants
18/07/17,City Treasurers,HALFORDS ON LINE,100.00,100.00,.00,Activities and Events,5940,Bicycle Shops - Sales and Service
18/07/17,Tri-Borough ASC and NHS Integrated Commi,HMCOURTS-SERVICE.G,20.00,20.00,.00,Fees,9222,Fines
18/07/17,Tri-Borough Childrens Services,LEON KENSINGTON AR,5.45,5.45,.00,Staff travelling expenses,5812,Eating places and Restaurants
18/07/17,Tri-Borough Childrens Services,LONDON MIDLAND TIC,134.20,134.20,.00,Staff travelling expenses,4112,Passenger Railways
18/07/17,Tri-Borough Childrens Services,LONDON OVERGROUND SST,7.00,7.00,.00,Staff travelling expenses,4112,Passenger Railways
18/07/17,Tri-Borough Childrens Services,LUL TICKET MACHINE,5.00,5.00,.00,Sch Trips & Educ Vsits 0,4112,Passenger Railways
18/07/17,Tri-Borough Childrens Services,LUL TICKET MACHINE,5.00,5.00,.00,Sch Trips & Educ Vsits 0,4112,Passenger Railways
18/07/17,Tri-Borough Childrens Services,LUL TICKET MACHINE,10.00,10.00,.00,Sch Trips & Educ Vsits 0,4112,Passenger Railways
18/07/17,Tri-Borough Childrens Services,LUL TICKET MACHINE,10.00,10.00,.00,Sch Trips & Educ Vsits 0,4112,Passenger Railways
18/07/17,"Growth, Planning and Housing",LUL TICKET MACHINE,10.00,10.00,.00,Staff travelling expenses,4112,Passenger Railways
18/07/17,Tri-Borough Childrens Services,LUL TICKET MACHINE,126.80,126.80,.00,Section 17 Young Persons Support,4112,Passenger Railways
18/07/17,City Management and Communities,LUL TICKET MACHINE,12.30,12.30,.00,Staff travelling expenses,4112,Passenger Railways
18/07/17,"Growth, Planning and Housing",M&S SIMPLY FOOD - SSP,10.00,10.00,.00,Hospitality,5499,Misc. Food Stores - Convenience Stores and Specialty Markets
18/07/17,Tri-Borough Childrens Services,M&S SIMPLY FOOD - SSP,2.20,2.20,.00,Subsistence Expenses,5499,Misc. Food Stores - Convenience Stores and Specialty Markets
18/07/17,City Treasurers,MARKS&SPENCER PLC,200.00,200.00,.00,Activities and Events,5411,Grocery Stores
18/07/17,Tri-Borough Childrens Services,MITCHAM EASTFIELDS RAI,4.40,4.40,.00,Staff travelling expenses,4112,Passenger Railways
18/07/17,City Management and Communities,NEW SOUTHERN RAILW,13.80,13.80,.00,Staff travelling expenses,4112,Passenger Railways
18/07/17,Tri-Borough Childrens Services,NISA LOCAL ELSTREE STA,10.00,10.00,.00,Staff travelling expenses,5499,Misc. Food Stores - Convenience Stores and Specialty Markets
18/07/17,WAES,O2 UK PAYMENT,35.69,35.69,.00,Telephony,4814,Fax services
18/07/17,City Management and Communities,OYSTER BUS AUTOTOP,20.00,20.00,.00,Staff travelling expenses,4112,Passenger Railways
18/07/17,Tri-Borough Childrens Services,PRET A MANGER,3.45,3.45,.00,Subsistence Expenses,5812,Eating places and Restaurants
18/07/17,Tri-Borough ASC and NHS Integrated Commi,PROJECT AWARE FOUN,10.00,10.00,.00,Fees,8398,Charitable and Social Service Organizations
18/07/17,Tri-borough Libraries and Archives,RYMAN 1120,18.03,15.02,3.01,Stationery,5943,"Stationery Stores, Office and School Supply Stores"
18/07/17,City Treasurers,RYMAN 1175,24.97,24.97,.00,Stationery,5943,"Stationery Stores, Office and School Supply Stores"
18/07/17,Tri-Borough Childrens Services,SCREWFIX DIRECT,319.50,266.33,53.17,Staff Empl Cost of M & Equip E12,5211,Lumber and Building Materials Stores
18/07/17,"Growth, Planning and Housing",SK SWEETS,10.50,10.50,.00,Client travelling expenses,5411,Grocery Stores
18/07/17,Corporate Services WCC,STORMONT HOTEL,-1220.00,-1016.67,-203.33,Subsistence Expenses,7011,"Lodging - Hotels, Motels, Resorts, Central Reservation Services (not elsewhere classified)"
18/07/17,Tri-Borough Childrens Services,TAXIPAY TAXI FARE,13.52,13.52,.00,Staff travelling expenses,4121,Taxicabs and Limousines
18/07/17,Tri-Borough Childrens Services,TAXIPAY TAXI FARE,14.14,14.14,.00,Staff travelling expenses,4121,Taxicabs and Limousines
18/07/17,Tri-Borough Childrens Services,TESCO STORE 3340,33.06,33.06,.00,S24 Support allowance,5411,Grocery Stores
18/07/17,Tri-borough Libraries and Archives,THE BEAD SHOP,63.63,53.02,10.61,"Equipment, furniture and materials",5970,Artist�s Supply and Craft Shops
18/07/17,Tri-Borough Childrens Services,TSGN,3.10,3.10,.00,Staff travelling expenses,4112,Passenger Railways
18/07/17,Tri-borough Libraries and Archives,WEBSTERS,21.70,21.70,.00,Section 17 Other,5211,Lumber and Building Materials Stores
18/07/17,Tri-Borough Childrens Services,WH SMITH,6.49,6.49,.00,Stationery,5994,News Dealers and Newsstands
18/07/17,City Treasurers,WWW.STAC.CO.UK,1118.98,932.49,186.49,"Equipment, furniture and materials",5712,"Furniture, Home Furnishings, and Equipment Stores, Except Appliances"
18/07/17,Tri-Borough Childrens Services,WWW.VIKING-DIRECT.CO.U,23.99,19.99,4.00,C/Rm & Learning Equip Excl ICT E19,5111,"Stationery, Office Supplies, Printing, and Writing Paper"
18/07/17,City Treasurers,WWW.VOUCHEREXPRESS.CO.,50.00,50.00,.00,Activities and Events,5947,"Card Shops, Gift, Novelty, and Souvenir Shops"
18/07/17,Tri-Borough Childrens Services,ZAYANE,51.11,51.11,.00,Section 17 Other,5814,Fast Food Restaurants
19/07/17,Tri-Borough ASC and NHS Integrated Commi,Amazon UK Marketplace,1.98,1.98,.00,Assistive Equipment & Technology,5942,Book Stores
19/07/17,Tri-Borough Childrens Services,Amazon UK Marketplace,45.26,45.26,.00,Furniture -Teaching Purposes -E19,5942,Book Stores
19/07/17,City Management and Communities,Amazon UK Marketplace,6.28,5.23,1.05,Trade Waste and Refuse Collection,5942,Book Stores
19/07/17,Tri-borough Libraries and Archives,Amazon UK Marketplace,13.86,13.86,.00,Activities and Events,5942,Book Stores
19/07/17,Tri-borough Libraries and Archives,AMAZON.CO.UK,18.87,15.74,3.13,Activities and Events,5999,Miscellaneous and Specialty Retail Stores
19/07/17,Tri-borough Libraries and Archives,AMZ Amazon.co.uk,-8.98,-8.98,.00,Activities and Events,5969,Direct Marketing - Not Elsewhere Classified
19/07/17,Tri-Borough Childrens Services,ARGOS LTD,32.99,32.99,.00,Section 17 Other,5310,Discount Stores
19/07/17,Tri-Borough Childrens Services,ASHRA'S,63.90,63.90,.00,Section 17 Young Persons Support,5994,News Dealers and Newsstands
19/07/17,Tri-Borough Childrens Services,BENS NEWS,7.70,7.70,.00,Staff travelling expenses,5411,Grocery Stores
19/07/17,Tri-Borough Childrens Services,C2C BARKING,7.40,7.40,.00,Staff travelling expenses,4112,Passenger Railways
19/07/17,Chief of Staff,CMT (UK) LTD - GLASGOW,27.94,27.94,.00,Staff travelling expenses,4121,Taxicabs and Limousines
19/07/17,Tri-Borough Childrens Services,CO-OP GROUP FOOD,9.96,9.96,.00,Section 17 Other,5411,Grocery Stores
19/07/17,Tri-Borough ASC and NHS Integrated Commi,GRO HM PASSPORT OFFICE,23.40,23.40,.00,Hired and Contracted Services,9399,Government Services ( Not Elsewhere Classified)
19/07/17,Tri-Borough Childrens Services,HM PASSPORT OFFICE,46.00,46.00,.00,Internal Fostering,9399,Government Services ( Not Elsewhere Classified)
19/07/17,Tri-Borough Childrens Services,IZ  ABOVE AND BEYOND T,22.44,22.44,.00,Staff travelling expenses,4121,Taxicabs and Limousines
19/07/17,Chief of Staff,IZ  London Taxi,16.00,16.00,.00,Staff travelling expenses,4121,Taxicabs and Limousines
19/07/17,Tri-Borough Childrens Services,LONDON OVERGROUND SST,10.00,10.00,.00,Staff travelling expenses,4112,Passenger Railways
19/07/17,Tri-Borough Childrens Services,LUL TICKET MACHINE,10.00,10.00,.00,Staff travelling expenses,4112,Passenger Railways
19/07/17,Tri-Borough Childrens Services,LUL TICKET MACHINE,12.30,12.30,.00,Staff travelling expenses,4112,Passenger Railways
19/07/17,Bi-Borough Corporate Services,LUL TICKET MACHINE,12.30,12.30,.00,Staff travelling expenses,4112,Passenger Railways
19/07/17,Tri-Borough Childrens Services,LUL TICKET MACHINE,10.00,10.00,.00,Staff travelling expenses,4112,Passenger Railways
19/07/17,Tri-Borough ASC and NHS Integrated Commi,LUL TICKET MACHINE,30.00,30.00,.00,Staff travelling expenses,4112,Passenger Railways
19/07/17,Tri-Borough ASC and NHS Integrated Commi,LUL TICKET MACHINE,30.00,30.00,.00,Staff travelling expenses,4112,Passenger Railways
19/07/17,"Growth, Planning and Housing",LUL TICKET MACHINE,50.00,50.00,.00,Staff travelling expenses,4112,Passenger Railways
19/07/17,"Growth, Planning and Housing",LUL TICKET MACHINE,50.00,50.00,.00,Staff travelling expenses,4112,Passenger Railways
19/07/17,Tri-Borough Childrens Services,MCDONALDS,6.08,6.08,.00,Activities and Events,5814,Fast Food Restaurants
19/07/17,Tri-Borough Childrens Services,MOTHERCARE DIRECT-MOTO,5.00,5.00,.00,Section 17 Other,5311,Department Stores
19/07/17,Tri-Borough Childrens Services,NEW SOUTHERN RAILW,30.00,30.00,.00,Staff travelling expenses,4112,Passenger Railways
19/07/17,Tri-Borough ASC and NHS Integrated Commi,NEW SOUTHERN RAILW,8.70,8.70,.00,Staff travelling expenses,4112,Passenger Railways
19/07/17,City Management and Communities,NEW SOUTHERN RAILW,50.00,50.00,.00,Staff travelling expenses,4112,Passenger Railways
19/07/17,City Management and Communities,OYSTER AUTOTOPUP,20.00,20.00,.00,Staff travelling expenses,4112,Passenger Railways
19/07/17,Tri-Borough ASC and NHS Integrated Commi,OYSTER AUTOTOPUP,20.00,20.00,.00,Staff travelling expenses,4112,Passenger Railways
19/07/17,Tri-Borough ASC and NHS Integrated Commi,OYSTER AUTOTOPUP,20.00,20.00,.00,Staff travelling expenses,4112,Passenger Railways
19/07/17,City Management and Communities,OYSTER AUTOTOPUP,20.00,20.00,.00,Staff travelling expenses,4112,Passenger Railways
19/07/17,"Growth, Planning and Housing",OYSTER AUTOTOPUP,40.00,40.00,.00,Staff travelling expenses,4112,Passenger Railways
19/07/17,Tri-Borough ASC and NHS Integrated Commi,OYSTER BUS AUTOTOP,20.00,20.00,.00,Staff travelling expenses,4112,Passenger Railways
19/07/17,Tri-Borough ASC and NHS Integrated Commi,OYSTER BUS AUTOTOP,20.00,20.00,.00,Staff travelling expenses,4112,Passenger Railways
19/07/17,City Management and Communities,OYSTER RENEW WEB,50.00,50.00,.00,Staff travelling expenses,4112,Passenger Railways
19/07/17,Tri-Borough Childrens Services,POUNDLAND LTD 1231,8.05,8.05,.00,Section 17 Other,5310,Discount Stores
19/07/17,Tri-Borough Childrens Services,PRET A MANGER,5.35,5.35,.00,Subsistence Expenses,5812,Eating places and Restaurants
19/07/17,Tri-Borough ASC and NHS Integrated Commi,PRET A MANGER,4.94,4.94,.00,Subsistence Expenses,5812,Eating places and Restaurants
19/07/17,Tri-Borough Childrens Services,PRIMARK,6.00,6.00,.00,Section 17 Other,5651,Family Clothing Stores
19/07/17,Tri-Borough Childrens Services,PRIMARK,36.20,36.20,.00,Section 17 Other,5651,Family Clothing Stores
19/07/17,PPC,SAINSBURYS SACAT (4286,6.00,6.00,.00,Catering,5411,Grocery Stores
19/07/17,Tri-Borough Childrens Services,SAINSBURYS SACAT 0302,5.10,5.10,.00,Section 17 Other,5411,Grocery Stores
19/07/17,Tri-Borough ASC and NHS Integrated Commi,SAINSBURYS SACAT 0602,18.54,18.54,.00,"Equipment, furniture and materials",5411,Grocery Stores
19/07/17,Tri-Borough ASC and NHS Integrated Commi,SAINSBURYS SACAT 2041,14.80,14.80,.00,Catering,5411,Grocery Stores
19/07/17,Tri-Borough ASC and NHS Integrated Commi,SAINSBURYS TO YOU 0602,304.39,304.39,.00,Catering,5411,Grocery Stores
19/07/17,Tri-Borough ASC and NHS Integrated Commi,SANDRO SNACK BAR,4.50,4.50,.00,Subsistence Expenses,5812,Eating places and Restaurants
19/07/17,Tri-Borough Childrens Services,SELECT & SAVE,6.99,6.99,.00,Section 17 Other,5251,Hardware Stores
19/07/17,Tri-borough Libraries and Archives,SPORTSDIRECT.COM,59.99,59.99,.00,"Clothes, uniform and laundry",5941,Sporting Goods Stores
19/07/17,Chief of Staff,TAXI FARE BY VERIFONE,17.60,17.60,.00,Staff travelling expenses,4121,Taxicabs and Limousines
19/07/17,Tri-borough Libraries and Archives,TFL VISITOR SHOP,15.25,15.25,.00,Staff travelling expenses,5965,Direct Marketing - Catalog and Catalog and Retail Merchant
19/07/17,Tri-Borough Childrens Services,TOOLSTATION LTD,40.68,33.90,6.78,Staff Empl Cost of M & Equip E12,5251,Hardware Stores
19/07/17,Tri-Borough Childrens Services,Trainline,50.08,50.08,.00,Staff travelling expenses,4112,Passenger Railways
19/07/17,Tri-Borough ASC and NHS Integrated Commi,Trainline,15.15,15.15,.00,Staff travelling expenses,4112,Passenger Railways
19/07/17,Chief of Staff,VERIFONE TAXI/PRIVATE,9.46,9.46,.00,Staff travelling expenses,4121,Taxicabs and Limousines
19/07/17,Tri-Borough Childrens Services,WESTMINSTER PARKING,3.50,3.50,.00,Tport - Prkng & Congestion Chgs,7523,Automobile Parking Lots and Garages
19/07/17,Tri-Borough Childrens Services,WWW.TROPHYSTORE.CO.UK,100.99,84.16,16.83,Learning Res Not ICT Equip E19,5947,"Card Shops, Gift, Novelty, and Souvenir Shops"
20/07/17,Tri-Borough ASC and NHS Integrated Commi,Amazon EU,8.58,8.58,.00,"Equipment, furniture and materials",5969,Direct Marketing - Not Elsewhere Classified
20/07/17,Tri-borough Libraries and Archives,Amazon Prime,7.99,7.99,.00,Postage,5968,Direct Marketing - Continuity/Subscription Merchant
20/07/17,Tri-borough Libraries and Archives,Amazon UK Marketplace,32.40,32.40,.00,Activities and Events,5942,Book Stores
20/07/17,Tri-Borough Childrens Services,AMAZON.CO.UK,12.95,12.95,.00,Stationery,5999,Miscellaneous and Specialty Retail Stores
20/07/17,Tri-Borough ASC and NHS Integrated Commi,AMAZON.CO.UK,15.00,15.00,.00,Stationery,5999,Miscellaneous and Specialty Retail Stores
20/07/17,Tri-Borough Childrens Services,ARGOS LTD,51.01,51.01,.00,Section 17 Other,5310,Discount Stores
20/07/17,Tri-Borough ASC and NHS Integrated Commi,BEDDY BUYZ,60.00,60.00,.00,"Equipment, furniture and materials",5712,"Furniture, Home Furnishings, and Equipment Stores, Except Appliances"
20/07/17,Tri-Borough ASC and NHS Integrated Commi,BEDDY BUYZ,.60,.60,.00,"Equipment, furniture and materials",5712,"Furniture, Home Furnishings, and Equipment Stores, Except Appliances"
20/07/17,Tri-Borough Childrens Services,BENS NEWS,12.00,12.00,.00,Staff travelling expenses,5411,Grocery Stores
20/07/17,City Treasurers,BLOOMSBURY FLOWERS,40.00,40.00,.00,Stationery,5992,Florists
20/07/17,Tri-Borough Childrens Services,BURGER KING,5.99,5.99,.00,Section 17 Young Persons Support,5814,Fast Food Restaurants
20/07/17,Tri-Borough Childrens Services,BURGER KING,5.99,5.99,.00,Subsistence Expenses,5814,Fast Food Restaurants
20/07/17,PPC,CONSERVATIVE CENTRAL O,1500.00,1250.00,250.00,Publicity,8651,Political Organizations
20/07/17,PPC,CONSERVATIVE CENTRAL O,1500.00,1250.00,250.00,Publicity,8651,Political Organizations
20/07/17,"Growth, Planning and Housing",CONTEH CONV STORE,20.50,20.50,.00,Client travelling expenses,5411,Grocery Stores
20/07/17,City Treasurers,COPTHORNE TARA,100.00,100.00,.00,Temporary Accommodation,7011,"Lodging - Hotels, Motels, Resorts, Central Reservation Services (not elsewhere classified)"
20/07/17,Tri-Borough Childrens Services,COSTA COFFEE STOCK 430,1.75,1.75,.00,Section 17 Young Persons Support,5814,Fast Food Restaurants
20/07/17,Tri-Borough Childrens Services,EAST MIDLANDS TRAI,31.30,31.30,.00,Staff travelling expenses,4112,Passenger Railways
20/07/17,Tri-Borough Childrens Services,FUN LEARNING,17.35,14.46,2.89,Learning Res Not ICT Equip E19,5942,Book Stores
20/07/17,City Treasurers,GIFTVOUCHERSHOP.CO.UK,200.99,200.99,.00,Activities and Events,5947,"Card Shops, Gift, Novelty, and Souvenir Shops"
20/07/17,City Treasurers,GIFTVOUCHERSHOP.CO.UK,200.99,200.99,.00,Activities and Events,5947,"Card Shops, Gift, Novelty, and Souvenir Shops"
20/07/17,"Growth, Planning and Housing",GITANE LONDON LTD,23.10,23.10,.00,Catering,5814,Fast Food Restaurants
20/07/17,Tri-Borough Childrens Services,GREGGS PLC,1.95,1.95,.00,Subsistence Expenses,5812,Eating places and Restaurants
20/07/17,Tri-Borough Childrens Services,GREGGS PLC,1.35,1.35,.00,Subsistence Expenses,5812,Eating places and Restaurants
20/07/17,City Management and Communities,GRIFFITHS SIGNS & EQIP,684.00,570.00,114.00,"Equipment, furniture and materials",5999,Miscellaneous and Specialty Retail Stores
20/07/17,Tri-Borough Childrens Services,LUL TICKET MACHINE,20.00,20.00,.00,Staff travelling expenses,4112,Passenger Railways
20/07/17,"Growth, Planning and Housing",LUL TICKET MACHINE,20.00,20.00,.00,Client travelling expenses,4112,Passenger Railways
20/07/17,Tri-Borough Childrens Services,LUL TICKET MACHINE,5.00,5.00,.00,Staff travelling expenses,4112,Passenger Railways
20/07/17,Tri-Borough ASC and NHS Integrated Commi,LUL TICKET MACHINE,10.00,10.00,.00,Client travelling expenses,4112,Passenger Railways
20/07/17,Tri-Borough Childrens Services,LUL TICKET MACHINE,10.00,10.00,.00,Staff travelling expenses,4112,Passenger Railways
20/07/17,Tri-Borough Childrens Services,LUL TICKET MACHINE,12.30,12.30,.00,Staff travelling expenses,4112,Passenger Railways
20/07/17,"Growth, Planning and Housing",MCDONALDS,5.57,5.57,.00,Hospitality,5814,Fast Food Restaurants
20/07/17,City Treasurers,MILLENNIUM,27.78,27.78,.00,Catering,3741,MILLENIUM BROADWAY HOTEL
20/07/17,Tri-Borough Childrens Services,NISA LOCAL ELSTREE STA,5.00,5.00,.00,Staff travelling expenses,5499,Misc. Food Stores - Convenience Stores and Specialty Markets
20/07/17,Tri-Borough ASC and NHS Integrated Commi,OYSTER AUTOTOPUP,20.00,20.00,.00,Staff travelling expenses,4112,Passenger Railways
20/07/17,Tri-Borough ASC and NHS Integrated Commi,OYSTER AUTOTOPUP,20.00,20.00,.00,Staff travelling expenses,4112,Passenger Railways
20/07/17,Tri-Borough ASC and NHS Integrated Commi,OYSTER AUTOTOPUP,20.00,20.00,.00,Staff travelling expenses,4112,Passenger Railways
20/07/17,Tri-Borough ASC and NHS Integrated Commi,OYSTER AUTOTOPUP,20.00,20.00,.00,Staff travelling expenses,4112,Passenger Railways
20/07/17,Tri-Borough Childrens Services,PAXTON ACCESS,91.20,76.00,15.20,Fixtures and Fittings -E12,5999,Miscellaneous and Specialty Retail Stores
20/07/17,City Treasurers,PAYPAL  EMERGENCYBO,27.90,23.25,4.65,"Equipment, furniture and materials",8999,Professional Services ( Not Elsewhere Defined)
20/07/17,Tri-Borough ASC and NHS Integrated Commi,PLOUGH AND HARROW,3.30,3.30,.00,Subsistence Expenses,5812,Eating places and Restaurants
20/07/17,Tri-Borough Childrens Services,PRET A MANGER,4.85,4.85,.00,Subsistence Expenses,5812,Eating places and Restaurants
20/07/17,"Growth, Planning and Housing",PRIMARK,25.00,25.00,.00,"Clothes, uniform and laundry",5651,Family Clothing Stores
20/07/17,Tri-Borough Childrens Services,PRIMARK,28.50,28.50,.00,Section 17 Other,5651,Family Clothing Stores
20/07/17,City Management and Communities,RINGGO PARKING,5.50,5.39,.11,Tport - Prkng & Congestion Chgs,7523,Automobile Parking Lots and Garages
20/07/17,WAES,SAINSBURYS 0932,68.10,68.10,.00,Activities and Events,5411,Grocery Stores
20/07/17,Tri-Borough ASC and NHS Integrated Commi,SAINSBURYS SACAT 0602,8.00,8.00,.00,"Equipment, furniture and materials",5411,Grocery Stores
20/07/17,"Growth, Planning and Housing",SHOT ESPRESSO,5.80,5.80,.00,Hospitality,5814,Fast Food Restaurants
20/07/17,"Growth, Planning and Housing",SHOT ESPRESSO,2.50,2.50,.00,Hospitality,5814,Fast Food Restaurants
20/07/17,"Growth, Planning and Housing",SHOT ESPRESSO,4.40,4.40,.00,Hospitality,5814,Fast Food Restaurants
20/07/17,Tri-Borough Childrens Services,SPORTSDIRECT 319,22.98,22.98,.00,Section 17 Young Persons Support,5941,Sporting Goods Stores
20/07/17,Tri-borough Libraries and Archives,STRAND PALACE HOTE,130.00,130.00,.00,Hospitality,7011,"Lodging - Hotels, Motels, Resorts, Central Reservation Services (not elsewhere classified)"
20/07/17,Tri-Borough Childrens Services,SurveyMonkey,26.00,26.00,.00,Subscriptions,7372,"Computer Programming, Integrated Systems Design and Data Processing Services"
20/07/17,Tri-Borough ASC and NHS Integrated Commi,TESCO PFS  2861,2.00,2.00,.00,"Equipment, furniture and materials",5541,Service Stations ( with or without ancillary services)
20/07/17,Tri-Borough ASC and NHS Integrated Commi,TESCO STORE 2806,50.99,50.99,.00,Catering,5411,Grocery Stores
20/07/17,"Growth, Planning and Housing",TESCO STORE 3012,20.00,20.00,.00,Hospitality,5411,Grocery Stores
20/07/17,Tri-Borough Childrens Services,Trainline,218.99,218.99,.00,Staff travelling expenses,4112,Passenger Railways
20/07/17,Tri-Borough Childrens Services,Trainline,246.18,205.15,41.03,Client travelling expenses,4112,Passenger Railways
20/07/17,Tri-Borough ASC and NHS Integrated Commi,Trainline,103.84,103.84,.00,Staff travelling expenses,4112,Passenger Railways
20/07/17,Tri-Borough ASC and NHS Integrated Commi,Trainline,16.27,16.27,.00,Staff travelling expenses,4112,Passenger Railways
20/07/17,PPC,Trainline,33.41,33.41,.00,Conference Expenses,4112,Passenger Railways
20/07/17,Tri-Borough Childrens Services,TRANSPORT FOR LOND,25.00,25.00,.00,Section 17 Other,4112,Passenger Railways
20/07/17,"Growth, Planning and Housing",TRI BOROUGH- LISSON GR,3.70,3.70,.00,Hospitality,5811,Caterers
20/07/17,Tri-Borough ASC and NHS Integrated Commi,WAITROSE 756,5.15,5.15,.00,Day Opportunities,5411,Grocery Stores
20/07/17,Tri-Borough ASC and NHS Integrated Commi,WWW.BUTTONS.CO.UK,25.36,25.36,.00,"Equipment, furniture and materials",5970,Artist�s Supply and Craft Shops
21/07/17,Chief of Staff,Amazon EU,23.18,19.32,3.86,Stationery,5969,Direct Marketing - Not Elsewhere Classified
21/07/17,Tri-Borough Childrens Services,Amazon EU,10.51,8.41,2.10,Learning Res Not ICT Equip E19,5969,Direct Marketing - Not Elsewhere Classified
21/07/17,Tri-Borough Childrens Services,Amazon EU,25.07,20.04,5.03,Learning Res Not ICT Equip E19,5969,Direct Marketing - Not Elsewhere Classified
21/07/17,Chief of Staff,Amazon EU,34.69,28.92,5.77,"Equipment, furniture and materials",5969,Direct Marketing - Not Elsewhere Classified
21/07/17,Tri-Borough Childrens Services,Amazon UK Marketplace,123.82,121.59,2.23,Learning Res Not ICT Equip E19,5942,Book Stores
21/07/17,Tri-Borough Childrens Services,ARROW ELECTRICAL,23.94,19.95,3.99,Fixtures and Fittings -E12,5999,Miscellaneous and Specialty Retail Stores
21/07/17,Corporate Services WCC,ATLASSIAN,429.17,429.17,.00,IT Software Purchase,5734,Computer Software Stores
21/07/17,Tri-Borough ASC and NHS Integrated Commi,BARRY BROS SECURITY DE,14.50,14.50,.00,"Equipment, furniture and materials",7393,Protective and Security Services - Including Armored Cars and Guard Dogs
21/07/17,Tri-Borough Childrens Services,BENS NEWS,12.00,12.00,.00,Subsistence Expenses,5411,Grocery Stores
21/07/17,City Management and Communities,BLACKWOOD FIRE LTD,720.00,600.00,120.00,"Equipment, furniture and materials",1799,"Contractors - Special Trade, Not Elsewhere Classified"
21/07/17,Tri-Borough Childrens Services,BUILDER DEPOT,86.06,71.72,14.34,Staff Empl Cost of M & Equip E12,5039,"Construction Materials, Not Elsewhere Classified"
21/07/17,Tri-Borough Childrens Services,CHADWELL HEATH SST,10.00,10.00,.00,Staff travel expense,4112,Passenger Railways
21/07/17,Tri-Borough Childrens Services,COSTA COFFEE,7.05,7.05,.00,Staff travelling expenses,5814,Fast Food Restaurants
21/07/17,Tri-Borough Childrens Services,GDC PAINTS LTD CRICKLE,266.60,222.17,44.43,Staff Empl Cost of M & Equip E12,5198,"Paints, Varnishes, and Supplies"
21/07/17,Tri-Borough Childrens Services,GDC PAINTS LTD CRICKLE,40.00,33.33,6.67,Staff Empl Cost of M & Equip E12,5198,"Paints, Varnishes, and Supplies"
21/07/17,Tri-Borough Childrens Services,GWR EALING BWY SST,5.30,5.30,.00,Staff travelling expenses,4112,Passenger Railways
21/07/17,Tri-Borough Childrens Services,GWR LON PADD TO,34.40,34.40,.00,Client travelling expenses,4112,Passenger Railways
21/07/17,Tri-Borough ASC and NHS Integrated Commi,HAMMERSMITH FOODCOURT-,4.40,4.40,.00,Subsistence Expenses,5811,Caterers
21/07/17,Tri-Borough ASC and NHS Integrated Commi,HMCOURTS-SERVICE.G,40.00,40.00,.00,Fees,9222,Fines
21/07/17,Tri-Borough Childrens Services,INSTORE,36.94,36.94,.00,Fixtures and Fittings -E12,5714,"Drapery, Window Covering and Upholstery Stores"
21/07/17,Tri-Borough Childrens Services,KFC - WALTHAMSTOW FC,5.98,5.98,.00,Subsistence Expenses,5814,Fast Food Restaurants
21/07/17,Tri-Borough Childrens Services,LUL TICKET MACHINE,10.00,10.00,.00,Staff travelling expenses,4112,Passenger Railways
21/07/17,Tri-Borough ASC and NHS Integrated Commi,LUL TICKET MACHINE,15.00,15.00,.00,Staff travelling expenses,4112,Passenger Railways
21/07/17,Tri-Borough Childrens Services,LUL TICKET MACHINE,10.00,10.00,.00,Staff travelling expenses,4112,Passenger Railways
21/07/17,Bi-Borough Corporate Services,LUL TICKET MACHINE,24.60,24.60,.00,Staff travelling expenses,4112,Passenger Railways
21/07/17,PPC,MAILCHIMP    MONTHLY,39.06,39.06,.00,Hired and Contracted Services,7399,"Business Services, Not Elsewhere Classified"
21/07/17,WAES,ONE PRICE,23.93,23.93,.00,"Equipment, furniture and materials",5310,Discount Stores
21/07/17,Corporate Services WCC,OYSTER AUTOTOPUP,20.00,20.00,.00,Staff travelling expenses,4112,Passenger Railways
21/07/17,City Management and Communities,OYSTER AUTOTOPUP,20.00,20.00,.00,Staff travelling expenses,4112,Passenger Railways
21/07/17,City Management and Communities,OYSTER AUTOTOPUP,20.00,20.00,.00,Staff travelling expenses,4112,Passenger Railways
21/07/17,City Management and Communities,OYSTER AUTOTOPUP,20.00,20.00,.00,Staff travelling expenses,4112,Passenger Railways
21/07/17,"Growth, Planning and Housing",OYSTER AUTOTOPUP,20.00,20.00,.00,Staff travelling expenses,4112,Passenger Railways
21/07/17,"Growth, Planning and Housing",OYSTER BUS AUTOTOP,40.00,40.00,.00,Staff travelling expenses,4112,Passenger Railways
21/07/17,City Management and Communities,OYSTER BUS AUTOTOP,20.00,20.00,.00,Staff travelling expenses,4112,Passenger Railways
21/07/17,Tri-Borough Childrens Services,POST OFFICE COUNTER,1.86,1.86,.00,Postage -E22,9402,Postal Services - Government Only
21/07/17,Tri-Borough Childrens Services,POUNDLAND LTD 1412,9.00,9.00,.00,Activities and Events,5310,Discount Stores
21/07/17,Tri-Borough ASC and NHS Integrated Commi,PRET A MANGER,3.45,3.45,.00,Subsistence Expenses,5812,Eating places and Restaurants
21/07/17,Tri-Borough Childrens Services,PRET A MANGER,5.24,5.24,.00,Staff travelling expenses,5812,Eating places and Restaurants
21/07/17,Tri-Borough ASC and NHS Integrated Commi,PRIMARK,13.50,13.50,.00,"Clothes, uniform and laundry",5651,Family Clothing Stores
21/07/17,Tri-borough Libraries and Archives,ROBERT DYAS HOLDNG LTD,24.86,20.72,4.14,Stationery,5251,Hardware Stores
21/07/17,"Growth, Planning and Housing",ROCOCO NEWS & MAGAZINE,15.50,15.50,.00,Client travelling expenses,5411,Grocery Stores
21/07/17,Tri-Borough ASC and NHS Integrated Commi,RONNIES GENERAL STORE,9.06,9.06,.00,Catering,5411,Grocery Stores
21/07/17,Tri-Borough Childrens Services,SAINSBURYS 0054,7.60,7.60,.00,Young Persons Subsistence Allowance,5411,Grocery Stores
21/07/17,Tri-Borough ASC and NHS Integrated Commi,SAINSBURYS SACAT 0602,6.50,6.50,.00,Subsistence Expenses,5411,Grocery Stores
21/07/17,Tri-Borough ASC and NHS Integrated Commi,SAINSBURYS SACAT 0602,4.00,4.00,.00,Catering,5411,Grocery Stores
21/07/17,Tri-Borough ASC and NHS Integrated Commi,SAINSBURYS SACAT 0602,3.00,3.00,.00,"Equipment, furniture and materials",5411,Grocery Stores
21/07/17,Corporate Services WCC,STAGECOACH SW TRAINS W,37.40,37.40,.00,Staff travelling expenses,4112,Passenger Railways
21/07/17,WAES,TESCO STORES 3012,6.63,6.63,.00,"Equipment, furniture and materials",5411,Grocery Stores
21/07/17,Tri-Borough Childrens Services,TESCO-STORES-5714,15.09,15.09,.00,Stationery,5411,Grocery Stores
21/07/17,Tri-Borough ASC and NHS Integrated Commi,TFH SPECIAL NEEDS,15.77,13.15,2.62,Assistive Equipment & Technology,5945,"Hobby, Toy, and Game Shops"
21/07/17,Chief of Staff,TIMPSON LTD,42.00,42.00,.00,"Equipment, furniture and materials",7251,"Shop Repair Shops and Shoe Shine Parlors, and Hat Cleaning Shops"
21/07/17,Bi-Borough Corporate Services,WASABI LIVERPOOL KIOSK,7.28,7.28,.00,Staff travelling expenses,5812,Eating places and Restaurants
21/07/17,Bi-Borough Corporate Services,WCC PARKING MOBILE,15.30,15.30,.00,Tport - Prkng & Congestion Chgs,7399,"Business Services, Not Elsewhere Classified"
21/07/17,Tri-Borough Childrens Services,WESTMINSTER CITY COUNC,24.00,24.00,.00,Refuse collection -E18,9399,Government Services ( Not Elsewhere Classified)
21/07/17,City Management and Communities,WESTMINSTER CITY COUNC,20.00,20.00,.00,Hired and Contracted Services,9399,Government Services ( Not Elsewhere Classified)
21/07/17,City Management and Communities,WESTMINSTER CITY COUNC,8.00,8.00,.00,Hired and Contracted Services,9399,Government Services ( Not Elsewhere Classified)
21/07/17,Bi-Borough Corporate Services,WP-HAYMARKET PUBLI,390.00,390.00,.00,Staff dev & training -EO9,5192,"Books, Periodicals, and Newspapers"
21/07/17,Tri-Borough ASC and NHS Integrated Commi,WWW.ARGOS.CO.UK,148.94,148.94,.00,Hired and Contracted Services,5310,Discount Stores
22/07/17,Tri-borough Libraries and Archives,AMAZON UK RETAIL AMAZO,3.15,2.63,.52,Stationery,5999,Miscellaneous and Specialty Retail Stores
22/07/17,Tri-borough Libraries and Archives,AMAZON UK RETAIL AMAZO,3.15,2.63,.52,Stationery,5999,Miscellaneous and Specialty Retail Stores
22/07/17,Tri-borough Libraries and Archives,AMAZON UK RETAIL AMAZO,3.15,2.63,.52,Stationery,5999,Miscellaneous and Specialty Retail Stores
22/07/17,Bi-Borough Corporate Services,AMAZON.CO.UK,26.97,26.97,.00,"Equipment, furniture and materials",5999,Miscellaneous and Specialty Retail Stores
22/07/17,Tri-borough Libraries and Archives,AMAZON.CO.UK,1.95,1.95,.00,Stationery,5999,Miscellaneous and Specialty Retail Stores
22/07/17,Tri-borough Libraries and Archives,MARKS&SPENCER PLC SACA,7.55,7.55,.00,Subsistence Expenses,5411,Grocery Stores
22/07/17,Tri-Borough Childrens Services,NANDOS CROYDON VALLEY,18.95,18.95,.00,LAC Contact,5812,Eating places and Restaurants
22/07/17,Tri-Borough Childrens Services,NANDOS CROYDON VALLEY,6.45,6.45,.00,Subsistence Expenses,5812,Eating places and Restaurants
22/07/17,City Management and Communities,OYSTER AUTOTOPUP,20.00,20.00,.00,Staff travelling expenses,4112,Passenger Railways
22/07/17,City Management and Communities,OYSTER AUTOTOPUP,20.00,20.00,.00,Staff travelling expenses,4112,Passenger Railways
22/07/17,Tri-Borough ASC and NHS Integrated Commi,OYSTER AUTOTOPUP,20.00,20.00,.00,Staff travelling expenses,4112,Passenger Railways
22/07/17,Tri-Borough ASC and NHS Integrated Commi,OYSTER AUTOTOPUP,20.00,20.00,.00,Staff travelling expenses,4112,Passenger Railways
22/07/17,"Growth, Planning and Housing",OYSTER AUTOTOPUP,40.00,40.00,.00,Staff travelling expenses,4112,Passenger Railways
22/07/17,City Management and Communities,OYSTER AUTOTOPUP,20.00,20.00,.00,Staff travelling expenses,4112,Passenger Railways
22/07/17,City Management and Communities,OYSTER AUTOTOPUP,40.00,40.00,.00,Staff travelling expenses,4112,Passenger Railways
22/07/17,City Management and Communities,OYSTER AUTOTOPUP,20.00,20.00,.00,Staff travelling expenses,4112,Passenger Railways
22/07/17,City Management and Communities,OYSTER BUS AUTOTOP,20.00,20.00,.00,Staff travelling expenses,4112,Passenger Railways
22/07/17,Tri-Borough ASC and NHS Integrated Commi,OYSTER BUS AUTOTOP,20.00,20.00,.00,Staff travelling expenses,4112,Passenger Railways
22/07/17,City Management and Communities,OYSTER BUS AUTOTOP,20.00,20.00,.00,Staff travelling expenses,4112,Passenger Railways
22/07/17,City Management and Communities,OYSTER BUS AUTOTOP,20.00,20.00,.00,Staff travelling expenses,4112,Passenger Railways
22/07/17,Tri-Borough Childrens Services,OYSTER BUS AUTOTOP,20.00,20.00,.00,Staff travelling expenses,4112,Passenger Railways
22/07/17,Tri-Borough Childrens Services,POST OFFICE COUNTER,3.50,3.50,.00,Postage,9402,Postal Services - Government Only
22/07/17,Tri-borough Libraries and Archives,PRET A MANGER,10.04,7.25,2.79,Subsistence Expenses,5812,Eating places and Restaurants
22/07/17,Tri-borough Libraries and Archives,SAINSBURYS SACAT 2500,4.80,4.80,.00,Subsistence Expenses,5411,Grocery Stores
22/07/17,Tri-Borough ASC and NHS Integrated Commi,WWW.ARGOS.CO.UK,34.99,34.99,.00,Hired and Contracted Services,5310,Discount Stores
23/07/17,Tri-borough Libraries and Archives,Amazon UK Marketplace,3.50,2.92,.58,Stationery,5942,Book Stores
23/07/17,City Management and Communities,AMAZON.CO.UK,65.07,65.07,.00,"Equipment, furniture and materials",5999,Miscellaneous and Specialty Retail Stores
23/07/17,City Management and Communities,AMAZON.CO.UK,86.76,86.76,.00,"Equipment, furniture and materials",5999,Miscellaneous and Specialty Retail Stores
23/07/17,Tri-Borough Childrens Services,ARGOS LTD,30.00,30.00,.00,Activities and Events,5310,Discount Stores
23/07/17,Tri-Borough Childrens Services,ASDA SUPERSTORE,8.00,8.00,.00,Young Persons Subsistence Allowance,5411,Grocery Stores
23/07/17,PPC,HOO HOOTSUITE MEDIA I,23.98,19.98,4.00,Subscriptions,5968,Direct Marketing - Continuity/Subscription Merchant
23/07/17,Tri-Borough Childrens Services,NORTH LONDON FOOD AND,7.98,7.98,.00,Activities and Events,5411,Grocery Stores
23/07/17,Tri-Borough ASC and NHS Integrated Commi,OYSTER AUTOTOPUP,20.00,20.00,.00,Staff travelling expenses,4112,Passenger Railways
23/07/17,Tri-Borough ASC and NHS Integrated Commi,OYSTER AUTOTOPUP,20.00,20.00,.00,Staff travelling expenses,4112,Passenger Railways
23/07/17,Tri-Borough ASC and NHS Integrated Commi,OYSTER BUS AUTOTOP,20.00,20.00,.00,Staff travelling expenses,4112,Passenger Railways
23/07/17,City Management and Communities,OYSTER BUS AUTOTOP,20.00,20.00,.00,Staff travel expense,4112,Passenger Railways
23/07/17,City Management and Communities,OYSTER BUS AUTOTOP,20.00,20.00,.00,Staff travel expense,4112,Passenger Railways
23/07/17,Tri-Borough ASC and NHS Integrated Commi,OYSTER BUS AUTOTOP,20.00,20.00,.00,Staff travelling expenses,4112,Passenger Railways
23/07/17,WAES,TESCO STORES 3012,6.02,6.02,.00,"Equipment, furniture and materials",5411,Grocery Stores
23/07/17,WAES,TESCO STORES 3012,4.20,4.20,.00,"Equipment, furniture and materials",5411,Grocery Stores
23/07/17,Tri-Borough Childrens Services,TESCO STORES 5564,18.00,18.00,.00,Activities and Events,5411,Grocery Stores
23/07/17,City Treasurers,TOOLSTATION LTD,11.54,9.62,1.92,"Equipment, furniture and materials",5251,Hardware Stores
24/07/17,Corporate Services WCC,Amazon UK Marketplace,11.48,11.48,.00,IT Hardware Purchase,5942,Book Stores
24/07/17,Tri-borough Libraries and Archives,Amazon UK Marketplace,3.75,3.13,.62,Stationery,5942,Book Stores
24/07/17,Tri-Borough ASC and NHS Integrated Commi,Amazon UK Marketplace,14.99,14.99,.00,"Equipment, furniture and materials",5942,Book Stores
24/07/17,Tri-Borough Childrens Services,ARGOS RETAIL GROUP,108.43,108.43,.00,Section 17 Other,5310,Discount Stores
24/07/17,Tri-borough Libraries and Archives,BARRY BROS SECURITY DE,16.00,13.33,2.67,Section 17 Other,7393,Protective and Security Services - Including Armored Cars and Guard Dogs
24/07/17,Tri-Borough Childrens Services,"BOOTS,BAKER STREET",7.29,7.29,.00,Subsistence Expenses,5912,Drug Stores and Pharmacies
24/07/17,Tri-Borough Childrens Services,CAFFE NERO 495 LADBROK,11.65,11.65,.00,Section 17 Other,5814,Fast Food Restaurants
24/07/17,City Management and Communities,CIEH,568.00,568.00,.00,Staff dev & training -EO9,8699,Membership Organizations ( Not Elsewhere Classified)
24/07/17,Tri-Borough Childrens Services,Cross Country Trains,39.10,39.10,.00,Client travelling expenses,4112,Passenger Railways
24/07/17,City Management and Communities,CURRYS ONLINE,41.99,34.99,7.00,"Equipment, furniture and materials",5732,Electronic Sales
24/07/17,City Management and Communities,DISPLAYPRODUCTSLTD,26.15,21.79,4.36,"Equipment, furniture and materials",8931,"Accounting, Auditing, and Bookkeeping Services"
24/07/17,Tri-Borough Childrens Services,EXCEL TAXIS WAREHAM,29.00,29.00,.00,Staff travelling expenses,5734,Computer Software Stores
24/07/17,City Management and Communities,FACEBK T7DQ9DSRQ2,3.29,3.29,.00,"Print, Pub & adverts",7311,Advertising Services
24/07/17,City Management and Communities,FACEBK V7DQ9DSRQ2,16.51,16.51,.00,"Print, Pub & adverts",7311,Advertising Services
24/07/17,City Treasurers,GIFTVOUCHERSHOP.CO.UK,300.99,300.99,.00,Activities and Events,5947,"Card Shops, Gift, Novelty, and Souvenir Shops"
24/07/17,Tri-Borough Childrens Services,GOLDEN NEWS,8.20,8.20,.00,Staff travelling expenses,5994,News Dealers and Newsstands
24/07/17,Tri-Borough ASC and NHS Integrated Commi,HMCOURTS-SERVICE.G,20.00,20.00,.00,Fees,9222,Fines
24/07/17,Tri-Borough Childrens Services,KFC,8.47,8.47,.00,Activities and Events,5814,Fast Food Restaurants
24/07/17,Tri-Borough Childrens Services,LONDON & SOUTH EAS,10.00,10.00,.00,Staff travelling expenses,4112,Passenger Railways
24/07/17,Tri-Borough Childrens Services,LONDON OVERGROUND SST,5.00,5.00,.00,Staff travelling expenses,4112,Passenger Railways
24/07/17,Tri-Borough Childrens Services,LUL TICKET MACHINE,20.00,20.00,.00,Activities and Events,4112,Passenger Railways
24/07/17,"Growth, Planning and Housing",LUL TICKET MACHINE,38.70,38.70,.00,Client travelling expenses,4112,Passenger Railways
24/07/17,Tri-Borough Childrens Services,LUL TICKET MACHINE,15.00,15.00,.00,Staff travelling expenses,4112,Passenger Railways
24/07/17,Tri-Borough ASC and NHS Integrated Commi,LUL TICKET MACHINE,20.00,20.00,.00,Staff travelling expenses,4112,Passenger Railways
24/07/17,PPC,MAILCHIMP    MONTHLY,994.32,913.06,81.26,Subscriptions,7399,"Business Services, Not Elsewhere Classified"
24/07/17,"Growth, Planning and Housing",MARKS&SPENCER PLC,16.75,16.75,.00,Catering,5411,Grocery Stores
24/07/17,City Management and Communities,MARKS&SPENCER PLC,69.00,69.00,.00,"Clothes, uniform and laundry",5411,Grocery Stores
24/07/17,City Management and Communities,MARKS&SPENCER PLC,54.00,54.00,.00,"Clothes, uniform and laundry",5411,Grocery Stores
24/07/17,Tri-Borough Childrens Services,MARKS&SPENCER PLC SACA,6.50,6.50,.00,Staff travelling expenses,5411,Grocery Stores
24/07/17,Tri-Borough Childrens Services,MORLEYS,3.30,3.30,.00,Subsistence Expenses,5814,Fast Food Restaurants
24/07/17,Tri-Borough Childrens Services,NEW SOUTHERN RAILW,89.50,89.50,.00,Staff travelling expenses,4112,Passenger Railways
24/07/17,Tri-borough Libraries and Archives,PAYPAL  A1PACKAGING,71.20,59.33,11.87,Stationery,5943,"Stationery Stores, Office and School Supply Stores"
24/07/17,"Growth, Planning and Housing",POST OFFICE COUNTER,10.00,10.00,.00,Client travelling expenses,9402,Postal Services - Government Only
24/07/17,"Growth, Planning and Housing",POST OFFICE COUNTER,10.00,10.00,.00,Client travelling expenses,9402,Postal Services - Government Only
24/07/17,"Growth, Planning and Housing",POST OFFICE COUNTER,10.00,10.00,.00,Client travelling expenses,9402,Postal Services - Government Only
24/07/17,"Growth, Planning and Housing",POST OFFICE COUNTER,10.00,10.00,.00,Client travelling expenses,9402,Postal Services - Government Only
24/07/17,"Growth, Planning and Housing",POST OFFICE COUNTER,10.00,10.00,.00,Client travelling expenses,9402,Postal Services - Government Only
24/07/17,"Growth, Planning and Housing",POST OFFICE COUNTER,10.00,10.00,.00,Client travelling expenses,9402,Postal Services - Government Only
24/07/17,"Growth, Planning and Housing",POST OFFICE COUNTER,10.00,10.00,.00,Client travelling expenses,9402,Postal Services - Government Only
24/07/17,"Growth, Planning and Housing",POST OFFICE COUNTER,10.00,10.00,.00,Client travelling expenses,9402,Postal Services - Government Only
24/07/17,"Growth, Planning and Housing",POST OFFICE COUNTER,10.00,10.00,.00,Client travelling expenses,9402,Postal Services - Government Only
24/07/17,"Growth, Planning and Housing",POST OFFICE COUNTER,10.00,10.00,.00,Client travelling expenses,9402,Postal Services - Government Only
24/07/17,"Growth, Planning and Housing",POST OFFICE COUNTER,10.00,10.00,.00,Client travelling expenses,9402,Postal Services - Government Only
24/07/17,"Growth, Planning and Housing",POST OFFICE COUNTER,10.00,10.00,.00,Client travelling expenses,9402,Postal Services - Government Only
24/07/17,"Growth, Planning and Housing",POST OFFICE COUNTER,10.00,10.00,.00,Client travelling expenses,9402,Postal Services - Government Only
24/07/17,"Growth, Planning and Housing",POST OFFICE COUNTER,10.00,10.00,.00,Client travelling expenses,9402,Postal Services - Government Only
24/07/17,"Growth, Planning and Housing",POST OFFICE COUNTER,10.00,10.00,.00,Client travelling expenses,9402,Postal Services - Government Only
24/07/17,"Growth, Planning and Housing",POST OFFICE COUNTER,10.00,10.00,.00,Client travelling expenses,9402,Postal Services - Government Only
24/07/17,"Growth, Planning and Housing",POST OFFICE COUNTER,10.00,10.00,.00,Client travelling expenses,9402,Postal Services - Government Only
24/07/17,"Growth, Planning and Housing",POST OFFICE COUNTER,10.00,10.00,.00,Client travelling expenses,9402,Postal Services - Government Only
24/07/17,"Growth, Planning and Housing",POST OFFICE COUNTER,10.00,10.00,.00,Client travelling expenses,9402,Postal Services - Government Only
24/07/17,"Growth, Planning and Housing",POST OFFICE COUNTER,10.00,10.00,.00,Client travelling expenses,9402,Postal Services - Government Only
24/07/17,Tri-Borough Childrens Services,RAIL GOURMET UK,6.25,6.25,.00,Subsistence Expenses,5814,Fast Food Restaurants
24/07/17,PPC,SAINSBURYS SACAT (4286,8.29,8.29,.00,Catering,5411,Grocery Stores
24/07/17,Tri-Borough Childrens Services,SAINSBURYS SACAT (4286,9.50,7.92,1.58,Hospitality,5411,Grocery Stores
24/07/17,City Management and Communities,SAINSBURYS SACAT 2115,13.75,13.75,.00,Catering,5411,Grocery Stores
24/07/17,"Growth, Planning and Housing",SLARA LIMITED,29.35,29.35,.00,Subsistence Expenses,5812,Eating places and Restaurants
24/07/17,Tri-Borough ASC and NHS Integrated Commi,SPIRE SEAT,99.08,99.08,.00,Hired and Contracted Services,7538,Automotive Service Shops
24/07/17,Tri-Borough ASC and NHS Integrated Commi,STARBUCKS,6.25,6.25,.00,Day Opportunities,5814,Fast Food Restaurants
24/07/17,Tri-Borough Childrens Services,TESCO STORES,5.84,5.84,.00,Subsistence Expenses,5411,Grocery Stores
24/07/17,Tri-Borough Childrens Services,TESCO STORES 2632,4.45,4.45,.00,Subsistence Expenses,5411,Grocery Stores
24/07/17,Tri-Borough ASC and NHS Integrated Commi,TESCO STORES 3276,4.90,4.90,.00,Catering,5411,Grocery Stores
24/07/17,Tri-Borough Childrens Services,TICKETOFFICESALE,57.80,57.80,.00,Staff travelling expenses,4112,Passenger Railways
24/07/17,Tri-Borough Childrens Services,Trainline,30.96,30.96,.00,Staff travelling expenses,4112,Passenger Railways
24/07/17,Tri-Borough ASC and NHS Integrated Commi,Trainline,33.81,33.81,.00,Staff travelling expenses,4112,Passenger Railways
24/07/17,"Growth, Planning and Housing",TURIE,4.20,4.20,.00,Hospitality,5814,Fast Food Restaurants
24/07/17,"Growth, Planning and Housing",WWW.LABC.UK.COM,900.00,750.00,150.00,Training,7399,"Business Services, Not Elsewhere Classified"
24/07/17,Tri-Borough Childrens Services,WWW.SHURGARD.CO.UK,36.44,36.44,.00,Section 17 Other,7399,"Business Services, Not Elsewhere Classified"
25/07/17,"Growth, Planning and Housing",ALLFS CAFE,3.70,3.70,.00,Hospitality,5812,Eating places and Restaurants
25/07/17,Tri-Borough ASC and NHS Integrated Commi,Amazon UK Marketplace,7.99,7.99,.00,"Equipment, furniture and materials",5942,Book Stores
25/07/17,Bi-Borough Corporate Services,AMAZON.CO.UK,2.98,2.98,.00,Stationery,5999,Miscellaneous and Specialty Retail Stores
25/07/17,Tri-Borough Childrens Services,ASHRA'S,10.50,10.50,.00,Client travelling expenses,5994,News Dealers and Newsstands
25/07/17,Chief of Staff,CO-OP GROUP 500593,6.00,6.00,.00,"Equipment, furniture and materials",5411,Grocery Stores
25/07/17,Tri-Borough Childrens Services,COSTA COFFEE BROADSTAI,6.30,6.30,.00,Subsistence Expenses,5812,Eating places and Restaurants
25/07/17,Tri-Borough Childrens Services,COSTA COFFEE BROADSTAI,6.90,6.90,.00,Section 17 Young Persons Support,5812,Eating places and Restaurants
25/07/17,"Growth, Planning and Housing",GASTRONOMICA PIMLICO,4.00,4.00,.00,Hospitality,5814,Fast Food Restaurants
25/07/17,Tri-Borough Childrens Services,GWR HAYES SST,50.00,50.00,.00,Staff travelling expenses,4112,Passenger Railways
25/07/17,Tri-Borough ASC and NHS Integrated Commi,HARLEY STREET AMBULANC,315.00,315.00,.00,Client travelling expenses,4119,Ambulance Services
25/07/17,Tri-Borough ASC and NHS Integrated Commi,HMCOURTS-SERVICE.G,40.00,40.00,.00,Legal Fees,9222,Fines
25/07/17,City Treasurers,JD SPORTS,100.00,100.00,.00,Activities and Events,5941,Sporting Goods Stores
25/07/17,Tri-Borough ASC and NHS Integrated Commi,LEYLAND LSDM EDGWARE R,11.75,11.75,.00,"Equipment, furniture and materials",5251,Hardware Stores
25/07/17,Tri-Borough Childrens Services,LUL TICKET MACHINE,10.00,10.00,.00,Staff travelling expenses,4112,Passenger Railways
25/07/17,Tri-Borough ASC and NHS Integrated Commi,LUL TICKET MACHINE,25.00,25.00,.00,Staff travel expense,4112,Passenger Railways
25/07/17,Tri-Borough Childrens Services,LUL TICKET MACHINE,12.30,12.30,.00,Staff travelling expenses,4112,Passenger Railways
25/07/17,Tri-Borough Childrens Services,LUL TICKET MACHINE,10.00,10.00,.00,Section 17 Other,4112,Passenger Railways
25/07/17,Tri-Borough Childrens Services,LUL TICKET MACHINE,20.00,20.00,.00,Section 17 Other,4112,Passenger Railways
25/07/17,Tri-Borough Childrens Services,LUL TICKET MACHINE,10.00,10.00,.00,Section 17 Other,4112,Passenger Railways
25/07/17,Bi-Borough Corporate Services,LUL TICKET MACHINE,12.30,12.30,.00,Staff travelling expenses,4112,Passenger Railways
25/07/17,Tri-Borough ASC and NHS Integrated Commi,MARKS&SPENCER PLC SACA,8.90,8.90,.00,Day Opportunities,5411,Grocery Stores
25/07/17,Tri-Borough Childrens Services,MCDONALDS,5.29,5.29,.00,Subsistence Expenses,5814,Fast Food Restaurants
25/07/17,Tri-borough Libraries and Archives,MIDLAND FIRE SAFETY AN,-3.00,-3.00,.00,"Equipment, furniture and materials",7393,Protective and Security Services - Including Armored Cars and Guard Dogs
25/07/17,Tri-Borough Childrens Services,NEW SOUTHERN RAILW,16.00,16.00,.00,Staff travelling expenses,4112,Passenger Railways
25/07/17,PPC,Opodo ID 3632706174,213.45,213.45,.00,Staff travelling expenses,4722,Travel Agencies and Tour Operations
25/07/17,Tri-Borough ASC and NHS Integrated Commi,OYSTER AUTOTOPUP,20.00,20.00,.00,Staff travelling expenses,4112,Passenger Railways
25/07/17,"Growth, Planning and Housing",PIMLICO FOOD & WINE,10.50,10.50,.00,Hospitality,5411,Grocery Stores
25/07/17,Bi-Borough Corporate Services,POST OFFICE COUNTER,22.05,22.05,.00,Postage,9402,Postal Services - Government Only
25/07/17,PPC,POST OFFICE COUNTER,2.52,2.52,.00,Postage,9402,Postal Services - Government Only
25/07/17,Tri-Borough Childrens Services,PRET A MANGER,5.80,5.80,.00,Staff travelling expenses,5812,Eating places and Restaurants
25/07/17,City Management and Communities,RB KEN&CHELSEA,7.03,7.03,.00,Tport - Prkng & Congestion Chgs,7523,Automobile Parking Lots and Garages
25/07/17,City Management and Communities,RB KEN&CHELSEA,6.56,6.56,.00,Tport - Prkng & Congestion Chgs,7523,Automobile Parking Lots and Garages
25/07/17,Tri-Borough Childrens Services,SAINSBURYS 0009,7.20,7.20,.00,Stationery,5411,Grocery Stores
25/07/17,Tri-borough Libraries and Archives,SAINSBURYS SACAT 0602,17.90,17.90,.00,Catering,5411,Grocery Stores
25/07/17,City Management and Communities,SELFSERVE TICKET,25.60,25.60,.00,Staff travelling expenses,4112,Passenger Railways
25/07/17,City Management and Communities,SENATOR DEVELOPMEN,49.98,44.32,5.66,"Print, Pub & adverts",5231,Glass Stores
25/07/17,Tri-Borough ASC and NHS Integrated Commi,TESCO STORE 3012,32.82,32.82,.00,Stationery,5411,Grocery Stores
25/07/17,Tri-Borough ASC and NHS Integrated Commi,TESCO STORES 3012,2.58,2.58,.00,Subsistence Expenses,5411,Grocery Stores
25/07/17,Tri-Borough ASC and NHS Integrated Commi,TESCO STORES 3276,19.57,19.57,.00,Catering,5411,Grocery Stores
25/07/17,City Management and Communities,TFL CYCLE HIRE,-28.00,-28.00,.00,Staff travelling expenses,4111,"Local/Suburban Commuter Passenger Transportation - Railroads, Feries, Local Water Transportation."
25/07/17,Chief of Staff,TFL ROAD CHARGE,115.50,115.50,.00,Tport - Prkng & Congestion Chgs,4784,Toll and Bridge Fees
25/07/17,Tri-Borough ASC and NHS Integrated Commi,TRI BOROUGH- LISSON GR,2.45,2.45,.00,Subsistence Expenses,5811,Caterers
25/07/17,Tri-Borough Childrens Services,TSGN,49.10,49.10,.00,Staff travelling expenses,4112,Passenger Railways
25/07/17,Tri-Borough Childrens Services,WWW.FITFORSPORT.CO.UK,384.34,384.34,.00,Activities and Events,7999,Recreation Services (Not Elsewhere Classified)
25/07/17,Tri-Borough Childrens Services,WWW.IBHF.GOV.UK,3.70,3.70,.00,Tport - Prkng & Congestion Chgs,9399,Government Services ( Not Elsewhere Classified)
25/07/17,Tri-Borough Childrens Services,WWW.IBHF.GOV.UK,6.00,6.00,.00,Tport - Prkng & Congestion Chgs,9399,Government Services ( Not Elsewhere Classified)
25/07/17,City Management and Communities,WWW.ISLINGTON.GOV.,10.60,10.50,.10,Tport - Prkng & Congestion Chgs,7523,Automobile Parking Lots and Garages
25/07/17,Tri-Borough ASC and NHS Integrated Commi,YY SECURITY INSTALLATI,60.00,60.00,.00,"Equipment, furniture and materials",7393,Protective and Security Services - Including Armored Cars and Guard Dogs
26/07/17,"Growth, Planning and Housing",ALLFS CAFE,3.70,3.70,.00,Hospitality,5812,Eating places and Restaurants
26/07/17,Tri-Borough ASC and NHS Integrated Commi,Amazon EU,28.69,28.69,.00,"Equipment, furniture and materials",5969,Direct Marketing - Not Elsewhere Classified
26/07/17,Tri-borough Libraries and Archives,Amazon UK Marketplace,1.95,1.95,.00,Stationery,5942,Book Stores
26/07/17,City Management and Communities,Amazon UK Marketplace,28.91,28.91,.00,"Equipment, furniture and materials",5942,Book Stores
26/07/17,City Management and Communities,Amazon UK Marketplace,19.98,19.98,.00,"Equipment, furniture and materials",5942,Book Stores
26/07/17,Tri-borough Libraries and Archives,Amazon UK Marketplace,27.72,27.72,.00,"Equipment, furniture and materials",5942,Book Stores
26/07/17,Tri-Borough ASC and NHS Integrated Commi,Amazon UK Marketplace,14.98,14.98,.00,"Equipment, furniture and materials",5942,Book Stores
26/07/17,Tri-Borough ASC and NHS Integrated Commi,AMAZON UK RETAIL AMAZO,7.98,7.98,.00,"Equipment, furniture and materials",5999,Miscellaneous and Specialty Retail Stores
26/07/17,Tri-borough Libraries and Archives,AMAZON.CO.UK,1.75,1.41,.34,Stationery,5999,Miscellaneous and Specialty Retail Stores
26/07/17,Tri-borough Libraries and Archives,AMAZON.CO.UK,24.99,24.99,.00,Stationery,5999,Miscellaneous and Specialty Retail Stores
26/07/17,Tri-Borough ASC and NHS Integrated Commi,CAFFE NERO,1.90,1.90,.00,Subsistence Expenses,5812,Eating places and Restaurants
26/07/17,Tri-Borough Childrens Services,CHADWELL HEATH SST,5.00,5.00,.00,Staff travel expense,4112,Passenger Railways
26/07/17,Tri-Borough Childrens Services,CHADWELL HEATH SST,5.00,5.00,.00,Staff travel expense,4112,Passenger Railways
26/07/17,"Growth, Planning and Housing",CMT (UK) LTD - GLASGOW,18.06,18.06,.00,Staff travelling expenses,4121,Taxicabs and Limousines
26/07/17,City Management and Communities,COTE KENSINGTON CRT,11.19,11.19,.00,Subsistence Expenses,5812,Eating places and Restaurants
26/07/17,City Management and Communities,EB  INTRODUCTION TO FU,80.24,80.24,.00,"Equipment, furniture and materials",7399,"Business Services, Not Elsewhere Classified"
26/07/17,City Treasurers,FX RENTALS LTD,636.00,636.00,.00,Hired and Contracted Services,7399,"Business Services, Not Elsewhere Classified"
26/07/17,Tri-Borough ASC and NHS Integrated Commi,HAMMERSMITH RENAL PTS,2.10,2.10,.00,Subsistence Expenses,5811,Caterers
26/07/17,Tri-Borough ASC and NHS Integrated Commi,HAMMERSMITH RENAL PTS,1.95,1.95,.00,Subsistence Expenses,5811,Caterers
26/07/17,City Management and Communities,HILTON,16.95,16.95,.00,Subsistence Expenses,3504,HILTON HOTELS
26/07/17,City Management and Communities,J P LENNARD LTD,168.74,140.62,28.12,"Equipment, furniture and materials",5941,Sporting Goods Stores
26/07/17,"Growth, Planning and Housing",LUL TICKET MACHINE,50.00,50.00,.00,Staff travelling expenses,4112,Passenger Railways
26/07/17,Tri-Borough Childrens Services,LUL TICKET MACHINE,20.00,20.00,.00,Staff travelling expenses,4112,Passenger Railways
26/07/17,"Growth, Planning and Housing",LUL TICKET MACHINE,51.50,51.50,.00,Staff travelling expenses,4112,Passenger Railways
26/07/17,City Management and Communities,LUL TICKET MACHINE,20.00,20.00,.00,Staff travel expense,4112,Passenger Railways
26/07/17,City Management and Communities,LUL TICKET MACHINE,20.00,20.00,.00,Staff travel expense,4112,Passenger Railways
26/07/17,"Growth, Planning and Housing",LUL TICKET MACHINE,50.00,50.00,.00,Staff travelling expenses,4112,Passenger Railways
26/07/17,"Growth, Planning and Housing",LUL TICKET MACHINE,50.00,50.00,.00,Staff travelling expenses,4112,Passenger Railways
26/07/17,"Growth, Planning and Housing",LUL TICKET MACHINE,50.00,50.00,.00,Staff travelling expenses,4112,Passenger Railways
26/07/17,Tri-Borough Childrens Services,LUL TICKET MACHINE,4.90,4.90,.00,Staff travelling expenses,4112,Passenger Railways
26/07/17,Tri-Borough Childrens Services,M&S SIMPLY FOOD - SSP,13.10,13.10,.00,Subsistence Expenses,5499,Misc. Food Stores - Convenience Stores and Specialty Markets
26/07/17,Tri-Borough ASC and NHS Integrated Commi,MAPLIN MARBLE ARCH W2,11.99,11.99,.00,Assistive Equipment & Technology,4812,Telecommunications Equipment including telephone sales
26/07/17,Tri-Borough ASC and NHS Integrated Commi,OYSTER AUTOTOPUP,20.00,20.00,.00,Staff travelling expenses,4112,Passenger Railways
26/07/17,Tri-Borough ASC and NHS Integrated Commi,OYSTER AUTOTOPUP,20.00,20.00,.00,Staff travelling expenses,4112,Passenger Railways
26/07/17,City Management and Communities,OYSTER AUTOTOPUP,20.00,20.00,.00,Staff travelling expenses,4112,Passenger Railways
26/07/17,City Management and Communities,OYSTER AUTOTOPUP,40.00,40.00,.00,Staff travelling expenses,4112,Passenger Railways
26/07/17,City Management and Communities,OYSTER BUS AUTOTOP,20.00,20.00,.00,Staff travel expense,4112,Passenger Railways
26/07/17,City Management and Communities,OYSTER BUS AUTOTOP,20.00,20.00,.00,Staff travelling expenses,4112,Passenger Railways
26/07/17,City Management and Communities,OYSTER BUS AUTOTOP,20.00,20.00,.00,Staff travelling expenses,4112,Passenger Railways
26/07/17,Tri-Borough ASC and NHS Integrated Commi,OYSTER RENEW WEB,10.00,10.00,.00,Staff travelling expenses,4112,Passenger Railways
26/07/17,Tri-borough Libraries and Archives,ROBERT DYAS HOLDNG LTD,32.67,32.67,.00,Stationery,5251,Hardware Stores
26/07/17,Tri-borough Libraries and Archives,RYMAN 1037,7.96,6.63,1.33,Stationery,5943,"Stationery Stores, Office and School Supply Stores"
26/07/17,Tri-Borough Childrens Services,SELFSERVE TICKET,13.00,13.00,.00,Staff travelling expenses,4112,Passenger Railways
26/07/17,Tri-Borough Childrens Services,Serenata Flowers,22.98,22.98,.00,Subsistence Expenses,5992,Florists
26/07/17,Tri-Borough ASC and NHS Integrated Commi,TESCO STORES,3.00,3.00,.00,Subsistence Expenses,5411,Grocery Stores
26/07/17,Tri-borough Libraries and Archives,TESCO STORES 5177,6.22,6.22,.00,Catering,5411,Grocery Stores
26/07/17,Tri-Borough ASC and NHS Integrated Commi,TESCO STORES 6707,2.98,2.98,.00,Subsistence Expenses,5411,Grocery Stores
26/07/17,Tri-Borough Childrens Services,TICKETOFFICESALE,3.70,3.70,.00,Staff travelling expenses,4112,Passenger Railways
26/07/17,Tri-Borough Childrens Services,TICKETOFFICESALE,26.00,26.00,.00,Staff travelling expenses,4112,Passenger Railways
26/07/17,Chief of Staff,TIMPSON LTD,71.60,71.60,.00,"Equipment, furniture and materials",7251,"Shop Repair Shops and Shoe Shine Parlors, and Hat Cleaning Shops"
26/07/17,Tri-Borough ASC and NHS Integrated Commi,Trainline,13.41,13.41,.00,Staff travelling expenses,4112,Passenger Railways
26/07/17,Tri-Borough ASC and NHS Integrated Commi,TRAINLINE,-22.40,-22.40,.00,Staff travelling expenses,4112,Passenger Railways
26/07/17,Tri-Borough Childrens Services,TR-BORO KENSINGTON&CHE,9.77,9.77,.00,Section 17 Other,5811,Caterers
26/07/17,City Management and Communities,VILLIERS,26.44,26.44,.00,Subsistence Expenses,5812,Eating places and Restaurants
26/07/17,City Management and Communities,VODAFONE,30.00,25.00,5.00,Telephony,4814,Fax services
26/07/17,Tri-Borough Childrens Services,WESTMINSTER CITY COUNC,30.00,30.00,.00,Stationery,9399,Government Services ( Not Elsewhere Classified)
26/07/17,Tri-Borough Childrens Services,WESTMINSTER PARKING,4.59,4.59,.00,Tport - Prkng & Congestion Chgs,7523,Automobile Parking Lots and Garages
26/07/17,Tri-Borough Childrens Services,WESTMINSTER PARKING,3.50,3.50,.00,Tport - Prkng & Congestion Chgs,7523,Automobile Parking Lots and Garages
26/07/17,Tri-borough Libraries and Archives,WESTWAY CT,133.94,133.94,.00,Hired and Contracted Services,4121,Taxicabs and Limousines
26/07/17,City Management and Communities,WWW.ISLINGTON.GOV.,5.60,5.50,.10,Tport - Prkng & Congestion Chgs,7523,Automobile Parking Lots and Garages
26/07/17,"Growth, Planning and Housing",WWW.LABC.UK.COM,180.00,150.00,30.00,Training,7399,"Business Services, Not Elsewhere Classified"
26/07/17,Tri-Borough Childrens Services,WWW.TOENGES.DE,25.34,25.34,.00,Stationery,5111,"Stationery, Office Supplies, Printing, and Writing Paper"
27/07/17,Tri-Borough Childrens Services,Amazon EU,12.48,12.48,.00,"Equipment, furniture and materials",5969,Direct Marketing - Not Elsewhere Classified
27/07/17,Tri-Borough Childrens Services,Amazon EU,69.90,69.90,.00,"Equipment, furniture and materials",5969,Direct Marketing - Not Elsewhere Classified
27/07/17,City Management and Communities,Amazon EU,219.30,219.30,.00,"Equipment, furniture and materials",5969,Direct Marketing - Not Elsewhere Classified
27/07/17,City Management and Communities,Amazon EU,219.30,219.30,.00,"Equipment, furniture and materials",5969,Direct Marketing - Not Elsewhere Classified
27/07/17,City Management and Communities,Amazon EU,129.00,129.00,.00,"Equipment, furniture and materials",5969,Direct Marketing - Not Elsewhere Classified
27/07/17,City Management and Communities,Amazon EU,151.98,126.66,25.32,Telephony,5969,Direct Marketing - Not Elsewhere Classified
27/07/17,City Management and Communities,Amazon UK Marketplace,29.95,29.95,.00,IT Hardware Purchase,5942,Book Stores
27/07/17,Tri-borough Libraries and Archives,Amazon UK Marketplace,4.07,3.39,.68,Stationery,5942,Book Stores
27/07/17,Tri-borough Libraries and Archives,Amazon UK Marketplace,34.94,34.94,.00,"Equipment, furniture and materials",5942,Book Stores
27/07/17,City Management and Communities,Amazon UK Marketplace,128.33,128.33,.00,IT Hardware Purchase,5942,Book Stores
27/07/17,Tri-borough Libraries and Archives,Amazon UK Marketplace,3.24,3.24,.00,"Equipment, furniture and materials",5942,Book Stores
27/07/17,Tri-borough Libraries and Archives,Amazon UK Marketplace,6.00,6.00,.00,"Equipment, furniture and materials",5942,Book Stores
27/07/17,City Management and Communities,Amazon UK Marketplace,152.94,127.44,25.50,"Equipment, furniture and materials",5942,Book Stores
27/07/17,Tri-Borough Childrens Services,AMAZON.CO.UK,16.75,16.75,.00,"Equipment, furniture and materials",5999,Miscellaneous and Specialty Retail Stores
27/07/17,Tri-borough Libraries and Archives,AMAZON.CO.UK,46.90,7.82,39.08,"Equipment, furniture and materials",5999,Miscellaneous and Specialty Retail Stores
27/07/17,Tri-borough Libraries and Archives,AMAZON.CO.UK,2.81,2.81,.00,"Equipment, furniture and materials",5999,Miscellaneous and Specialty Retail Stores
27/07/17,Tri-borough Libraries and Archives,AMAZON.CO.UK,2.81,2.81,.00,"Equipment, furniture and materials",5999,Miscellaneous and Specialty Retail Stores
27/07/17,Tri-borough Libraries and Archives,AMAZON.CO.UK,3.80,3.80,.00,"Equipment, furniture and materials",5999,Miscellaneous and Specialty Retail Stores
27/07/17,Tri-borough Libraries and Archives,AMAZON.CO.UK,6.99,6.99,.00,"Equipment, furniture and materials",5999,Miscellaneous and Specialty Retail Stores
27/07/17,Tri-Borough Childrens Services,ASHRA'S,5.50,5.50,.00,Staff travelling expenses,5994,News Dealers and Newsstands
27/07/17,Tri-Borough ASC and NHS Integrated Commi,ASPARAGUS,4.75,4.75,.00,Subsistence Expenses,5812,Eating places and Restaurants
27/07/17,WAES,BRITISH A 12587600254550,824.73,824.73,.00,Hired and Contracted Services,3005,BRITISH AIRWAYS
27/07/17,WAES,BRITISH A 125IN650052260,30.00,30.00,.00,Hired and Contracted Services,3005,BRITISH AIRWAYS
27/07/17,Tri-Borough Childrens Services,COMPLETE CARE SHOP,32.27,27.55,4.72,"Equipment, furniture and materials",5999,Miscellaneous and Specialty Retail Stores
27/07/17,City Management and Communities,COMPTOIR LIBANAIS 1966,17.65,17.65,.00,Subsistence Expenses,5812,Eating places and Restaurants
27/07/17,"Growth, Planning and Housing",COSTA COFFEE,4.20,4.20,.00,Hospitality,5812,Eating places and Restaurants
27/07/17,City Management and Communities,CURRYS ONLINE,255.00,212.50,42.50,"Equipment, furniture and materials",5732,Electronic Sales
27/07/17,Tri-Borough ASC and NHS Integrated Commi,CURRYS ONLINE,79.99,79.99,.00,Hired and Contracted Services,5732,Electronic Sales
27/07/17,City Management and Communities,EAT LTD,9.33,9.33,.00,Subsistence Expenses,5812,Eating places and Restaurants
27/07/17,Tri-Borough ASC and NHS Integrated Commi,HMCOURTS-SERVICE.G,40.00,40.00,.00,Fees,9222,Fines
27/07/17,"Growth, Planning and Housing",LONDON OVERGROUND SST,26.40,26.40,.00,Client travelling expenses,4112,Passenger Railways
27/07/17,Tri-Borough Childrens Services,LUL TICKET MACHINE,10.00,10.00,.00,Staff travelling expenses,4112,Passenger Railways
27/07/17,Tri-Borough Childrens Services,LUL TICKET MACHINE,20.00,20.00,.00,Section 17 Other,4112,Passenger Railways
27/07/17,Tri-Borough Childrens Services,LUL TICKET MACHINE,20.00,20.00,.00,Staff travelling expenses,4112,Passenger Railways
27/07/17,Tri-Borough Childrens Services,LUL TICKET MACHINE,12.30,12.30,.00,Staff travelling expenses,4112,Passenger Railways
27/07/17,Tri-Borough Childrens Services,LUL TICKET MACHINE,5.00,5.00,.00,Staff travelling expenses,4112,Passenger Railways
27/07/17,"Growth, Planning and Housing",LUL TICKET MACHINE,18.10,18.10,.00,Staff travelling expenses,4112,Passenger Railways
27/07/17,Tri-borough Libraries and Archives,LUL TICKET MACHINE,30.00,30.00,.00,Client travelling expenses,4112,Passenger Railways
27/07/17,"Growth, Planning and Housing",OLD BELL,2.00,2.00,.00,Hospitality,5812,Eating places and Restaurants
27/07/17,City Management and Communities,OYSTER AUTOTOPUP,20.00,20.00,.00,Staff travelling expenses,4112,Passenger Railways
27/07/17,Chief of Staff,OYSTER AUTOTOPUP,20.00,20.00,.00,Staff travelling expenses,4112,Passenger Railways
27/07/17,City Management and Communities,OYSTER AUTOTOPUP,20.00,20.00,.00,Staff travelling expenses,4112,Passenger Railways
27/07/17,Tri-Borough Childrens Services,OYSTER BUS AUTOTOP,20.00,20.00,.00,Staff travelling expenses,4112,Passenger Railways
27/07/17,City Management and Communities,OYSTER BUS AUTOTOP,40.00,40.00,.00,Staff travelling expenses,4112,Passenger Railways
27/07/17,Tri-Borough ASC and NHS Integrated Commi,OYSTER BUS AUTOTOP,20.00,20.00,.00,Staff travelling expenses,4112,Passenger Railways
27/07/17,Tri-Borough ASC and NHS Integrated Commi,OYSTER BUS AUTOTOP,20.00,20.00,.00,Staff travelling expenses,4112,Passenger Railways
27/07/17,PPC,OYSTER BUS AUTOTOP,20.00,20.00,.00,Staff travelling expenses,4112,Passenger Railways
27/07/17,City Management and Communities,PAYPAL  GADGETBUGLI,3.89,3.24,.65,Telephony,5946,Camera and Photographic Supply Stores
27/07/17,"Growth, Planning and Housing",SAINSBURYS 0302,15.00,15.00,.00,Hospitality,5411,Grocery Stores
27/07/17,"Growth, Planning and Housing",SAINSBURYS LOC4164,6.09,6.09,.00,Catering,5411,Grocery Stores
27/07/17,Tri-Borough ASC and NHS Integrated Commi,SAINSBURYS SAC (4367),3.80,3.80,.00,Stationery,5411,Grocery Stores
27/07/17,Tri-Borough ASC and NHS Integrated Commi,SELFSERVE TICKET,8.80,8.80,.00,Staff travelling expenses,4112,Passenger Railways
27/07/17,"Growth, Planning and Housing",SHOT ESPRESSO,4.60,4.60,.00,Hospitality,5814,Fast Food Restaurants
27/07/17,"Growth, Planning and Housing",SHOT ESPRESSO,4.80,4.80,.00,Hospitality,5814,Fast Food Restaurants
27/07/17,"Growth, Planning and Housing",SHOT ESPRESSO,4.90,4.90,.00,Hospitality,5814,Fast Food Restaurants
27/07/17,"Growth, Planning and Housing",SHOT ESPRESSO,2.00,2.00,.00,Hospitality,5814,Fast Food Restaurants
27/07/17,City Management and Communities,SIX CARD STOCK,31.00,31.00,.00,Tport - Prkng & Congestion Chgs,7523,Automobile Parking Lots and Garages
27/07/17,WAES,TFL ROAD CHARGE,690.00,690.00,.00,Tport - Prkng & Congestion Chgs,4784,Toll and Bridge Fees
27/07/17,Tri-Borough Childrens Services,THE GUIDE ASSOCIATION,270.72,270.72,.00,Activities and Events,8699,Membership Organizations ( Not Elsewhere Classified)
27/07/17,Tri-Borough ASC and NHS Integrated Commi,THE REFRESHMENT HOUSE,8.50,8.50,.00,Subsistence Expenses,5813,"Drinking Places (Alcoholic Beverages), Bars, Taverns, Cocktail lounges, Nightclubs and Discotheques"
27/07/17,Tri-Borough Childrens Services,TRAVELODGE GB0809,89.75,89.75,.00,Staff travelling expenses,3615,TRAVELODGE
27/07/17,City Management and Communities,VODAFONE LTD,5.00,4.17,.83,Telephony,4814,Fax services
27/07/17,WAES,WAITROSE 756,150.00,150.00,.00,"Equipment, furniture and materials",5411,Grocery Stores
28/07/17,City Management and Communities,Amazon EU,80.19,80.19,.00,IT Hardware Purchase,5969,Direct Marketing - Not Elsewhere Classified
28/07/17,Tri-borough Libraries and Archives,Amazon EU,9.05,7.54,1.51,Stationery,5969,Direct Marketing - Not Elsewhere Classified
28/07/17,PPC,Amazon Prime,7.99,7.99,.00,"Equipment, furniture and materials",5968,Direct Marketing - Continuity/Subscription Merchant
28/07/17,Chief of Staff,Amazon UK Marketplace,17.08,14.23,2.85,Stationery,5942,Book Stores
28/07/17,Tri-Borough Childrens Services,Amazon UK Marketplace,8.28,8.28,.00,Bks (Lib. & Txt bks) -E19,5942,Book Stores
28/07/17,Tri-borough Libraries and Archives,Amazon UK Marketplace,2.06,2.06,.00,Stationery,5942,Book Stores
28/07/17,Tri-borough Libraries and Archives,Amazon UK Marketplace,4.99,4.16,.83,Stationery,5942,Book Stores
28/07/17,City Management and Communities,Amazon UK Marketplace,3.99,3.99,.00,IT Hardware Purchase,5942,Book Stores
28/07/17,City Management and Communities,Amazon UK Marketplace,59.00,49.17,9.83,IT Hardware Purchase,5942,Book Stores
28/07/17,City Management and Communities,Amazon UK Marketplace,5.99,5.99,.00,IT Hardware Purchase,5942,Book Stores
28/07/17,Tri-borough Libraries and Archives,AMAZON.CO.UK,72.66,72.66,.00,"Equipment, furniture and materials",5999,Miscellaneous and Specialty Retail Stores
28/07/17,Tri-Borough Childrens Services,AMZ GARDENER'S DREAM L,-18.98,-18.98,.00,"Equipment, furniture and materials",5999,Miscellaneous and Specialty Retail Stores
28/07/17,Tri-Borough Childrens Services,APCOA -READING STATION,8.00,8.00,.00,Tport - Prkng & Congestion Chgs,7523,Automobile Parking Lots and Garages
28/07/17,City Management and Communities,ARGOS LTD,24.49,24.49,.00,"Equipment, furniture and materials",5310,Discount Stores
28/07/17,City Management and Communities,ARGOS LTD,-24.49,-24.49,.00,"Equipment, furniture and materials",5310,Discount Stores
28/07/17,Bi-Borough Corporate Services,BV RESTAURANT GROUP LT,9.90,9.90,.00,Subsistence Expenses,5812,Eating places and Restaurants
28/07/17,Tri-Borough Childrens Services,CITY OF WESTMINSTER CO,236.92,236.92,.00,S24 Support allowance,8999,Professional Services ( Not Elsewhere Defined)
28/07/17,City Treasurers,COMPANIES HOUSE,13.00,13.00,.00,Fees,9399,Government Services ( Not Elsewhere Classified)
28/07/17,PPC,CONSERVATIVE CENTRAL O,1000.00,833.33,166.67,Publicity,8651,Political Organizations
28/07/17,Tri-Borough Childrens Services,Cross Country,-29.10,-29.10,.00,Client travelling expenses,4112,Passenger Railways
28/07/17,Chief of Staff,DOLPHIN COMPUTER ACCES,70.80,59.00,11.80,Stationery,5399,Misc. General Merchandise
28/07/17,City Treasurers,DRINKMASTER LTD,110.75,92.29,18.46,Catering,5499,Misc. Food Stores - Convenience Stores and Specialty Markets
28/07/17,Tri-Borough Childrens Services,EUREKA STATIONARY,20.50,20.50,.00,Client travelling expenses,5994,News Dealers and Newsstands
28/07/17,City Management and Communities,FIRSTAID4LESS.CO.UK,33.36,27.80,5.56,"Equipment, furniture and materials",5999,Miscellaneous and Specialty Retail Stores
28/07/17,City Management and Communities,FIRSTAID4LESS.CO.UK,40.56,33.80,6.76,Health and Safety Costs -E18,5999,Miscellaneous and Specialty Retail Stores
28/07/17,Tri-Borough Childrens Services,FML COFFEE,9.50,7.92,1.58,Activities and Events,8220,"Colleges, Junior Colleges, Universities, and Professional Schools"
28/07/17,Tri-Borough Childrens Services,HESTON N/E BK,6.99,6.99,.00,Subsistence Expenses,5812,Eating places and Restaurants
28/07/17,Tri-Borough Childrens Services,IKEA ONLINE,106.50,106.50,.00,Section 17 Other,5719,Miscellaneous Home Furnishing Specialty Stores
28/07/17,Tri-Borough Childrens Services,LUL TICKET MACHINE,15.00,15.00,.00,Staff travelling expenses,4112,Passenger Railways
28/07/17,"Growth, Planning and Housing",LUL TICKET MACHINE,50.00,50.00,.00,Staff travelling expenses,4112,Passenger Railways
28/07/17,Tri-Borough ASC and NHS Integrated Commi,LUL TICKET MACHINE,5.00,5.00,.00,Staff travelling expenses,4112,Passenger Railways
28/07/17,Bi-Borough Corporate Services,LUL TICKET MACHINE,10.00,10.00,.00,Staff travelling expenses,4112,Passenger Railways
28/07/17,Tri-Borough Childrens Services,LUL TICKET MACHINE,12.30,12.30,.00,Staff travelling expenses,4112,Passenger Railways
28/07/17,Tri-Borough Childrens Services,NANDOS KENSAL RISE,21.65,21.65,.00,Subsistence Expenses,5812,Eating places and Restaurants
28/07/17,City Management and Communities,OYSTER AUTOTOPUP,20.00,20.00,.00,Staff travelling expenses,4112,Passenger Railways
28/07/17,Tri-Borough ASC and NHS Integrated Commi,OYSTER AUTOTOPUP,20.00,20.00,.00,Staff travelling expenses,4112,Passenger Railways
28/07/17,"Growth, Planning and Housing",OYSTER AUTOTOPUP,20.00,20.00,.00,Staff travelling expenses,4112,Passenger Railways
28/07/17,City Management and Communities,OYSTER BUS AUTOTOP,40.00,40.00,.00,Staff travelling expenses,4112,Passenger Railways
28/07/17,City Management and Communities,OYSTER BUS AUTOTOP,20.00,20.00,.00,Staff travelling expenses,4112,Passenger Railways
28/07/17,Tri-Borough ASC and NHS Integrated Commi,OYSTER BUS AUTOTOP,20.00,20.00,.00,Client travelling expenses,4112,Passenger Railways
28/07/17,"Growth, Planning and Housing",POST OFFICE COUNTER,6.50,6.50,.00,Postage,9402,Postal Services - Government Only
28/07/17,PPC,RSA ADELPHI ENTERPRISE,206.40,206.40,.00,Conference Expenses,8999,Professional Services ( Not Elsewhere Defined)
28/07/17,City Management and Communities,SCREWFIX DIRECT,399.84,319.88,79.96,"Equipment, furniture and materials",5211,Lumber and Building Materials Stores
28/07/17,City Management and Communities,SEYMOUR HOTEL,534.00,427.20,106.80,Temporary Accommodation,7011,"Lodging - Hotels, Motels, Resorts, Central Reservation Services (not elsewhere classified)"
28/07/17,Tri-Borough Childrens Services,SK SWEETS,60.75,60.75,.00,Young Persons Subsistence Allowance,5411,Grocery Stores
28/07/17,Tri-Borough Childrens Services,SKEWERS MANGAL LTD,18.50,18.50,.00,Activities and Events,5812,Eating places and Restaurants
28/07/17,Chief of Staff,THE FINANCIAL TIMES,207.48,207.48,.00,Subscriptions,5968,Direct Marketing - Continuity/Subscription Merchant
28/07/17,WAES,THE LONDON WATERBUS CO,-151.40,-151.40,.00,Training,4121,Taxicabs and Limousines
28/07/17,Tri-Borough ASC and NHS Integrated Commi,Trainline,55.59,55.59,.00,Staff travelling expenses,4112,Passenger Railways
28/07/17,Tri-Borough ASC and NHS Integrated Commi,Trainline,330.58,330.58,.00,Client travelling expenses,4112,Passenger Railways
28/07/17,Tri-Borough ASC and NHS Integrated Commi,TRI BOROUGH- LISSON GR,4.47,4.47,.00,Subsistence Expenses,5811,Caterers
29/07/17,Tri-Borough Childrens Services,ALL STAR LANES BAYSWAT,49.75,49.75,.00,Section 17 Other,5812,Eating places and Restaurants
29/07/17,Tri-Borough Childrens Services,ALL STAR LANES BAYSWAT,25.00,25.00,.00,Section 17 Other,5812,Eating places and Restaurants
29/07/17,City Management and Communities,Amazon EU,16.74,16.74,.00,IT Hardware Purchase,5969,Direct Marketing - Not Elsewhere Classified
29/07/17,City Management and Communities,Amazon UK Marketplace,36.42,36.42,.00,IT Hardware Purchase,5942,Book Stores
29/07/17,Tri-borough Libraries and Archives,AMAZON.CO.UK,38.53,32.11,6.42,Activities and Events,5999,Miscellaneous and Specialty Retail Stores
29/07/17,City Treasurers,ARGOS LTD,25.48,21.23,4.25,"Equipment, furniture and materials",5310,Discount Stores
29/07/17,Tri-Borough ASC and NHS Integrated Commi,BARRY BROS SECURITY DE,144.00,144.00,.00,"Equipment, furniture and materials",7393,Protective and Security Services - Including Armored Cars and Guard Dogs
29/07/17,Tri-Borough Childrens Services,LUL TICKET MACHINE,5.00,5.00,.00,Section 17 Other,4112,Passenger Railways
29/07/17,Tri-Borough Childrens Services,LUL TICKET MACHINE,5.00,5.00,.00,Section 17 Other,4112,Passenger Railways
29/07/17,City Management and Communities,OYSTER AUTOTOPUP,40.00,40.00,.00,Staff travelling expenses,4112,Passenger Railways
29/07/17,City Management and Communities,OYSTER AUTOTOPUP,40.00,40.00,.00,Staff travelling expenses,4112,Passenger Railways
29/07/17,City Management and Communities,OYSTER AUTOTOPUP,20.00,20.00,.00,Staff travelling expenses,4112,Passenger Railways
29/07/17,City Management and Communities,OYSTER BUS AUTOTOP,40.00,40.00,.00,Staff travelling expenses,4112,Passenger Railways
29/07/17,City Management and Communities,OYSTER BUS AUTOTOP,20.00,20.00,.00,Staff travelling expenses,4112,Passenger Railways
29/07/17,City Management and Communities,OYSTER BUS AUTOTOP,20.00,20.00,.00,Staff travelling expenses,4112,Passenger Railways
29/07/17,City Management and Communities,OYSTER BUS AUTOTOP,20.00,20.00,.00,Staff travelling expenses,4112,Passenger Railways
29/07/17,Tri-Borough ASC and NHS Integrated Commi,OYSTER BUS AUTOTOP,20.00,20.00,.00,Staff travelling expenses,4112,Passenger Railways
29/07/17,Tri-Borough Childrens Services,PIZZA HUT DELIVERY,24.99,24.99,.00,Section 17 Other,5812,Eating places and Restaurants
29/07/17,Tri-Borough Childrens Services,TESCO STORES 3012,6.36,6.36,.00,Section 17 Other,5411,Grocery Stores
30/07/17,Tri-borough Libraries and Archives,Amazon EU,1.60,1.60,.00,"Equipment, furniture and materials",5969,Direct Marketing - Not Elsewhere Classified
30/07/17,Tri-borough Libraries and Archives,Amazon EU,23.38,23.38,.00,"Equipment, furniture and materials",5969,Direct Marketing - Not Elsewhere Classified
30/07/17,Chief of Staff,AMAZON.CO.UK,51.43,51.43,.00,Catering,5999,Miscellaneous and Specialty Retail Stores
30/07/17,Tri-borough Libraries and Archives,CMT (UK) LTD - GLASGOW,17.20,17.20,.00,Staff travelling expenses,4121,Taxicabs and Limousines
30/07/17,Tri-Borough Childrens Services,OYSTER AUTOTOPUP,20.00,20.00,.00,Staff travelling expenses,4112,Passenger Railways
30/07/17,Tri-Borough ASC and NHS Integrated Commi,OYSTER AUTOTOPUP,20.00,20.00,.00,Staff travelling expenses,4112,Passenger Railways
30/07/17,Tri-Borough ASC and NHS Integrated Commi,OYSTER BUS AUTOTOP,20.00,20.00,.00,Staff travelling expenses,4112,Passenger Railways
30/07/17,City Management and Communities,OYSTER BUS AUTOTOP,40.00,40.00,.00,Staff travel expense,4112,Passenger Railways
30/07/17,Tri-Borough ASC and NHS Integrated Commi,OYSTER BUS AUTOTOP,20.00,20.00,.00,Staff travelling expenses,4112,Passenger Railways
30/07/17,Tri-borough Libraries and Archives,WWW.CABAPP.NET,13.80,13.80,.00,Staff travelling expenses,4121,Taxicabs and Limousines
31/07/17,Chief of Staff,4D MODELSHOP LIMITED,224.51,187.09,37.42,"Equipment, furniture and materials",5046,"Commercial Equipment, Not Elsewhere Classified"
31/07/17,Tri-borough Libraries and Archives,Amazon EU,49.59,49.59,.00,"Equipment, furniture and materials",5969,Direct Marketing - Not Elsewhere Classified
31/07/17,Tri-borough Libraries and Archives,Amazon UK Marketplace,49.82,41.51,8.31,Activities and Events,5942,Book Stores
31/07/17,Tri-borough Libraries and Archives,Amazon UK Marketplace,6.09,5.08,1.01,"Equipment, furniture and materials",5942,Book Stores
31/07/17,Tri-Borough Childrens Services,ASHRA'S,5.50,5.50,.00,Staff travelling expenses,5994,News Dealers and Newsstands
31/07/17,Tri-Borough Childrens Services,BARRY BROS SECURITY DE,235.20,235.20,.00,Section 17 Other,7393,Protective and Security Services - Including Armored Cars and Guard Dogs
31/07/17,Tri-Borough Childrens Services,CAFFE NERO 87 PADDINGT,3.85,3.85,.00,Young Persons Subsistence Allowance,5814,Fast Food Restaurants
31/07/17,City Management and Communities,DATABAC GROUP LTD,483.60,403.00,80.60,Stationery,5964,Direct Marketing - Catalog Merchant
31/07/17,City Management and Communities,DISCLOSURE & BARRING,13.00,13.00,.00,DBS Police checks,9399,Government Services ( Not Elsewhere Classified)
31/07/17,City Management and Communities,DVLA VEHICLE TAX,167.50,167.50,.00,Trade Waste and Refuse Collection,9399,Government Services ( Not Elsewhere Classified)
31/07/17,City Management and Communities,easyJetES ESMF2BL,61.09,61.09,.00,Staff travelling expenses,3245,EasyJet Airlines
31/07/17,City Management and Communities,FLYBE.COM DCHHYC       0,183.31,183.31,.00,Staff travelling expenses,4511,"Airlines, Air Carriers ( not listed elsewhere)"
31/07/17,Tri-Borough Childrens Services,FRYDAYS,8.85,8.85,.00,Subsistence Expenses,5814,Fast Food Restaurants
31/07/17,Tri-Borough Childrens Services,FRYDAYS,8.85,8.85,.00,Section 17 Young Persons Support,5814,Fast Food Restaurants
31/07/17,City Management and Communities,GATWICK EXPRSS WEB,17.80,17.80,.00,Staff travelling expenses,4112,Passenger Railways
31/07/17,Tri-Borough Childrens Services,GRO HM PASSPORT OFFICE,-9.25,-9.25,.00,Section 17 Other,9399,Government Services ( Not Elsewhere Classified)
31/07/17,Tri-Borough Childrens Services,GRO HM PASSPORT OFFICE,-23.40,-23.40,.00,Section 17 Other,9399,Government Services ( Not Elsewhere Classified)
31/07/17,Tri-Borough Childrens Services,GRO HM PASSPORT OFFICE,32.65,32.65,.00,Section 17 Other,9399,Government Services ( Not Elsewhere Classified)
31/07/17,Tri-Borough Childrens Services,GWR CATERING,4.80,4.80,.00,Young Persons Subsistence Allowance,4112,Passenger Railways
31/07/17,PPC,GWR WEBSALES,47.00,47.00,.00,Staff travelling expenses,4112,Passenger Railways
31/07/17,Tri-Borough ASC and NHS Integrated Commi,HEMA RETAIL UK,1.00,.83,.17,"Equipment, furniture and materials",5722,Household Appliance Stores
31/07/17,Tri-Borough ASC and NHS Integrated Commi,HMCOURTS-SERVICE.G,60.00,60.00,.00,Fees,9222,Fines
31/07/17,City Management and Communities,HUB BY PREMIER INN 496,103.50,103.50,.00,Staff travelling expenses,3811,Premier Travel Inn
31/07/17,City Management and Communities,ISLINGTON CEMETERY,440.00,440.00,.00,Hired and Contracted Services,7261,Funeral Service and Crematories
31/07/17,Tri-Borough Childrens Services,LONDON MIDLAND WEB,17.00,17.00,.00,Staff travel expense,4112,Passenger Railways
31/07/17,Tri-Borough Childrens Services,LONDON MIDLAND WEB,17.00,17.00,.00,Staff travel expense,4112,Passenger Railways
31/07/17,Tri-Borough Childrens Services,LONDON MIDLAND WEB,9.50,9.50,.00,Section 17 Transport,4112,Passenger Railways
31/07/17,Tri-Borough Childrens Services,LUL TICKET MACHINE,10.00,10.00,.00,Staff travelling expenses,4112,Passenger Railways
31/07/17,Tri-borough Libraries and Archives,LUL TICKET MACHINE,20.00,20.00,.00,Staff travelling expenses,4112,Passenger Railways
31/07/17,Tri-Borough ASC and NHS Integrated Commi,LUL TICKET MACHINE,30.00,30.00,.00,Staff travelling expenses,4112,Passenger Railways
31/07/17,Tri-Borough Childrens Services,LUL TICKET MACHINE,10.00,10.00,.00,Section 17 Other,4112,Passenger Railways
31/07/17,"Growth, Planning and Housing",LUL TICKET MACHINE,38.70,38.70,.00,Client travelling expenses,4112,Passenger Railways
31/07/17,Tri-Borough Childrens Services,MCDONALDS,7.47,7.47,.00,Activities and Events,5812,Eating places and Restaurants
31/07/17,City Management and Communities,NEW SOUTHERN RAILW,50.00,50.00,.00,Staff travelling expenses,4112,Passenger Railways
31/07/17,City Management and Communities,OYSTER AUTOTOPUP,40.00,40.00,.00,Staff travelling expenses,4112,Passenger Railways
31/07/17,Tri-Borough ASC and NHS Integrated Commi,PARK CAFE,6.40,6.40,.00,Day Opportunities,5812,Eating places and Restaurants
31/07/17,Tri-Borough Childrens Services,PIZZA HUT ONLINE WEB,29.05,24.21,4.84,Activities and Events,5814,Fast Food Restaurants
31/07/17,Tri-Borough Childrens Services,PORTOBELLO JUICE C,28.75,28.75,.00,Section 17 Other,5814,Fast Food Restaurants
31/07/17,Bi-Borough Corporate Services,POSTOFFICE SELFSERVICE,8.35,8.35,.00,Postage,9402,Postal Services - Government Only
31/07/17,Tri-Borough ASC and NHS Integrated Commi,SAINSBURYS 2665,5.57,5.57,.00,"Equipment, furniture and materials",5411,Grocery Stores
31/07/17,Tri-Borough ASC and NHS Integrated Commi,SAINSBURYS LOC 4222,4.05,4.05,.00,Subsistence Expenses,5411,Grocery Stores
31/07/17,"Growth, Planning and Housing",SK SWEETS,10.50,10.50,.00,Client travelling expenses,5411,Grocery Stores
31/07/17,Tri-Borough Childrens Services,TESCO STORE 3300,25.00,25.00,.00,Stationery,5411,Grocery Stores
31/07/17,"Growth, Planning and Housing",THE GALLERY,5.20,5.20,.00,Hospitality,5812,Eating places and Restaurants
31/07/17,Tri-Borough ASC and NHS Integrated Commi,Trainline,15.40,15.40,.00,Client travelling expenses,4112,Passenger Railways
31/07/17,Tri-Borough ASC and NHS Integrated Commi,Trainline,13.31,13.31,.00,Client travelling expenses,4112,Passenger Railways
31/07/17,City Management and Communities,Trainline,52.84,52.84,.00,Staff travelling expenses,4112,Passenger Railways
31/07/17,City Management and Communities,Trainline,197.57,197.57,.00,Staff travelling expenses,4112,Passenger Railways
31/07/17,Tri-Borough ASC and NHS Integrated Commi,TRAINLINE,-43.00,-43.00,.00,Client travelling expenses,4112,Passenger Railways
31/07/17,City Management and Communities,Trainline,34.73,34.73,.00,Staff travelling expenses,4112,Passenger Railways
31/07/17,Tri-Borough Childrens Services,WESTMINSTER PARKING,.28,.28,.00,Tport - Prkng & Congestion Chgs,7523,Automobile Parking Lots and Garages
31/07/17,Tri-Borough Childrens Services,WESTMINSTER PARKING,2.55,2.55,.00,Tport - Prkng & Congestion Chgs,7523,Automobile Parking Lots and Garages
01/08/17,City Management and Communities,Amazon EU,89.46,89.46,.00,"Equipment, furniture and materials",5969,Direct Marketing - Not Elsewhere Classified
01/08/17,Tri-borough Libraries and Archives,Amazon UK Marketplace,11.64,11.64,.00,"Equipment, furniture and materials",5942,Book Stores
01/08/17,Tri-borough Libraries and Archives,Amazon UK Marketplace,12.75,12.75,.00,"Equipment, furniture and materials",5942,Book Stores
01/08/17,Corporate Services WCC,Amazon UK Marketplace,37.45,37.45,.00,IT Hardware Purchase,5942,Book Stores
01/08/17,City Management and Communities,Amazon UK Marketplace,8.49,8.49,.00,Stationery,5942,Book Stores
01/08/17,City Management and Communities,Amazon UK Marketplace,120.91,120.91,.00,"Equipment, furniture and materials",5942,Book Stores
01/08/17,Tri-Borough Childrens Services,Amazon UK Marketplace,10.65,10.65,.00,"Equipment, furniture and materials",5942,Book Stores
01/08/17,Tri-borough Libraries and Archives,AMAZON.CO.UK,11.78,11.78,.00,"Equipment, furniture and materials",5999,Miscellaneous and Specialty Retail Stores
01/08/17,Tri-borough Libraries and Archives,AMAZON.CO.UK,2.81,2.81,.00,"Equipment, furniture and materials",5999,Miscellaneous and Specialty Retail Stores
01/08/17,Tri-borough Libraries and Archives,AMAZON.CO.UK,2.81,2.81,.00,"Equipment, furniture and materials",5999,Miscellaneous and Specialty Retail Stores
01/08/17,Tri-borough Libraries and Archives,AMAZON.CO.UK,4.71,3.93,.78,Activities and Events,5999,Miscellaneous and Specialty Retail Stores
01/08/17,City Management and Communities,AMZ Kvago,-24.79,-24.79,.00,IT Hardware Purchase,5999,Miscellaneous and Specialty Retail Stores
01/08/17,"Growth, Planning and Housing",ARCO LTD,107.68,89.73,17.95,"Clothes, uniform and laundry",5137,Men�s Women�s and Children�s Uniforms and Commercial Clothing
01/08/17,City Management and Communities,BARRY BROS SECURITY DE,234.00,195.00,39.00,Hired and Contracted Services,7393,Protective and Security Services - Including Armored Cars and Guard Dogs
